{"text_format":"3","workbook":"xlsx","n_sheets":30,"sheets":["итоги мун этап","ОБЗР (копия) 1","ОБЗР (копия)","астрономия","английский язык","всерос литра (3)","МХК","русский всерос","русский НШ","право","общество","экономика","история","История татарстана","геология","ОБЗР","литра для НШ","география","физика","биология","химия","экология","информатика","математика","турецкий язык","тат язык","тат литра","технология","физра","Лист21"],"not_rendered":{"external_links":1,"defined_names":13},"read":"whole","date_system":"1900"}

{"sheet":"итоги мун этап","index":0,"n_rows":6,"n_cols":29,"rows_kept":6}
["предмет","ОБЗР","астрономия","английский яхык","литература","мхк","история","физика","экология","биология","физра","география","русский","математика","экономика","право","общество","информатика","труд","математика","химия","тат язык","тат литра","рус для НШ","рус литра для НШ","турецкий","история тат народа","геология","итого"]
["участник",31,3,45,29,18,23,12,6,20,17,9,56,18,21,17,30,3,11,17,13,77,27,30,27,2,17,6,{"$f":"B2+C2+D2+E2+F2+G2+H2+I2+J2+K2+L2+M2+N2+O2+P2+Q2+R2+S2+T2+U2+V2+W2+Z2+AA2+AB2","v":528}]
["пробедитель",3,0,2,4,3,4,2,0,2,4,4,1,2,3,0,0,0,5,1,1,4,3,4,2,1,1,2,52]
["призер",6,0,17,12,5,3,3,0,2,12,1,15,5,3,0,0,0,2,2,0,37,12,10,11,1,1,2,141]
["ИТОГО",9,0,19,16,8,7,5,0,4,16,5,16,7,6,0,0,0,7,3,1,41,15,14,13,2,2,4,193]
[null,{"$f":"B5/B2*100","v":29.03225806},0,42.22222222,55.17241379,44.44444444,30.43478261,41.66666667,0,20,94.11764706,55.55555556,28.57142857,38.88888889,28.57142857,0,0,0,63.63636364,17.64705882,7.692307692,53.24675325,55.55555556,46.66666667,48.14814815,100,11.76470588,66.66666667,36.5530303]

{"sheet":"ОБЗР (копия) 1","index":1,"n_rows":46,"n_cols":19,"rows_kept":46}
["№","Код участника","Название ОУ","СНИЛС","Фамилия","Имя","Отчество","Пол","Дата рождения","Участник с ОВЗ","Класс","Класс участия","Балл","Макс. балл","Статус","Призер МЭ прошлого года","Учитель","Место работы учителя","Предмет"]
[1,"134003_19102739658_37","Государственное автономное общеобразовательное учреждение \"Гуманитарная гимназия-интернат для одаренных детей\"",19102739658,"Вильданова","Амина","Ленаровна","ж","2015-09-28","нет",3,3,21,100,"участник",null,"Мусина Ания Хасиповна","ГАОУ \"Гуманитарная гимназия-интернат для одаренных детей\"","ОБЗР"]
[2,"134003_18738411302_37","Государственное автономное общеобразовательное учреждение \"Гуманитарная гимназия-интернат для одаренных детей\"",18738411302,"Исмагилов","Данил","Динарович","м","2015-09-30","нет",3,3,32,100,"участник",null,"Мусина Ания Хасиповна","ГАОУ \"Гуманитарная гимназия-интернат для одаренных детей\"","ОБЗР"]
[3,"134003_19029375686_37","Государственное автономное общеобразовательное учреждение \"Гуманитарная гимназия-интернат для одаренных детей\"",19029375686,"Кутлияров","Салим","Салаватович","м","2015-08-11","нет",3,3,29,100,"участник",null,"Мусина Ания Хасиповна","ГАОУ \"Гуманитарная гимназия-интернат для одаренных детей\"","ОБЗР"]
[4,"134003_18682172606_37","Государственное автономное общеобразовательное учреждение \"Гуманитарная гимназия-интернат для одаренных детей\"",18682172606,"Мусина","Иделия","Марселевна","ж","2014-12-29","нет",3,3,34,100,"участник",null,"Мусина Ания Хасиповна","ГАОУ \"Гуманитарная гимназия-интернат для одаренных детей\"","ОБЗР"]
[5,"134003_18916308907_37","Государственное автономное общеобразовательное учреждение \"Гуманитарная гимназия-интернат для одаренных детей\"",19114455761,"Салихзянов","Азалия","Айдаровна","ж","2015-10-05","нет",3,3,16,100,"участник",null,"Мусина Ания Хасиповна","ГАОУ \"Гуманитарная гимназия-интернат для одаренных детей\"","ОБЗР"]
[6,"134003_19071935183_37","Государственное автономное общеобразовательное учреждение \"Гуманитарная гимназия-интернат для одаренных детей\"",19071935183,"Габдулхаева","Залина","Ильшатовна","ж","2015-08-30","нет",3,3,33,100,"участник",null,"Солтанова Гульназ Дильшатовна","ГАОУ \"Гуманитарная гимназия-интернат для одаренных детей\"","ОБЗР"]
[7,"134003_19082568900_37","Государственное автономное общеобразовательное учреждение \"Гуманитарная гимназия-интернат для одаренных детей\"",19082568900,"Галиуллин","Реналь","Ренатович","м","2015-09-17","нет",3,3,14,100,"участник",null,"Солтанова Гульназ Дильшатовна","ГАОУ \"Гуманитарная гимназия-интернат для одаренных детей\"","ОБЗР"]
[8,"134003_19179239210_37","Государственное автономное общеобразовательное учреждение \"Гуманитарная гимназия-интернат для одаренных детей\"",19179239210,"Давлетова","София","Ильнуровна","ж","2015-07-06","нет",3,3,33,100,"участник",null,"Солтанова Гульназ Дильшатовна","ГАОУ \"Гуманитарная гимназия-интернат для одаренных детей\"","ОБЗР"]
[9,"134003_19093846711_37","Государственное автономное общеобразовательное учреждение \"Гуманитарная гимназия-интернат для одаренных детей\"",19093846711,"Мохаммед","Лейла","Шафиуллаховна","ж","2015-09-23","нет",3,3,27,100,"участник",null,"Солтанова Гульназ Дильшатовна","ГАОУ \"Гуманитарная гимназия-интернат для одаренных детей\"","ОБЗР"]
[10,"134003_18759281130_37","Государственное автономное общеобразовательное учреждение \"Гуманитарная гимназия-интернат для одаренных детей\"",18759281130,"Хайрулина","Фатима","Виленовна","ж","2015-02-16","нет",3,3,38,100,"участник",null,"Солтанова Гульназ Дильшатовна","ГАОУ \"Гуманитарная гимназия-интернат для одаренных детей\"","ОБЗР"]
[11,"134003_17981249825_37","Государственное автономное общеобразовательное учреждение \"Гуманитарная гимназия-интернат для одаренных детей\"",17981249825,"Вагизов","Ильяс","Ильдарович","м","2014-01-06","нет",4,4,52,100,"призер","Да","Шайхуллина Светлана Рифовна","ГАОУ \"Гуманитарная гимназия-интернат для одаренных детей\"","ОБЗР"]
[12,"134003_18780147100_37","Государственное автономное общеобразовательное учреждение \"Гуманитарная гимназия-интернат для одаренных детей\"",18780147100,"Габдулгалиева","Камила","Линаровна","ж","2015-03-06","нет",4,4,56,100,"победитель","Да","Шайхуллина Светлана Рифовна","ГАОУ \"Гуманитарная гимназия-интернат для одаренных детей\"","ОБЗР"]
[13,"134003_18154647079_37","Государственное автономное общеобразовательное учреждение \"Гуманитарная гимназия-интернат для одаренных детей\"",18154647079,"Шайхутдинов","Газиз","Айдарович","м","2014-05-09","нет",4,4,53,100,"призер","Да","Шайхуллина Светлана Рифовна","ГАОУ \"Гуманитарная гимназия-интернат для одаренных детей\"","ОБЗР"]
[14,"134003_17866568039_37","Государственное автономное общеобразовательное учреждение \"Гуманитарная гимназия-интернат для одаренных детей\"",17866568039,"Миназев","Рамазан","Алмазович","м","2013-10-04","нет",4,4,44,100,"участник","Да","Шайхуллина Светлана Рифовна","ГАОУ \"Гуманитарная гимназия-интернат для одаренных детей\"","ОБЗР"]
[15,"134003_18674174210_37","Государственное автономное общеобразовательное учреждение \"Гуманитарная гимназия-интернат для одаренных детей\"",18674174210,"Бакирова","Айзиля","Рузилевна","ж","2014-12-29","нет",4,4,38,100,"участник","Да","Муллаярова Сумая Талгатовна","ГАОУ \"Гуманитарная гимназия-интернат для одаренных детей\"","ОБЗР"]
[16,"134003_18114976175_37","Государственное автономное общеобразовательное учреждение \"Гуманитарная гимназия-интернат для одаренных детей\"",18114976175,"Гарипова","Диана","Ильдусовна","ж","2014-04-19","нет",4,4,25,100,"участник",null,"Муллаярова Сумая Талгатовна","ГАОУ \"Гуманитарная гимназия-интернат для одаренных детей\"","ОБЗР"]
[17,"134003_17957874961_37","Государственное автономное общеобразовательное учреждение \"Гуманитарная гимназия-интернат для одаренных детей\"",17957874961,"Шагалиева","Айзада","Айнуровна","ж","2013-12-21","нет",4,4,28,100,"участник",null,"Муллаярова Сумая Талгатовна","ГАОУ \"Гуманитарная гимназия-интернат для одаренных детей\"","ОБЗР"]
[18,"134003_18554874320_37","Государственное автономное общеобразовательное учреждение \"Гуманитарная гимназия-интернат для одаренных детей\"",18554874320,"Адиятуллина","Рубина","Ильназовна","ж","2014-10-20","нет",4,4,43,100,"участник","Да","Муллаярова Сумая Талгатовна","ГАОУ \"Гуманитарная гимназия-интернат для одаренных детей\"","ОБЗР"]
[19,"134003_18575711208_37","Государственное автономное общеобразовательное учреждение \"Гуманитарная гимназия-интернат для одаренных детей\"",18575711208,"Нафикова","Амина","Ильсуровна","ж","2014-11-13","нет",4,4,27,100,"участник",null,"Хуббутдинова Дилара Дугласовна","ГАОУ \"Гуманитарная гимназия-интернат для одаренных детей\"","ОБЗР"]
[20,"134003_18497802327_37","Государственное автономное общеобразовательное учреждение \"Гуманитарная гимназия-интернат для одаренных детей\"",18497802327,"Султанов","Ахмед","Азатович","м","2014-10-01","нет",4,4,27,100,"участник",null,"Хуббутдинова Дилара Дугласовна","ГАОУ \"Гуманитарная гимназия-интернат для одаренных детей\"","ОБЗР"]
[21,"134003_18055914680_37","Государственное автономное общеобразовательное учреждение \"Гуманитарная гимназия-интернат для одаренных детей\"",18055914680,"Шайхразиева","Айлина","Рузилевна","ж","2014-03-08","нет",4,4,22,100,"участник",null,"Хуббутдинова Дилара Дугласовна","ГАОУ \"Гуманитарная гимназия-интернат для одаренных детей\"","ОБЗР"]
[22,"134003_17988585674_37","Государственное автономное общеобразовательное учреждение \"Гуманитарная гимназия-интернат для одаренных детей\"",17988585674,"Гафуров","Зиннур","Ильгизович","м","2014-01-15","нет",4,4,50,100,"призер",null,"Хуббутдинова Дилара Дугласовна","ГАОУ \"Гуманитарная гимназия-интернат для одаренных детей\"","ОБЗР"]
[23,"134003_17586868951_37","Государственное автономное общеобразовательное учреждение \"Гуманитарная гимназия-интернат для одаренных детей\"",17586868951,"Ахмадгалиев","Аяз","Ниязович","м","2013-02-18","нет",5,5,41,100,"участник",null,"Сибгатуллин Ришат Тимершаехович","ГАОУ \"Гуманитарная гимназия-интернат для одаренных детей\"","ОБЗР"]
[24,"134003_17586869044_37","Государственное автономное общеобразовательное учреждение \"Гуманитарная гимназия-интернат для одаренных детей\"",17586869044,"Ахмадгалиев","Раяз","Ниязович","м","2013-02-18","нет",5,5,32,100,"участник",null,"Сибгатуллин Ришат Тимершаехович","ГАОУ \"Гуманитарная гимназия-интернат для одаренных детей\"","ОБЗР"]
[25,"134003","Государственное автономное общеобразовательное учреждение \"Гуманитарная гимназия-интернат для одаренных детей\"",17516563887,"Имамова","Румия","Тимуровна","ж","2012-12-23","нет",5,5,30,100,"участник","Да","Сибгатуллин Ришат Тимершаехович","ГАОУ \"Гуманитарная гимназия-интернат для одаренных детей\"","ОБЗР"]
[26,"134003_15420280727_37","Государственное автономное общеобразовательное учреждение \"Гуманитарная гимназия-интернат для одаренных детей\"",15420280727,"Шавалиев","Амир","Ленарович","м","2009-02-25","нет",9,9,135,200,"победитель","Да","Сибгатуллин Ришат Тимершаехович","ГАОУ \"Гуманитарная гимназия-интернат для одаренных детей\"","ОБЗР"]
[27,"134003_15577216083_37","Государственное автономное общеобразовательное учреждение \"Гуманитарная гимназия-интернат для одаренных детей\"",15577216083,"Адиатуллина","Эделина","Ильназовна","ж","2009-08-20","нет",9,9,119,200,"призер","Да","Сибгатуллин Ришат Тимершаехович","ГАОУ \"Гуманитарная гимназия-интернат для одаренных детей\"","ОБЗР"]
[28,"134003_15622383256_37","Государственное автономное общеобразовательное учреждение \"Гуманитарная гимназия-интернат для одаренных детей\"",15622383256,"Хуззятова","Камиля","Ильназовна","ж","2009-10-02","нет",9,9,132,200,"призер","Да","Сибгатуллин Ришат Тимершаехович","ГАОУ \"Гуманитарная гимназия-интернат для одаренных детей\"","ОБЗР"]
[29,"134003_15542681875_37","Государственное автономное общеобразовательное учреждение \"Гуманитарная гимназия-интернат для одаренных детей\"",15542681875,"Мухаметдинов","Радмир","Ильнарович","м","2009-07-21","нет",9,9,128,200,"призер","Да","Сибгатуллин Ришат Тимершаехович","ГАОУ \"Гуманитарная гимназия-интернат для одаренных детей\"","ОБЗР"]
[30,"134003_15420924240_37","Государственное автономное общеобразовательное учреждение \"Гуманитарная гимназия-интернат для одаренных детей\"",15420924240,"Шавалиева","Замира","Рашитовна","ж","2009-03-05","нет",10,10,130,200,"победитель",null,"Сибгатуллин Ришат Тимершаехович","ГАОУ \"Гуманитарная гимназия-интернат для одаренных детей\"","ОБЗР"]
[31,"134003_15054527442_37","Государственное автономное общеобразовательное учреждение \"Гуманитарная гимназия-интернат для одаренных детей\"",15054527442,"Нугуманова","Диана","Рустамовна","ж","2008-05-11","нет",10,10,119,200,"участник",null,"Сибгатуллин Ришат Тимершаехович","ГАОУ \"Гуманитарная гимназия-интернат для одаренных детей\"","ОБЗР"]
[]
[]
[]
[]
["№","Код участника","Название ОУ","СНИЛС","Фамилия","Имя","Отчество","Пол","Дата рождения","Участник с ОВЗ","Класс","Класс участия","Балл","Макс. балл","Статус","Призер МЭ прошлого года","Учитель","Место работы учителя","Предмет"]
[11,"134003_17981249825_37","Государственное автономное общеобразовательное учреждение \"Гуманитарная гимназия-интернат для одаренных детей\"",17981249825,"Вагизов","Ильяс","Ильдарович","м","2014-01-06","нет",4,4,52,100,"призер","Да","Шайхуллина Светлана Рифовна","ГАОУ \"Гуманитарная гимназия-интернат для одаренных детей\"","ОБЗР"]
[12,"134003_18780147100_37","Государственное автономное общеобразовательное учреждение \"Гуманитарная гимназия-интернат для одаренных детей\"",18780147100,"Габдулгалиева","Камила","Линаровна","ж","2015-03-06","нет",4,4,56,100,"победитель","Да","Шайхуллина Светлана Рифовна","ГАОУ \"Гуманитарная гимназия-интернат для одаренных детей\"","ОБЗР"]
[13,"134003_18154647079_37","Государственное автономное общеобразовательное учреждение \"Гуманитарная гимназия-интернат для одаренных детей\"",18154647079,"Шайхутдинов","Газиз","Айдарович","м","2014-05-09","нет",4,4,53,100,"призер","Да","Шайхуллина Светлана Рифовна","ГАОУ \"Гуманитарная гимназия-интернат для одаренных детей\"","ОБЗР"]
[22,"134003_17988585674_37","Государственное автономное общеобразовательное учреждение \"Гуманитарная гимназия-интернат для одаренных детей\"",17988585674,"Гафуров","Зиннур","Ильгизович","м","2014-01-15","нет",4,4,50,100,"призер",null,"Хуббутдинова Дилара Дугласовна","ГАОУ \"Гуманитарная гимназия-интернат для одаренных детей\"","ОБЗР"]
[26,"134003_15420280727_37","Государственное автономное общеобразовательное учреждение \"Гуманитарная гимназия-интернат для одаренных детей\"",15420280727,"Шавалиев","Амир","Ленарович","м","2009-02-25","нет",9,9,135,200,"победитель","Да","Сибгатуллин Ришат Тимершаехович","ГАОУ \"Гуманитарная гимназия-интернат для одаренных детей\"","ОБЗР"]
[27,"134003_15577216083_37","Государственное автономное общеобразовательное учреждение \"Гуманитарная гимназия-интернат для одаренных детей\"",15577216083,"Адиатуллина","Эделина","Ильназовна","ж","2009-08-20","нет",9,9,119,200,"призер","Да","Сибгатуллин Ришат Тимершаехович","ГАОУ \"Гуманитарная гимназия-интернат для одаренных детей\"","ОБЗР"]
[28,"134003_15622383256_37","Государственное автономное общеобразовательное учреждение \"Гуманитарная гимназия-интернат для одаренных детей\"",15622383256,"Хуззятова","Камиля","Ильназовна","ж","2009-10-02","нет",9,9,132,200,"призер","Да","Сибгатуллин Ришат Тимершаехович","ГАОУ \"Гуманитарная гимназия-интернат для одаренных детей\"","ОБЗР"]
[29,"134003_15542681875_37","Государственное автономное общеобразовательное учреждение \"Гуманитарная гимназия-интернат для одаренных детей\"",15542681875,"Мухаметдинов","Радмир","Ильнарович","м","2009-07-21","нет",9,9,128,200,"призер","Да","Сибгатуллин Ришат Тимершаехович","ГАОУ \"Гуманитарная гимназия-интернат для одаренных детей\"","ОБЗР"]
[30,"134003_15420924240_37","Государственное автономное общеобразовательное учреждение \"Гуманитарная гимназия-интернат для одаренных детей\"",15420924240,"Шавалиева","Замира","Рашитовна","ж","2009-03-05","нет",10,10,130,200,"победитель",null,"Сибгатуллин Ришат Тимершаехович","ГАОУ \"Гуманитарная гимназия-интернат для одаренных детей\"","ОБЗР"]

{"sheet":"ОБЗР (копия)","index":2,"n_rows":32,"n_cols":19,"rows_kept":32}
["№","Код участника","Название ОУ","СНИЛС","Фамилия","Имя","Отчество","Пол","Дата рождения","Участник с ОВЗ","Класс","Класс участия","Балл","Макс. балл","Статус","Призер МЭ прошлого года","Учитель","Место работы учителя","Предмет"]
[1,"134003_19102739658_37","Государственное автономное общеобразовательное учреждение \"Гуманитарная гимназия-интернат для одаренных детей\"",19102739658,"Вильданова","Амина","Ленаровна","ж","2015-09-28","нет",3,3,21,100,"участник",null,"Мусина Ания Хасиповна","ГАОУ \"Гуманитарная гимназия-интернат для одаренных детей\"","ОБЗР"]
[2,"134003_18738411302_37","Государственное автономное общеобразовательное учреждение \"Гуманитарная гимназия-интернат для одаренных детей\"",18738411302,"Исмагилов","Данил","Динарович","м","2015-09-30","нет",3,3,32,100,"участник",null,"Мусина Ания Хасиповна","ГАОУ \"Гуманитарная гимназия-интернат для одаренных детей\"","ОБЗР"]
[3,"134003_19029375686_37","Государственное автономное общеобразовательное учреждение \"Гуманитарная гимназия-интернат для одаренных детей\"",19029375686,"Кутлияров","Салим","Салаватович","м","2015-08-11","нет",3,3,29,100,"участник",null,"Мусина Ания Хасиповна","ГАОУ \"Гуманитарная гимназия-интернат для одаренных детей\"","ОБЗР"]
[4,"134003_18682172606_37","Государственное автономное общеобразовательное учреждение \"Гуманитарная гимназия-интернат для одаренных детей\"",18682172606,"Мусина","Иделия","Марселевна","ж","2014-12-29","нет",3,3,34,100,"участник",null,"Мусина Ания Хасиповна","ГАОУ \"Гуманитарная гимназия-интернат для одаренных детей\"","ОБЗР"]
[5,"134003_18916308907_37","Государственное автономное общеобразовательное учреждение \"Гуманитарная гимназия-интернат для одаренных детей\"",19114455761,"Салихзянов","Азалия","Айдаровна","ж","2015-10-05","нет",3,3,16,100,"участник",null,"Мусина Ания Хасиповна","ГАОУ \"Гуманитарная гимназия-интернат для одаренных детей\"","ОБЗР"]
[6,"134003_19071935183_37","Государственное автономное общеобразовательное учреждение \"Гуманитарная гимназия-интернат для одаренных детей\"",19071935183,"Габдулхаева","Залина","Ильшатовна","ж","2015-08-30","нет",3,3,33,100,"участник",null,"Солтанова Гульназ Дильшатовна","ГАОУ \"Гуманитарная гимназия-интернат для одаренных детей\"","ОБЗР"]
[7,"134003_19082568900_37","Государственное автономное общеобразовательное учреждение \"Гуманитарная гимназия-интернат для одаренных детей\"",19082568900,"Галиуллин","Реналь","Ренатович","м","2015-09-17","нет",3,3,14,100,"участник",null,"Солтанова Гульназ Дильшатовна","ГАОУ \"Гуманитарная гимназия-интернат для одаренных детей\"","ОБЗР"]
[8,"134003_19179239210_37","Государственное автономное общеобразовательное учреждение \"Гуманитарная гимназия-интернат для одаренных детей\"",19179239210,"Давлетова","София","Ильнуровна","ж","2015-07-06","нет",3,3,33,100,"участник",null,"Солтанова Гульназ Дильшатовна","ГАОУ \"Гуманитарная гимназия-интернат для одаренных детей\"","ОБЗР"]
[9,"134003_19093846711_37","Государственное автономное общеобразовательное учреждение \"Гуманитарная гимназия-интернат для одаренных детей\"",19093846711,"Мохаммед","Лейла","Шафиуллаховна","ж","2015-09-23","нет",3,3,27,100,"участник",null,"Солтанова Гульназ Дильшатовна","ГАОУ \"Гуманитарная гимназия-интернат для одаренных детей\"","ОБЗР"]
[10,"134003_18759281130_37","Государственное автономное общеобразовательное учреждение \"Гуманитарная гимназия-интернат для одаренных детей\"",18759281130,"Хайрулина","Фатима","Виленовна","ж","2015-02-16","нет",3,3,38,100,"участник",null,"Солтанова Гульназ Дильшатовна","ГАОУ \"Гуманитарная гимназия-интернат для одаренных детей\"","ОБЗР"]
[11,"134003_17981249825_37","Государственное автономное общеобразовательное учреждение \"Гуманитарная гимназия-интернат для одаренных детей\"",17981249825,"Вагизов","Ильяс","Ильдарович","м","2014-01-06","нет",4,4,52,100,"призер","Да","Шайхуллина Светлана Рифовна","ГАОУ \"Гуманитарная гимназия-интернат для одаренных детей\"","ОБЗР"]
[12,"134003_18780147100_37","Государственное автономное общеобразовательное учреждение \"Гуманитарная гимназия-интернат для одаренных детей\"",18780147100,"Габдулгалиева","Камила","Линаровна","ж","2015-03-06","нет",4,4,56,100,"победитель","Да","Шайхуллина Светлана Рифовна","ГАОУ \"Гуманитарная гимназия-интернат для одаренных детей\"","ОБЗР"]
[13,"134003_18154647079_37","Государственное автономное общеобразовательное учреждение \"Гуманитарная гимназия-интернат для одаренных детей\"",18154647079,"Шайхутдинов","Газиз","Айдарович","м","2014-05-09","нет",4,4,53,100,"призер","Да","Шайхуллина Светлана Рифовна","ГАОУ \"Гуманитарная гимназия-интернат для одаренных детей\"","ОБЗР"]
[14,"134003_17866568039_37","Государственное автономное общеобразовательное учреждение \"Гуманитарная гимназия-интернат для одаренных детей\"",17866568039,"Миназев","Рамазан","Алмазович","м","2013-10-04","нет",4,4,44,100,"участник","Да","Шайхуллина Светлана Рифовна","ГАОУ \"Гуманитарная гимназия-интернат для одаренных детей\"","ОБЗР"]
[15,"134003_18674174210_37","Государственное автономное общеобразовательное учреждение \"Гуманитарная гимназия-интернат для одаренных детей\"",18674174210,"Бакирова","Айзиля","Рузилевна","ж","2014-12-29","нет",4,4,38,100,"участник","Да","Муллаярова Сумая Талгатовна","ГАОУ \"Гуманитарная гимназия-интернат для одаренных детей\"","ОБЗР"]
[16,"134003_18114976175_37","Государственное автономное общеобразовательное учреждение \"Гуманитарная гимназия-интернат для одаренных детей\"",18114976175,"Гарипова","Диана","Ильдусовна","ж","2014-04-19","нет",4,4,25,100,"участник",null,"Муллаярова Сумая Талгатовна","ГАОУ \"Гуманитарная гимназия-интернат для одаренных детей\"","ОБЗР"]
[17,"134003_17957874961_37","Государственное автономное общеобразовательное учреждение \"Гуманитарная гимназия-интернат для одаренных детей\"",17957874961,"Шагалиева","Айзада","Айнуровна","ж","2013-12-21","нет",4,4,28,100,"участник",null,"Муллаярова Сумая Талгатовна","ГАОУ \"Гуманитарная гимназия-интернат для одаренных детей\"","ОБЗР"]
[18,"134003_18554874320_37","Государственное автономное общеобразовательное учреждение \"Гуманитарная гимназия-интернат для одаренных детей\"",18554874320,"Адиятуллина","Рубина","Ильназовна","ж","2014-10-20","нет",4,4,43,100,"участник","Да","Муллаярова Сумая Талгатовна","ГАОУ \"Гуманитарная гимназия-интернат для одаренных детей\"","ОБЗР"]
[19,"134003_18575711208_37","Государственное автономное общеобразовательное учреждение \"Гуманитарная гимназия-интернат для одаренных детей\"",18575711208,"Нафикова","Амина","Ильсуровна","ж","2014-11-13","нет",4,4,27,100,"участник",null,"Хуббутдинова Дилара Дугласовна","ГАОУ \"Гуманитарная гимназия-интернат для одаренных детей\"","ОБЗР"]
[20,"134003_18497802327_37","Государственное автономное общеобразовательное учреждение \"Гуманитарная гимназия-интернат для одаренных детей\"",18497802327,"Султанов","Ахмед","Азатович","м","2014-10-01","нет",4,4,27,100,"участник",null,"Хуббутдинова Дилара Дугласовна","ГАОУ \"Гуманитарная гимназия-интернат для одаренных детей\"","ОБЗР"]
[21,"134003_18055914680_37","Государственное автономное общеобразовательное учреждение \"Гуманитарная гимназия-интернат для одаренных детей\"",18055914680,"Шайхразиева","Айлина","Рузилевна","ж","2014-03-08","нет",4,4,22,100,"участник",null,"Хуббутдинова Дилара Дугласовна","ГАОУ \"Гуманитарная гимназия-интернат для одаренных детей\"","ОБЗР"]
[22,"134003_17988585674_37","Государственное автономное общеобразовательное учреждение \"Гуманитарная гимназия-интернат для одаренных детей\"",17988585674,"Гафуров","Зиннур","Ильгизович","м","2014-01-15","нет",4,4,50,100,"призер",null,"Хуббутдинова Дилара Дугласовна","ГАОУ \"Гуманитарная гимназия-интернат для одаренных детей\"","ОБЗР"]
[23,"134003_17586868951_37","Государственное автономное общеобразовательное учреждение \"Гуманитарная гимназия-интернат для одаренных детей\"",17586868951,"Ахмадгалиев","Аяз","Ниязович","м","2013-02-18","нет",5,5,41,100,"участник",null,"Сибгатуллин Ришат Тимершаехович","ГАОУ \"Гуманитарная гимназия-интернат для одаренных детей\"","ОБЗР"]
[24,"134003_17586869044_37","Государственное автономное общеобразовательное учреждение \"Гуманитарная гимназия-интернат для одаренных детей\"",17586869044,"Ахмадгалиев","Раяз","Ниязович","м","2013-02-18","нет",5,5,32,100,"участник",null,"Сибгатуллин Ришат Тимершаехович","ГАОУ \"Гуманитарная гимназия-интернат для одаренных детей\"","ОБЗР"]
[25,"134003","Государственное автономное общеобразовательное учреждение \"Гуманитарная гимназия-интернат для одаренных детей\"",17516563887,"Имамова","Румия","Тимуровна","ж","2012-12-23","нет",5,5,30,100,"участник","Да","Сибгатуллин Ришат Тимершаехович","ГАОУ \"Гуманитарная гимназия-интернат для одаренных детей\"","ОБЗР"]
[26,"134003_15420280727_37","Государственное автономное общеобразовательное учреждение \"Гуманитарная гимназия-интернат для одаренных детей\"",15420280727,"Шавалиев","Амир","Ленарович","м","2009-02-25","нет",9,9,135,200,"победитель","Да","Сибгатуллин Ришат Тимершаехович","ГАОУ \"Гуманитарная гимназия-интернат для одаренных детей\"","ОБЗР"]
[27,"134003_15577216083_37","Государственное автономное общеобразовательное учреждение \"Гуманитарная гимназия-интернат для одаренных детей\"",15577216083,"Адиатуллина","Эделина","Ильназовна","ж","2009-08-20","нет",9,9,119,200,"призер","Да","Сибгатуллин Ришат Тимершаехович","ГАОУ \"Гуманитарная гимназия-интернат для одаренных детей\"","ОБЗР"]
[28,"134003_15622383256_37","Государственное автономное общеобразовательное учреждение \"Гуманитарная гимназия-интернат для одаренных детей\"",15622383256,"Хуззятова","Камиля","Ильназовна","ж","2009-10-02","нет",9,9,132,200,"призер","Да","Сибгатуллин Ришат Тимершаехович","ГАОУ \"Гуманитарная гимназия-интернат для одаренных детей\"","ОБЗР"]
[29,"134003_15542681875_37","Государственное автономное общеобразовательное учреждение \"Гуманитарная гимназия-интернат для одаренных детей\"",15542681875,"Мухаметдинов","Радмир","Ильнарович","м","2009-07-21","нет",9,9,128,200,"призер","Да","Сибгатуллин Ришат Тимершаехович","ГАОУ \"Гуманитарная гимназия-интернат для одаренных детей\"","ОБЗР"]
[30,"134003_15420924240_37","Государственное автономное общеобразовательное учреждение \"Гуманитарная гимназия-интернат для одаренных детей\"",15420924240,"Шавалиева","Замира","Рашитовна","ж","2009-03-05","нет",10,10,130,200,"победитель",null,"Сибгатуллин Ришат Тимершаехович","ГАОУ \"Гуманитарная гимназия-интернат для одаренных детей\"","ОБЗР"]
[31,"134003_15054527442_37","Государственное автономное общеобразовательное учреждение \"Гуманитарная гимназия-интернат для одаренных детей\"",15054527442,"Нугуманова","Диана","Рустамовна","ж","2008-05-11","нет",10,10,119,200,"участник",null,"Сибгатуллин Ришат Тимершаехович","ГАОУ \"Гуманитарная гимназия-интернат для одаренных детей\"","ОБЗР"]

{"sheet":"астрономия","index":3,"n_rows":5,"n_cols":32,"rows_kept":5,"merged":[[0,0,1,0],[0,1,1,1],[0,2,1,2],[0,3,1,3],[0,4,1,4],[0,5,1,5],[0,6,1,6],[0,7,1,7],[0,8,1,8],[0,9,1,9],[0,10,1,10],[0,11,1,11],[0,12,0,17],[0,18,1,18],[0,19,0,24],[0,25,1,25],[0,26,1,26],[0,27,1,27],[0,28,1,28],[0,29,1,29],[0,30,1,30],[0,31,1,31]]}
["№","Код участника","Название ОУ","СНИЛС","Фамилия","Имя","Отчество","Пол","Дата рождения","Участник с ОВЗ","Класс","Класс участия","Вопросы",{"$nulls":5},"Первичный балл","Добавлено по итогам апелляций",{"$nulls":5},"Итоговый балл","Макс. Балл","Статус","Призер муниципального этапа прошлого года","Учитель","Место работы учителя","Предмет"]
[{"$nulls":12},"В1","В2","В3","В4","В5","В6",null,"В1","В2","В3","В4","В5","В6"]
[7,"134003_16130152812_22","ГАОУ \"Гуманитарная гимназия-интернат для одаренных детей\"",16130152812,"Хузин","Айвар","Ниязович","м","2010-07-10","нет",8,8,0,1,2,1,0,1,5,{"$nulls":6},5,48,"участник","нет","Маликова Резеда Тимергазиевна","ГАОУ \"Гуманитарная гимназия-интернат для одаренных детей\"","Астрономия"]
[9,"134003_16168271474_22","ГАОУ \"Гуманитарная гимназия-интернат для одаренных детей\"",16168271474,"Тимершаехов","Раушан","Альфарикович","м","2010-08-02","нет",8,8,1,1,1,1,0,1,5,{"$nulls":6},5,48,"участник","нет","Маликова Резеда Тимергазиевна","ГАОУ \"Гуманитарная гимназия-интернат для одаренных детей\"","Астрономия"]
[10,"134003_17464175689_22","ГАОУ \"Гуманитарная гимназия-интернат для одаренных детей\"",17464175689,"Вафина","Чулпан","Габдулловна","ж","2011-02-07","нет",8,8,1,1,1,0,0,4,7,{"$nulls":6},7,48,"участник","нет","Маликова Резеда Тимергазиевна","ГАОУ \"Гуманитарная гимназия-интернат для одаренных детей\"","Астрономия"]

{"sheet":"английский язык","index":4,"n_rows":46,"n_cols":21,"rows_kept":46}
["№","Код участника","Название ОУ","СНИЛС","Фамилия","Имя","Отчество","Пол","Дата рождения","Участник с ОВЗ","Класс","Класс участия","Первичный балл","Добавлено по итогам аппеляции","Итоговый балл","Макс. балл","Статус","Призер МЭ прошлого года","Учитель","Место работы учителя","Предмет"]
[1,"134003_18100985958_30","ГАОУ \"Гуманитарная гимназия-интернат для одаренных детей\"",{"v":1.8101E10,"d":"1.81E+10"},"Латипова","Ясмина","Назилевна","ж","2014-04-09","нет",4,4,34,null,34,62,"победитель",null,"Ганиева Файруза Филарисовна","ГАОУ \"Гуманитарная гимназия-интернат для одаренных детей\"","Английский язык"]
[2,"134003_15424581357_30","ГАОУ \"Гуманитарная гимназия-интернат для одаренных детей\"",{"v":1.5425E10,"d":"1.54E+10"},"Харисова","Гузель","Ильясовна","ж","2009-04-02","нет",9,9,111,null,111,125,"победитель","Да","Ганиева Файруза Филарисовна","ГАОУ \"Гуманитарная гимназия-интернат для одаренных детей\"","Английский язык"]
[3,"134003_18674174210_30","ГАОУ \"Гуманитарная гимназия-интернат для одаренных детей\"",{"v":1.8674E10,"d":"1.87E+10"},"Бакирова","Айзиля","Рузилевна","ж","2014-12-29","нет",4,4,33,null,33,62,"призер",null,"Ганиева Файруза Филарисовна","ГАОУ \"Гуманитарная гимназия-интернат для одаренных детей\"","Английский язык"]
[4,"134003_17532214854_30","ГАОУ \"Гуманитарная гимназия-интернат для одаренных детей\"",{"v":1.7532E10,"d":"1.75E+10"},"Шайхайдарова","Адиля","Булатовна","ж","2013-01-16","нет",5,5,30,null,30,56,"призер",null,"Темел Румия Данисовна","ГАОУ \"Гуманитарная гимназия-интернат для одаренных детей\"","Английский язык"]
[5,"134003_17586868951_30","ГАОУ \"Гуманитарная гимназия-интернат для одаренных детей\"",{"v":1.7587E10,"d":"1.76E+10"},"Ахмадгалиев","Аяз","Ниязович","м","2013-02-18","нет",5,5,28,null,28,56,"призер",null,"Темел Румия Данисовна","ГАОУ \"Гуманитарная гимназия-интернат для одаренных детей\"","Английский язык"]
[6,"134003_17862933824_30","ГАОУ \"Гуманитарная гимназия-интернат для одаренных детей\"",{"v":1.7863E10,"d":"1.79E+10"},"Миниханова","Лия","Ильмировна","ж","2013-10-14","нет",5,5,31,null,31,56,"призер",null,"Мусина Рузиля Айдаровна","ГАОУ \"Гуманитарная гимназия-интернат для одаренных детей\"","Английский язык"]
[7,"134003_17632680183_30","ГАОУ \"Гуманитарная гимназия-интернат для одаренных детей\"",{"v":1.7633E10,"d":"1.76E+10"},"Мугтазирова","Фарида","Инсафовна","ж","2013-03-25","нет",5,5,29,null,29,56,"призер",null,"Гимранова Сания Мударисовна","ГАОУ \"Гуманитарная гимназия-интернат для одаренных детей\"","Английский язык"]
[8,"134003_17834055083_30","ГАОУ \"Гуманитарная гимназия-интернат для одаренных детей\"",{"v":1.7834E10,"d":"1.78E+10"},"Исламова","Динара","Ленаровна","ж","2013-09-19","нет",5,5,32,null,32,56,"призер",null,"Ганиева Файруза Филарисовна","ГАОУ \"Гуманитарная гимназия-интернат для одаренных детей\"","Английский язык"]
[9,"134003_17573135685_30","ГАОУ \"Гуманитарная гимназия-интернат для одаренных детей\"",{"v":1.7573E10,"d":"1.76E+10"},"Гафуров","Тимур","Анварович","ж","2013-02-22","нет",5,5,41,null,41,56,"призер",null,"Ганиева Файруза Филарисовна","ГАОУ \"Гуманитарная гимназия-интернат для одаренных детей\"","Английский язык"]
[10,"134003_17500170428_30","ГАОУ \"Гуманитарная гимназия-интернат для одаренных детей\"",{"v":1.75E10,"d":"1.75E+10"},"Валиев","Юнус","Ленисович","м","2012-12-16","нет",6,6,35,null,35,56,"призер","Да","Гимранова Сания Мударисовна.","ГАОУ \"Гуманитарная гимназия-интернат для одаренных детей\"","Английский язык"]
[11,"134003_21612057517_30","ГАОУ \"Гуманитарная гимназия-интернат для одаренных детей\"",{"v":2.1612E10,"d":"2.16E+10"},"Салахова","Валерия","Вильдановна","ж","2011-09-20","нет",7,7,65,null,65,95,"призер","Да","Темел Румия Данисовна","ГАОУ \"Гуманитарная гимназия-интернат для одаренных детей\"","Английский язык"]
[12,"134003_16506110432_30","ГАОУ \"Гуманитарная гимназия-интернат для одаренных детей\"",{"v":1.6506E10,"d":"1.65E+10"},"Шакурова","Диляра","Фаварисовна","ж","2011-04-08","нет",7,7,48,null,48,95,"призер",null,"Темел Румия Данисовна","ГАОУ \"Гуманитарная гимназия-интернат для одаренных детей\"","Английский язык"]
[13,"134003_16407940673_30","ГАОУ \"Гуманитарная гимназия-интернат для одаренных детей\"",{"v":1.6408E10,"d":"1.64E+10"},"Исламова","Камила","Эдуардовна","ж","2011-02-03","нет",7,7,69,null,69,95,"призер",null,"Гимранова Сания Мударисовна.","ГАОУ \"Гуманитарная гимназия-интернат для одаренных детей\"","Английский язык"]
[14,"134003_17292121963_30","ГАОУ \"Гуманитарная гимназия-интернат для одаренных детей\"",{"v":1.7292E10,"d":"1.73E+10"},"Гильметдинова","Тансылу","Маратовна","ж","2011-04-03","нет",7,7,73,null,73,95,"призер","Да","Гимранова Сания Мударисовна.","ГАОУ \"Гуманитарная гимназия-интернат для одаренных детей\"","Английский язык"]
[15,"134003_17145014435_30","ГАОУ \"Гуманитарная гимназия-интернат для одаренных детей\"",{"v":1.7145E10,"d":"1.71E+10"},"Галиев","Самир","Сиринатович","м","2011-07-05","нет",7,7,66,null,66,95,"призер",null,"Гимранова Сания Мударисовна.","ГАОУ \"Гуманитарная гимназия-интернат для одаренных детей\"","Английский язык"]
[16,"134003_15415018026_30","ГАОУ \"Гуманитарная гимназия-интернат для одаренных детей\"",{"v":1.5415E10,"d":"1.54E+10"},"Закирова","Камила","Риназовна","ж","2009-03-27","нет",9,9,88,null,88,125,"призер","Да","Ганиева Файруза Филарисовна","ГАОУ \"Гуманитарная гимназия-интернат для одаренных детей\"","Английский язык"]
[17,"134003_15762308374_30","ГАОУ \"Гуманитарная гимназия-интернат для одаренных детей\"",{"v":1.5762E10,"d":"1.58E+10"},"Шакирова","Лиана","Ильгамовна","ж","2008-05-22","нет",10,10,107,null,107,125,"призер","Да","Ганиева Файруза Филарисовна","ГАОУ \"Гуманитарная гимназия-интернат для одаренных детей\"","Английский язык"]
[18,"134003_16052469149_30","ГАОУ \"Гуманитарная гимназия-интернат для одаренных детей\"",{"v":1.6052E10,"d":"1.61E+10"},"Мухаметдинова","Эльвина","Ураловна","ж","2007-04-25","нет",11,11,87,null,87,125,"призер","Да","Ганиева Файруза Филарисовна","ГАОУ \"Гуманитарная гимназия-интернат для одаренных детей\"","Английский язык"]
[19,"134003_16063158446_30","ГАОУ \"Гуманитарная гимназия-интернат для одаренных детей\"",{"v":1.6063E10,"d":"1.61E+10"},"Ибрагимова","Алия","Ильгамовна","ж","2007-09-27","нет",11,11,90,null,90,125,"призер",null,"Ганиева Файруза Филарисовна","ГАОУ \"Гуманитарная гимназия-интернат для одаренных детей\"","Английский язык"]
[20,"134003_17866568039_30","ГАОУ \"Гуманитарная гимназия-интернат для одаренных детей\"",{"v":1.7867E10,"d":"1.79E+10"},"Миназев","Рамазан","Алмазович","м","2013-10-04","нет",4,4,11,null,11,62,"участник",null,"Мусина Рузиля Айдаровна","ГАОУ \"Гуманитарная гимназия-интернат для одаренных детей\"","Английский язык"]
[21,"134003_17988585674_30","ГАОУ \"Гуманитарная гимназия-интернат для одаренных детей\"",{"v":1.7989E10,"d":"1.80E+10"},"Гафуров","Зиннур","Ильгизович","м","2014-01-15","нет",4,4,8,null,8,62,"участник",null,"Мусина Рузиля Айдаровна","ГАОУ \"Гуманитарная гимназия-интернат для одаренных детей\"","Английский язык"]
[22,"134003_18055914680_30","ГАОУ \"Гуманитарная гимназия-интернат для одаренных детей\"",{"v":1.8056E10,"d":"1.81E+10"},"Шайхразиева","Айлина","Рузилевна","ж","2014-03-08","нет",4,4,6,null,6,62,"участник",null,"Мусина Рузиля Айдаровна","ГАОУ \"Гуманитарная гимназия-интернат для одаренных детей\"","Английский язык"]
[23,"134003_18154647079_30","ГАОУ \"Гуманитарная гимназия-интернат для одаренных детей\"",{"v":1.8155E10,"d":"1.82E+10"},"Шайхутдинов","Газиз","Айдарович","м","2013-05-09","нет",4,4,21,null,21,62,"участник",null,"Мусина Рузиля Айдаровна","ГАОУ \"Гуманитарная гимназия-интернат для одаренных детей\"","Английский язык"]
[24,"134003_17947344825_30","ГАОУ \"Гуманитарная гимназия-интернат для одаренных детей\"",{"v":1.7947E10,"d":"1.79E+10"},"Шарипов","Бахтияр","Ленарович","м","2013-12-11","нет",5,5,21,null,21,56,"участник",null,"Темел Румия Данисовна","ГАОУ \"Гуманитарная гимназия-интернат для одаренных детей\"","Английский язык"]
[25,"134003_17586869044_30","ГАОУ \"Гуманитарная гимназия-интернат для одаренных детей\"",{"v":1.7587E10,"d":"1.76E+10"},"Ахмадгалиев","Раяз","Ниязович","м","2013-02-18","нет",5,5,25,null,25,56,"участник",null,"Темел Румия Данисовна","ГАОУ \"Гуманитарная гимназия-интернат для одаренных детей\"","Английский язык"]
[26,"134003_17395692725_30","ГАОУ \"Гуманитарная гимназия-интернат для одаренных детей\"",{"v":1.7396E10,"d":"1.74E+10"},"Зайнуллин","Алмаз","Алгенатович","м","2013-09-12","нет",5,5,26,null,26,56,"участник",null,"Темел Румия Данисовна","ГАОУ \"Гуманитарная гимназия-интернат для одаренных детей\"","Английский язык"]
[27,"134003_17645758821_30","ГАОУ \"Гуманитарная гимназия-интернат для одаренных детей\"",{"v":1.7646E10,"d":"1.76E+10"},"Хабибуллина","Залия","Айратовна","ж","2013-04-06","нет",5,5,23,null,23,56,"участник",null,"Мусина Рузиля Айдаровна","ГАОУ \"Гуманитарная гимназия-интернат для одаренных детей\"","Английский язык"]
[28,"134003_17730602665_30","ГАОУ \"Гуманитарная гимназия-интернат для одаренных детей\"",{"v":1.7731E10,"d":"1.77E+10"},"Миниханова","Ралина","Ильвировна","ж","2013-06-09","нет",5,5,20,null,20,56,"участник",null,"Мусина Рузиля Айдаровна","ГАОУ \"Гуманитарная гимназия-интернат для одаренных детей\"","Английский язык"]
[29,"134003_17910752787_30","ГАОУ \"Гуманитарная гимназия-интернат для одаренных детей\"",{"v":1.7911E10,"d":"1.79E+10"},"Усманов","Арслан","Русланович","м","2013-11-15","нет",5,5,26,null,26,56,"участник",null,"Ганиева Файруза Филарисовна","ГАОУ \"Гуманитарная гимназия-интернат для одаренных детей\"","Английский язык"]
[30,"134003_17431741562_30","ГАОУ \"Гуманитарная гимназия-интернат для одаренных детей\"",{"v":1.7432E10,"d":"1.74E+10"},"Салихзянова","Алина","Айдаровна","ж","2012-10-19","нет",5,5,23,null,23,56,"участник",null,"Ганиева Файруза Филарисовна","ГАОУ \"Гуманитарная гимназия-интернат для одаренных детей\"","Английский язык"]
[31,"134003_17395692321_30","ГАОУ \"Гуманитарная гимназия-интернат для одаренных детей\"",{"v":1.7396E10,"d":"1.74E+10"},"Сафиуллин","Амир","Русланович","ж","2012-09-26","нет",5,5,23,null,23,56,"участник",null,"Ганиева Файруза Филарисовна","ГАОУ \"Гуманитарная гимназия-интернат для одаренных детей\"","Английский язык"]
[32,"134003_16351550350_30","ГАОУ \"Гуманитарная гимназия-интернат для одаренных детей\"",{"v":1.6352E10,"d":"1.64E+10"},"Шарифуллина","Адиля","Фаилевна","ж","2011-06-14","нет",7,7,33,null,33,95,"участник",null,"Темел Румия Данисовна","ГАОУ \"Гуманитарная гимназия-интернат для одаренных детей\"","Английский язык"]
[33,"134003_16805185378_30","ГАОУ \"Гуманитарная гимназия-интернат для одаренных детей\"",{"v":1.6805E10,"d":"1.68E+10"},"Харисова","Адиля","Ильфатовна","ж","2011-01-14","нет",7,7,35,null,35,95,"участник",null,"Темел Румия Данисовна","ГАОУ \"Гуманитарная гимназия-интернат для одаренных детей\"","Английский язык"]
[34,"134003_16430183137_30","ГАОУ \"Гуманитарная гимназия-интернат для одаренных детей\"",{"v":1.643E10,"d":"1.64E+10"},"Маликов","Раяз","Ильназович","м","2011-02-21","нет",7,7,42,null,42,95,"участник",null,"Темел Румия Данисовна","ГАОУ \"Гуманитарная гимназия-интернат для одаренных детей\"","Английский язык"]
[35,"134003_16948542018_30","ГАОУ \"Гуманитарная гимназия-интернат для одаренных детей\"",{"v":1.6949E10,"d":"1.69E+10"},"Шайхайдарова","Лиана","Виловна","ж","2010-12-15","нет",7,7,42,null,42,95,"участник",null,"Темел Румия Данисовна","ГАОУ \"Гуманитарная гимназия-интернат для одаренных детей\"","Английский язык"]
[36,"134003_16364655688_30","ГАОУ \"Гуманитарная гимназия-интернат для одаренных детей\"",{"v":1.6365E10,"d":"1.64E+10"},"Шайхайдарова","Амина","Булатовна","ж","2011-11-09","нет",7,7,39,null,39,95,"участник",null,"Темел Румия Данисовна","ГАОУ \"Гуманитарная гимназия-интернат для одаренных детей\"","Английский язык"]
[37,"134003_16375720179_30","ГАОУ \"Гуманитарная гимназия-интернат для одаренных детей\"",{"v":1.6376E10,"d":"1.64E+10"},"Шайхуллина","Зиля","Расиховна","ж","2011-01-19","нет",7,7,8,null,8,95,"участник",null,"Мусина Рузиля Айдаровна","ГАОУ \"Гуманитарная гимназия-интернат для одаренных детей\"","Английский язык"]
[38,"134003_15724110339_30","ГАОУ \"Гуманитарная гимназия-интернат для одаренных детей\"",{"v":1.5724E10,"d":"1.57E+10"},"Авзалова","Амелия","Радиславовна","ж","2009-12-10","нет",9,9,70,null,70,125,"участник","Да","Ганиева Файруза Филарисовна","ГАОУ \"Гуманитарная гимназия-интернат для одаренных детей\"","Английский язык"]
[39,"134003_15739242387_30","ГАОУ \"Гуманитарная гимназия-интернат для одаренных детей\"",{"v":1.5739E10,"d":"1.57E+10"},"Фахразиев","Раяз","Камилевич","ж","2009-02-17","нет",9,9,61,null,61,125,"участник",null,"Ганиева Файруза Филарисовна","ГАОУ \"Гуманитарная гимназия-интернат для одаренных детей\"","Английский язык"]
[40,"134003_15560623661_30","ГАОУ \"Гуманитарная гимназия-интернат для одаренных детей\"",{"v":1.5561E10,"d":"1.56E+10"},"Бикимова","Камила","Юлаевна","ж","2009-08-02","нет",9,9,81,null,81,125,"участник",null,"Ганиева Файруза Филарисовна","ГАОУ \"Гуманитарная гимназия-интернат для одаренных детей\"","Английский язык"]
[41,"134003_15449132466_30","ГАОУ \"Гуманитарная гимназия-интернат для одаренных детей\"",{"v":1.5449E10,"d":"1.54E+10"},"Хафизова","Эвелина","Эльвировна","ж","2009-04-23","нет",9,9,63,null,63,125,"участник",null,"Ганиева Файруза Филарисовна","ГАОУ \"Гуманитарная гимназия-интернат для одаренных детей\"","Английский язык"]
[42,"134003_16063156644_30","ГАОУ \"Гуманитарная гимназия-интернат для одаренных детей\"",{"v":1.6063E10,"d":"1.61E+10"},"Галиев","Камиль","Ильнурович","ж","2008-09-20","нет",10,10,71,null,71,125,"участник",null,"Ганиева Файруза Филарисовна","ГАОУ \"Гуманитарная гимназия-интернат для одаренных детей\"","Английский язык"]
[43,"134003_16052468854_30","ГАОУ \"Гуманитарная гимназия-интернат для одаренных детей\"",{"v":1.6052E10,"d":"1.61E+10"},"Мингазова","Нурзиля","Ринатовна","ж","2007-02-15","нет",11,11,62,null,62,125,"участник",null,"Ганиева Файруза Филарисовна","ГАОУ \"Гуманитарная гимназия-интернат для одаренных детей\"","Английский язык"]
[44,"134003_17908261802_30","ГАОУ \"Гуманитарная гимназия-интернат для одаренных детей\"",{"v":1.7908E10,"d":"1.79E+10"},"Ханов","Рузаль","Раифович","ж","2007-10-15","нет",11,11,81,null,81,125,"участник",null,"Ганиева Файруза Филарисовна","ГАОУ \"Гуманитарная гимназия-интернат для одаренных детей\"","Английский язык"]
[45,"134003_16052466951_30","ГАОУ \"Гуманитарная гимназия-интернат для одаренных детей\"",{"v":1.6052E10,"d":"1.61E+10"},"Газизов","Амир","Ленарович","ж","2007-05-11","нет",11,11,70,null,70,125,"участник",null,"Ганиева Файруза Филарисовна","ГАОУ \"Гуманитарная гимназия-интернат для одаренных детей\"","Английский язык"]

{"sheet":"всерос литра (3)","index":5,"n_rows":30,"n_cols":21,"rows_kept":30}
["№","Код участника","Название ОУ","СНИЛС","Фамилия","Имя","Отчество","Пол","Дата рождения","Участник с ОВЗ","Класс","Класс участия","Балл","Добавлено баллов по итогам аппеляции","Итоговый балл","Макс. балл","Статус","Призер МЭ прошлого года","Учитель","Место работы учителя","Предмет"]
[1,"134003_16948543222_2","ГАОУ \"Гуманитарная гимназия-интернат для одаренных детей\"",16948543222,"Марданова","Азалия","Ильнуровна","ж","2011-11-30","нет",7,7,65,null,65,100,"победитель",null,"Рафикова Резеда Шамилевна","ГАОУ \"Гуманитарная гимназия-интернат для одаренных детей\"","Литература"]
[2,"134003_17464175689_2","ГАОУ \"Гуманитарная гимназия-интернат для одаренных детей\"",17464175689,"Вафина","Чулпан","Габдулловна","ж","2011-02-07","нет",8,8,85,null,85,100,"победитель","Да","Рафикова Резеда Шамилевна","ГАОУ \"Гуманитарная гимназия-интернат для одаренных детей\"","Литература"]
[3,"134003_15773152784_2","ГАОУ \"Гуманитарная гимназия-интернат для одаренных детей\"",15773152784,"Шакирова","Резеда","Рашитовна","ж","2009-02-09","нет",9,9,89,null,89,100,"победитель","Да","Рафикова Резеда Шамилевна","ГАОУ \"Гуманитарная гимназия-интернат для одаренных детей\"","Литература"]
[4,"134003_15769763433_2","ГАОУ \"Гуманитарная гимназия-интернат для одаренных детей\"",15769763433,"Сарварова","Язиля","Ильшатовна","ж","2008-09-14","нет",10,10,91,null,91,100,"победитель","Да","Рафикова Резеда Шамилевна","ГАОУ \"Гуманитарная гимназия-интернат для одаренных детей\"","Литература"]
[5,"134003_16948542018_2","ГАОУ \"Гуманитарная гимназия-интернат для одаренных детей\"",16948542018,"Шайхайдарова","Лиана","Виловна","ж","2011-10-26","нет",7,7,56,null,56,100,"призер",null,"Нурыева Ирина Альбиновна","ГАОУ \"Гуманитарная гимназия-интернат для одаренных детей\"","Литература"]
[6,"134003_16775529217_2","ГАОУ \"Гуманитарная гимназия-интернат для одаренных детей\"",16775529217,"Имамова","Милана","Рамилевна","ж","2011-07-31","нет",7,7,58,null,58,100,"призер",null,"Нурыева Ирина Альбиновна","ГАОУ \"Гуманитарная гимназия-интернат для одаренных детей\"","Литература"]
[7,"134003_17292121963_2","ГАОУ \"Гуманитарная гимназия-интернат для одаренных детей\"",17292121963,"Гильметдинова","Тансылу","Маратовна","ж","2011-04-03","нет",7,7,62,null,62,100,"призер",null,"Нурыева Ирина Альбиновна","ГАОУ \"Гуманитарная гимназия-интернат для одаренных детей\"","Литература"]
[8,"134003_16084894798_2","ГАОУ \"Гуманитарная гимназия-интернат для одаренных детей\"",16084894798,"Галиуллина","Ильфина","Филусовна","ж","2010-06-11","нет",8,8,82,null,82,100,"призер","Да","Рафикова Резеда Шамилевна","ГАОУ \"Гуманитарная гимназия-интернат для одаренных детей\"","Литература"]
[9,"134003_15734200851_2","ГАОУ \"Гуманитарная гимназия-интернат для одаренных детей\"",15734200851,"Ягофаров","Хасан","Русланович","ж","2010-01-19","нет",8,8,57,null,57,100,"призер",null,"Рафикова Резеда Шамилевна","ГАОУ \"Гуманитарная гимназия-интернат для одаренных детей\"","Литература"]
[10,"134003_16125730946_2","ГАОУ \"Гуманитарная гимназия-интернат для одаренных детей\"",16125730946,"Хусаенова","Ясмина","Нуровна","ж","2010-07-01","нет",8,8,83,null,83,100,"призер",null,"Рафикова Резеда Шамилевна","ГАОУ \"Гуманитарная гимназия-интернат для одаренных детей\"","Литература"]
[11,"134003_16119708058_2","ГАОУ \"Гуманитарная гимназия-интернат для одаренных детей\"",16119708058,"Гафурова","Руфина","Робертовна","ж","2010-07-03","нет",8,8,80,null,80,100,"призер",null,"Рафикова Резеда Шамилевна","ГАОУ \"Гуманитарная гимназия-интернат для одаренных детей\"","Литература"]
[12,"134003_15449132466_2","ГАОУ \"Гуманитарная гимназия-интернат для одаренных детей\"",15449132466,"Хафизова","Эвелина","Ильвировна","ж","2009-04-23","нет",9,9,82,null,82,100,"призер","Да","Нурыева Ирина Альбиновна","ГАОУ \"Гуманитарная гимназия-интернат для одаренных детей\"","Литература"]
[13,"134003_15577216083_2","ГАОУ \"Гуманитарная гимназия-интернат для одаренных детей\"",15577216083,"Адиятуллина","Эделина","Ильназовна","ж","2009-08-20","нет",9,9,79,null,79,100,"призер","Да","Нурыева Ирина Альбиновна","ГАОУ \"Гуманитарная гимназия-интернат для одаренных детей\"","Литература"]
[14,"134003_16863979340_2","ГАОУ \"Гуманитарная гимназия-интернат для одаренных детей\"",16863979340,"Рафикова","Руфина","Рустямовна","ж","2009-08-31","нет",9,9,72,null,72,100,"призер",null,"Нурыева Ирина Альбиновна","ГАОУ \"Гуманитарная гимназия-интернат для одаренных детей\"","Литература"]
[15,"134003_15724110339_2","ГАОУ \"Гуманитарная гимназия-интернат для одаренных детей\"",15724110339,"Авзалова","Амелия","Радиславовна","ж","2009-12-10","нет",9,9,85,null,85,100,"призер","Да","Рафикова Резеда Шамилевна","ГАОУ \"Гуманитарная гимназия-интернат для одаренных детей\"","Литература"]
[16,"134003_15527690788_2","ГАОУ \"Гуманитарная гимназия-интернат для одаренных детей\"",15527690788,"Ильясова","Эндже","Илнуровна","ж","2009-06-20","нет",9,9,84,null,84,100,"призер",null,"Рафикова Резеда Шамилевна","ГАОУ \"Гуманитарная гимназия-интернат для одаренных детей\"","Литература"]
[17,"134003_16364655688_2","ГАОУ \"Гуманитарная гимназия-интернат для одаренных детей\"",16364655688,"Шайхайдарова","Амина","Булатовна","ж","2010-12-15","нет",7,7,33,null,33,100,"участник",null,"Нурыева Ирина Альбиновна","ГАОУ \"Гуманитарная гимназия-интернат для одаренных детей\"","Литература"]
[18,"134003_16823996215_2","ГАОУ \"Гуманитарная гимназия-интернат для одаренных детей\"",16823996215,"Ахметшина","Амалия","Альбертовна","ж","2011-09-20","нет",7,7,31,null,31,100,"участник",null,"Нурыева Ирина Альбиновна","ГАОУ \"Гуманитарная гимназия-интернат для одаренных детей\"","Литература"]
[19,"134003_16506110432_2","ГАОУ \"Гуманитарная гимназия-интернат для одаренных детей\"",16506110432,"Шакурова","Диляра","Фаварисовна","ж","2011-04-03","нет",7,7,23,null,23,100,"участник",null,"Нурыева Ирина Альбиновна","ГАОУ \"Гуманитарная гимназия-интернат для одаренных детей\"","Литература"]
[20,"134003_16375720179_2","ГАОУ \"Гуманитарная гимназия-интернат для одаренных детей\"",16375720179,"Шайхуллина","Зиля","Расиховна","ж","2011-01-19","нет",7,7,35,null,35,100,"участник",null,"Рафикова Резеда Шамилевна","ГАОУ \"Гуманитарная гимназия-интернат для одаренных детей\"","Литература"]
[21,"134003_16850673700_2","ГАОУ \"Гуманитарная гимназия-интернат для одаренных детей\"",16850673700,"Миргаязова","Алия","Ильхамовна","ж","2011-09-20","нет",7,7,27,null,27,100,"участник",null,"Рафикова Резеда Шамилевна","ГАОУ \"Гуманитарная гимназия-интернат для одаренных детей\"","Литература"]
[22,"134003_17061138135_2","ГАОУ \"Гуманитарная гимназия-интернат для одаренных детей\"",17061138135,"Хуснетдинова","Нурзия","Ильназовна","ж","2012-02-22","нет",7,7,37,null,37,100,"участник",null,"Рафикова Резеда Шамилевна","ГАОУ \"Гуманитарная гимназия-интернат для одаренных детей\"","Литература"]
[23,"134003_16781001565_2","ГАОУ \"Гуманитарная гимназия-интернат для одаренных детей\"",16781001565,"Гайнетдинова","Анжелина","Ильдаровна","ж","2011-07-26","нет",7,7,37,null,37,100,"участник",null,"Рафикова Резеда Шамилевна","ГАОУ \"Гуманитарная гимназия-интернат для одаренных детей\"","Литература"]
[24,"134003_17083579187_2","ГАОУ \"Гуманитарная гимназия-интернат для одаренных детей\"",17083579187,"Садыков","Денис","Ильназович","ж","2012-01-16","нет",7,7,29,null,29,100,"участник",null,"Рафикова Резеда Шамилевна","ГАОУ \"Гуманитарная гимназия-интернат для одаренных детей\"","Литература"]
[25,"134003_15966040190_2","ГАОУ \"Гуманитарная гимназия-интернат для одаренных детей\"",15966040190,"Рашитова","Марьям","Ильфаковна","ж","2010-05-07","нет",8,8,28,null,28,100,"участник",null,"Нурыева Ирина Альбиновна","ГАОУ \"Гуманитарная гимназия-интернат для одаренных детей\"","Литература"]
[26,"134003_16136211529_2","ГАОУ \"Гуманитарная гимназия-интернат для одаренных детей\"",16136211529,"Загертдинова","Эльвина","Илшатовна","ж","2009-10-09","нет",8,8,34,null,34,100,"участник","Да","Рафикова Резеда Шамилевна","ГАОУ \"Гуманитарная гимназия-интернат для одаренных детей\"","Литература"]
[27,"134003_15724672987_2","ГАОУ \"Гуманитарная гимназия-интернат для одаренных детей\"",15724672987,"Шарипова","Айзиля","Риназовна","ж","2010-01-16","нет",8,8,19,null,19,100,"участник",null,"Рафикова Резеда Шамилевна","ГАОУ \"Гуманитарная гимназия-интернат для одаренных детей\"","Литература"]
[28,"134003_16255346869_2","ГАОУ \"Гуманитарная гимназия-интернат для одаренных детей\"",16255346869,"Юрьева","Анастасия","Витальевна","ж","2010-09-18","нет",8,8,35,null,35,100,"участник","Да","Рафикова Резеда Шамилевна","ГАОУ \"Гуманитарная гимназия-интернат для одаренных детей\"","Литература"]
[29,"134003_15872790717_2","ГАОУ \"Гуманитарная гимназия-интернат для одаренных детей\"",15872790717,"Валиев","Вильдан","Фаридович","м","2008-02-12","нет",11,11,46,null,46,100,"участник","Да","Шагзамова Энже Фирдвисовна","ГАОУ \"Гуманитарная гимназия-интернат для одаренных детей\"","Литература"]

{"sheet":"МХК","index":6,"n_rows":19,"n_cols":21,"rows_kept":19}
["№","Код участника","Название ОУ","СНИЛС","Фамилия","Имя","Отчество","Пол","Дата рождения","Участник с ОВЗ","Класс","Класс участия","Первичный балл","Добавлено по итогам аппеляции","Итоговый балл","Макс. балл","Статус","Призер МЭ прошлого года","Учитель","Место работы учителя","Предмет"]
[4,"134003_16506110432_33","ГАОУ \"Гуманитарная гимназия-интернат для одаренных детей\"",{"v":1.6506E10,"d":"1.65E+10"},"Шакурова","Диляра","Фаварисовна","ж","2011-04-08","нет",7,7,46,null,46,130,"участник",null,"Абдуллина Миляуша Магьсумовна","ГАОУ \"Гуманитарная гимназия-интернат для одаренных детей\"","Искусство (МХК)"]
[5,"134003_17078377699_33","ГАОУ \"Гуманитарная гимназия-интернат для одаренных детей\"",{"v":1.7078E10,"d":"1.71E+10"},"Мухаметдинова","Раина","Ралифовна","ж","2011-12-17","нет",7,7,49,null,49,130,"участник",null,"Абдуллина Миляуша Магьсумовна","ГАОУ \"Гуманитарная гимназия-интернат для одаренных детей\"","Искусство (МХК)"]
[6,"134003_16922983006_33","ГАОУ \"Гуманитарная гимназия-интернат для одаренных детей\"",{"v":1.6923E10,"d":"1.69E+10"},"Хафизова","Азалия","Алмазовна","ж","2011-11-09","нет",7,7,50,null,50,130,"участник",null,"Абдуллина Миляуша Магьсумовна","ГАОУ \"Гуманитарная гимназия-интернат для одаренных детей\"","Искусство (МХК)"]
[7,"134003_16775529217_33","ГАОУ \"Гуманитарная гимназия-интернат для одаренных детей\"",{"v":1.6776E10,"d":"1.68E+10"},"Имамова","Милана","Рамилевна","ж","2011-07-31","нет",7,7,55,null,55,130,"участник",null,"Абдуллина Миляуша Магьсумовна","ГАОУ \"Гуманитарная гимназия-интернат для одаренных детей\"","Искусство (МХК)"]
[8,"134003_16351550350_33","ГАОУ \"Гуманитарная гимназия-интернат для одаренных детей\"",{"v":1.6352E10,"d":"1.64E+10"},"Шарифуллина","Адиля","Фаилевна","ж","1712.2.010","нет",7,7,56,null,56,130,"участник",null,"Абдуллина Миляуша Магьсумовна","ГАОУ \"Гуманитарная гимназия-интернат для одаренных детей\"","Искусство (МХК)"]
[9,"134003_16948542018_33","ГАОУ \"Гуманитарная гимназия-интернат для одаренных детей\"",{"v":1.6949E10,"d":"1.69E+10"},"Шайхайдарова","Лиана","Виловна","ж","2011-10-26","нет",7,7,65,null,65,130,"призер",null,"Абдуллина Миляуша Магьсумовна","ГАОУ \"Гуманитарная гимназия-интернат для одаренных детей\"","Искусство (МХК)"]
[11,"134003_16119708058_33","ГАОУ \"Гуманитарная гимназия-интернат для одаренных детей\"",{"v":1.612E10,"d":"1.61E+10"},"Гафурова","Руфина","Робертовна","ж","2010-07-03","нет",8,8,88,null,88,130,"победитель",null,"Абдуллина Миляуша Магьсумовна","ГАОУ \"Гуманитарная гимназия-интернат для одаренных детей\"","Искусство (МХК)"]
[13,"134003_15637704483_33","ГАОУ \"Гуманитарная гимназия-интернат для одаренных детей\"",{"v":1.5638E10,"d":"1.56E+10"},"Саяпова","Аделина","Алмазовна","ж","2009-10-15","нет",8,8,82,null,82,130,"призер",null,"Абдуллина Миляуша Магьсумовна","ГАОУ \"Гуманитарная гимназия-интернат для одаренных детей\"","Искусство (МХК)"]
[14,"134003_15675471197_33","ГАОУ \"Гуманитарная гимназия-интернат для одаренных детей\"",{"v":1.5675E10,"d":"1.57E+10"},"Ахмадгалиева","Зилия","Ниязовна","ж","2009-11-27","нет",8,8,81,null,81,130,"участник",null,"Абдуллина Миляуша Магьсумовна","ГАОУ \"Гуманитарная гимназия-интернат для одаренных детей\"","Искусство (МХК)"]
[24,"134003_16863979340_33","ГАОУ \"Гуманитарная гимназия-интернат для одаренных детей\"",{"v":1.6864E10,"d":"1.69E+10"},"Рафикова","Руфина","Рустамовна","ж","2009-08-31","нет",9,9,87,null,87,170,"призер",null,"Абдуллина Миляуша Магьсумовна","ГАОУ \"Гуманитарная гимназия-интернат для одаренных детей\"","Искусство (МХК)"]
[25,"134003_15431903546_33","ГАОУ \"Гуманитарная гимназия-интернат для одаренных детей\"",{"v":1.5432E10,"d":"1.54E+10"},"Шамсиева","Эльза","Динаровна","ж","2009-04-11","нет",9,9,56,null,56,170,"участник",null,"Абдуллина Миляуша Магьсумовна","ГАОУ \"Гуманитарная гимназия-интернат для одаренных детей\"","Искусство (МХК)"]
[26,"134003_15724110339_33","ГАОУ \"Гуманитарная гимназия-интернат для одаренных детей\"",{"v":1.5724E10,"d":"1.57E+10"},"Авзалова","Амелия","Радиславовна","ж","2009-12-10","нет",9,9,86,null,86,170,"призер",null,"Абдуллина Миляуша Магьсумовна","ГАОУ \"Гуманитарная гимназия-интернат для одаренных детей\"","Искусство (МХК)"]
[27,"134003_15773152784_33","ГАОУ \"Гуманитарная гимназия-интернат для одаренных детей\"",{"v":1.5773E10,"d":"1.58E+10"},"Шакирова","Резеда","Рашитовна","ж","2009-02-09","нет",9,9,91,null,91,170,"победитель",null,"Абдуллина Миляуша Магьсумовна","ГАОУ \"Гуманитарная гимназия-интернат для одаренных детей\"","Искусство (МХК)"]
[28,"134003_15740980687_33","ГАОУ \"Гуманитарная гимназия-интернат для одаренных детей\"",{"v":1.5741E10,"d":"1.57E+10"},"Зайдуллин","Искандер","Ильясович","м","2009-02-21","нет",9,9,89,null,89,170,"призер","Да","Абдуллина Миляуша Магьсумовна","ГАОУ \"Гуманитарная гимназия-интернат для одаренных детей\"","Искусство (МХК)"]
[32,"134003_15900553860_33","ГАОУ \"Гуманитарная гимназия-интернат для одаренных детей\"",{"v":1.5901E10,"d":"1.59E+10"},"Шайгаллямова","Назиля","Фирдависовна","ж","2008-07-09","нет",10,10,50,null,50,185,"участник",null,"Абдуллина Миляуша Магьсумовна","ГАОУ \"Гуманитарная гимназия-интернат для одаренных детей\"","Искусство (МХК)"]
[33,"134003_15081715345_33","ГАОУ \"Гуманитарная гимназия-интернат для одаренных детей\"",{"v":1.5082E10,"d":"1.51E+10"},"Асхадуллин","Азамат","Азатович","м","2008-05-04","нет",10,10,40,null,40,185,"участник",null,"Абдуллина Миляуша Магьсумовна","ГАОУ \"Гуманитарная гимназия-интернат для одаренных детей\"","Искусство (МХК)"]
[34,"134003_15092191651_33","ГАОУ \"Гуманитарная гимназия-интернат для одаренных детей\"",{"v":1.5092E10,"d":"1.51E+10"},"Фардиева","Илина","Рависовна","ж","2008-02-17","нет",11,11,179,null,179,210,"победитель","Да","Абдуллина Миляуша Магьсумовна","ГАОУ \"Гуманитарная гимназия-интернат для одаренных детей\"","Искусство (МХК)"]
[35,"134003_15836271588_33","ГАОУ \"Гуманитарная гимназия-интернат для одаренных детей\"",{"v":1.5836E10,"d":"1.58E+10"},"Амирханов","Ильнур","Инсафович","м","2007-10-26","нет",11,11,122,null,122,210,"участник",null,"Абдуллина Миляуша Магьсумовна","ГАОУ \"Гуманитарная гимназия-интернат для одаренных детей\"","Искусство (МХК)"]

{"sheet":"русский всерос","index":7,"n_rows":57,"n_cols":21,"rows_kept":57}
["№","Код участника","Название ОУ","СНИЛС","Фамилия","Имя","Отчество","Пол","Дата рождения","Участник с ОВЗ","Класс","Класс участия","Первичный балл","Добавлено по итогам аппеляции","Итоговый балл","Макс. балл","Статус","Призер МЭ прошлого года","Учитель","Место работы учителя","Предмет"]
[17,"134003_18554874320_39","ГАОУ \"Гуманитарная гимназия-интернат для одаренных детей\"",{"v":1.855E10,"d":"1.86E+10"},"Адиятуллина","Рубина","Ильназовна","ж","2014-10-20","нет",4,4,24,null,24,65,"участник","нет","Муллаярова Сумая Талгатовна","ГАОУ \"Гуманитарная гимназия-интернат для одаренных детей\"","Русский язык"]
[18,"134003_18674174210_39","ГАОУ \"Гуманитарная гимназия-интернат для одаренных детей\"",{"v":1.867E10,"d":"1.87E+10"},"Бакирова","Айзиля","Рузилевна","ж","2014-12-29","нет",4,4,15,null,15,65,"участник","нет","Муллаярова Сумая Талгатовна","ГАОУ \"Гуманитарная гимназия-интернат для одаренных детей\"","Русский язык"]
[19,"134003_18114976175_39","ГАОУ \"Гуманитарная гимназия-интернат для одаренных детей\"",{"v":1.811E10,"d":"1.81E+10"},"Гарипова","Диана","Ильдусовна","ж","2014-04-19","нет",4,4,14,null,14,65,"участник","нет","Муллаярова Сумая Талгатовна","ГАОУ \"Гуманитарная гимназия-интернат для одаренных детей\"","Русский язык"]
[20,"134003_17981249926_39","ГАОУ \"Гуманитарная гимназия-интернат для одаренных детей\"",{"v":1.798E10,"d":"1.80E+10"},"Шарипова","Румия","Наилевна","ж","2013-12-30","нет",4,4,15,null,15,65,"участник","нет","Муллаярова Сумая Талгатовна","ГАОУ \"Гуманитарная гимназия-интернат для одаренных детей\"","Русский язык"]
[21,"134003_17981249825_39","ГАОУ \"Гуманитарная гимназия-интернат для одаренных детей\"",{"v":1.798E10,"d":"1.80E+10"},"Вагизов","Ильяс","Ильдарович","м","2014-12-06","нет",4,4,10,null,10,65,"участник","нет","Шайхуллина Светлана Рифовна","ГАОУ \"Гуманитарная гимназия-интернат для одаренных детей\"","Русский язык"]
[22,"134003_18780147100_39","ГАОУ \"Гуманитарная гимназия-интернат для одаренных детей\"",{"v":1.878E10,"d":"1.88E+10"},"Габдулгалиева","Камила","Линаровна","ж","2015-03-06","нет",4,4,14,null,14,65,"участник","нет","Шайхуллина Светлана Рифовна","ГАОУ \"Гуманитарная гимназия-интернат для одаренных детей\"","Русский язык"]
[23,"134003_17866568039_39","ГАОУ \"Гуманитарная гимназия-интернат для одаренных детей\"",{"v":1.787E10,"d":"1.79E+10"},"Миназев","Рамазан","Алмазович","м","2013-10-04","нет",4,4,20,null,20,65,"участник","нет","Шайхуллина Светлана Рифовна","ГАОУ \"Гуманитарная гимназия-интернат для одаренных детей\"","Русский язык"]
[24,"134003_18055914680_39","ГАОУ \"Гуманитарная гимназия-интернат для одаренных детей\"",{"v":1.81E10,"d":"1.81E+10"},"Шайхразиева","Айлина","Рузилевна","ж","2014-03-08","нет",4,4,18,null,18,65,"участник","нет","Хуббутдинова Дилара Дугласовна","ГАОУ \"Гуманитарная гимназия-интернат для одаренных детей\"","Русский язык"]
[25,"134003_18146819995_39","ГАОУ \"Гуманитарная гимназия-интернат для одаренных детей\"",{"v":1.81E10,"d":"1.81E+10"},"Шаемова","Регина","Ильдаровна","ж","2014-04-27","нет",4,4,9,null,9,65,"участник","нет","Хуббутдинова Дилара Дугласовна","ГАОУ \"Гуманитарная гимназия-интернат для одаренных детей\"","Русский язык"]
[34,134003,"ГАОУ \"Гуманитарная гимназия-интернат для одаренных детей\"",null,"Шайхутдинова","Газиз","Айдарович","м","2014-05-09","нет",4,4,23,null,23,65,"участник","нет","Шайхуллина Светлана Рифовна","ГАОУ \"Гуманитарная гимназия-интернат для одаренных детей\"","Русский язык"]
[8,"134003_17535153976_39","ГАОУ \"Гуманитарная гимназия-интернат для одаренных детей\"",{"v":1.754E10,"d":"1.75E+10"},"Гибадуллин","Тимур","Альфредович","м","2013-01-18","нет",5,5,40,null,40,73,"призер",null,"Нурыева Ирина Альбиновна","ГАОУ \"Гуманитарная гимназия-интернат для одаренных детей\"","Русский язык"]
[9,"134003_17645758821_39","ГАОУ \"Гуманитарная гимназия-интернат для одаренных детей\"",{"v":1.765E10,"d":"1.77E+10"},"Хабибуллина","Залия","Айратовна","ж","2013-04-06","нет",5,5,18,null,18,73,"участник",null,"Нурыева Ирина Альбиновна","ГАОУ \"Гуманитарная гимназия-интернат для одаренных детей\"","Русский язык"]
[10,"134003_17632680183_39","ГАОУ \"Гуманитарная гимназия-интернат для одаренных детей\"",{"v":1.763E10,"d":"1.76E+10"},"Мугтазирова","Фарида","Инсафовна","ж","2013-03-25","нет",5,5,17,null,17,73,"участник",null,"Нурыева Ирина Альбиновна","ГАОУ \"Гуманитарная гимназия-интернат для одаренных детей\"","Русский язык"]
[11,"134003_17862933824_39","ГАОУ \"Гуманитарная гимназия-интернат для одаренных детей\"",{"v":1.786E10,"d":"1.79E+10"},"Минниханова","Лия","Ильмировна","ж","2013-10-14","нет",5,5,10,null,10,73,"участник",null,"Шагзамова Энже Фирдависовна","ГАОУ \"Гуманитарная гимназия-интернат для одаренных детей\"","Русский язык"]
[12,"134003_17910752787_39","ГАОУ \"Гуманитарная гимназия-интернат для одаренных детей\"",{"v":1.791E10,"d":"1.79E+10"},"Усманов","Арслан","Русланович","м","2013-11-15","нет",5,5,15,null,15,73,"участник",null,"Шагзамова Энже Фирдависовна","ГАОУ \"Гуманитарная гимназия-интернат для одаренных детей\"","Русский язык"]
[13,"134003_17680810897_39","ГАОУ \"Гуманитарная гимназия-интернат для одаренных детей\"",{"v":1.768E10,"d":"1.77E+10"},"Хакимзянова","Аилина","Ленаровна","ж","2013-05-20","нет",5,5,20,null,20,73,"участник",null,"Шагзамова Энже Фирдависовна","ГАОУ \"Гуманитарная гимназия-интернат для одаренных детей\"","Русский язык"]
[14,"134003_17834055083_39","ГАОУ \"Гуманитарная гимназия-интернат для одаренных детей\"",{"v":1.783E10,"d":"1.78E+10"},"Исламова","Динара","Ленаровна","ж","2013-09-19","нет",5,5,24,null,24,73,"участник",null,"Шагзамова Энже Фирдависовна","ГАОУ \"Гуманитарная гимназия-интернат для одаренных детей\"","Русский язык"]
[15,"134003_17586868951_39","ГАОУ \"Гуманитарная гимназия-интернат для одаренных детей\"",{"v":1.759E10,"d":"1.76E+10"},"Ахмадгалиев","Аяз","Ниязович","м","2013-02-18","нет",5,5,7,null,7,73,"участник",null,"Рафикова Резеда Шамилевна","ГАОУ \"Гуманитарная гимназия-интернат для одаренных детей\"","Русский язык"]
[16,"134003_17427105053_39","ГАОУ \"Гуманитарная гимназия-интернат для одаренных детей\"",{"v":1.743E10,"d":"1.74E+10"},"Шакирзянова","Сафия","Ильнуровна","ж","2012-10-27","нет",5,5,15,null,15,73,"участник",null,"Рафикова Резеда Шамилевна","ГАОУ \"Гуманитарная гимназия-интернат для одаренных детей\"","Русский язык"]
[17,"134003_17484928522_39","ГАОУ \"Гуманитарная гимназия-интернат для одаренных детей\"",{"v":1.748E10,"d":"1.75E+10"},"Исхакова","Адиля","Маратовна","ж","2012-12-04","нет",5,5,43,null,43,73,"призер",null,"Рафикова Резеда Шамилевна","ГАОУ \"Гуманитарная гимназия-интернат для одаренных детей\"","Русский язык"]
[18,"134003_17532214854_39","ГАОУ \"Гуманитарная гимназия-интернат для одаренных детей\"",{"v":1.753E10,"d":"1.75E+10"},"Шайхайдарова","Аделя","Булатовна","ж","2013-01-16","нет",5,5,22,null,22,73,"участник","Да","Рафикова Резеда Шамилевна","ГАОУ \"Гуманитарная гимназия-интернат для одаренных детей\"","Русский язык"]
[41,"134003_","ГАОУ \"Гуманитарная гимназия-интернат для одаренных детей\"",{"v":1.75E10,"d":"1.75E+10"},"Валиев","Юнус","Ленисович","м","2012-12-16","нет",6,6,39,null,39,73,"призер",null,"Нурыева Ирина Альбиновна","ГАОУ \"Гуманитарная гимназия-интернат для одаренных детей\"","Русский язык"]
[50,"134003_17396639221_39","ГАОУ \"Гуманитарная гимназия-интернат для одаренных детей\"",{"v":1.74E10,"d":"1.74E+10"},"Исламов","Азамат","Янбулатович","м","2012-10-04","нет",6,6,20,null,20,73,"участник",null,"Нурыева Ирина Альбиновна","ГАОУ \"Гуманитарная гимназия-интернат для одаренных детей\"","Русский язык"]
[51,"134003_17168790708_39","ГАОУ \"Гуманитарная гимназия-интернат для одаренных детей\"",{"v":1.717E10,"d":"1.72E+10"},"Салахова","Азалия","Ильнуровна","ж","2012-04-09","нет",6,6,23,null,23,73,"участник",null,"Нурыева Ирина Альбиновна","ГАОУ \"Гуманитарная гимназия-интернат для одаренных детей\"","Русский язык"]
[52,"134003_17213615238_39","ГАОУ \"Гуманитарная гимназия-интернат для одаренных детей\"",{"v":1.721E10,"d":"1.72E+10"},"Валиахметова","Аделина","Илфатовна","ж","2012-05-14","нет",6,6,53,null,53,73,"призер",null,"Шагзамова Энже Фирдависовна","ГАОУ \"Гуманитарная гимназия-интернат для одаренных детей\"","Русский язык"]
[53,"134003_17367530590_39","ГАОУ \"Гуманитарная гимназия-интернат для одаренных детей\"",{"v":1.737E10,"d":"1.74E+10"},"Шагалиева","Айсина","Айнуровна","ж","2012-08-27","нет",6,6,53,null,53,73,"призер",null,"Шагзамова Энже Фирдависовна","ГАОУ \"Гуманитарная гимназия-интернат для одаренных детей\"","Русский язык"]
[83,"134003_16364655688_39","ГАОУ \"Гуманитарная гимназия-интернат для одаренных детей\"",{"v":1.636E10,"d":"1.64E+10"},"Шайхайдарова","Амина","Булатовна","ж","2010-12-15","нет",7,7,16,null,16,75,"участник",null,"Нурыева Ирина Альбиновна","ГАОУ \"Гуманитарная гимназия-интернат для одаренных детей\"","Русский язык"]
[84,"134003_16775529217_39","ГАОУ \"Гуманитарная гимназия-интернат для одаренных детей\"",{"v":1.678E10,"d":"1.68E+10"},"Имамова","Милана","Рамилевна","ж","2011-07-31","нет",7,7,8,null,8,75,"участник",null,"Нурыева Ирина Альбиновна","ГАОУ \"Гуманитарная гимназия-интернат для одаренных детей\"","Русский язык"]
[85,"134003_16948542018_39","ГАОУ \"Гуманитарная гимназия-интернат для одаренных детей\"",{"v":1.695E10,"d":"1.70E+10"},"Шайхайдарова","Лиана","Виловна","ж","2011-10-26","нет",7,7,40,null,40,75,"призер",null,"Нурыева Ирина Альбиновна","ГАОУ \"Гуманитарная гимназия-интернат для одаренных детей\"","Русский язык"]
[86,"134003_17145014435_39","ГАОУ \"Гуманитарная гимназия-интернат для одаренных детей\"",{"v":1.715E10,"d":"1.72E+10"},"Галиев","Самир","Сиринатович","м","2011-07-05","нет",7,7,18,null,18,75,"участник",null,"Шагзамова Энже Фирдависовна","ГАОУ \"Гуманитарная гимназия-интернат для одаренных детей\"","Русский язык"]
[87,"134003_17292121963_39","ГАОУ \"Гуманитарная гимназия-интернат для одаренных детей\"",{"v":1.729E10,"d":"1.73E+10"},"Гильметдинова","Тансылу","Маратовна","ж","2011-04-03","нет",7,7,56,null,56,75,"призер","Да","Шагзамова Энже Фирдависовна","ГАОУ \"Гуманитарная гимназия-интернат для одаренных детей\"","Русский язык"]
[88,"134003_16506110432_39","ГАОУ \"Гуманитарная гимназия-интернат для одаренных детей\"",{"v":1.651E10,"d":"1.65E+10"},"Шакурова","Диляра","Фаварисовна","ж","2011-04-08","нет",7,7,56,null,56,75,"призер","Да","Шагзамова Энже Фирдависовна","ГАОУ \"Гуманитарная гимназия-интернат для одаренных детей\"","Русский язык"]
[89,"134003_21612057517_39","ГАОУ \"Гуманитарная гимназия-интернат для одаренных детей\"",{"v":2.161E10,"d":"2.16E+10"},"Салахова","Валерия","Вильдановна","ж","2011-09-20","нет",7,7,23,null,23,75,"участник","Да","Шагзамова Энже Фирдависовна","ГАОУ \"Гуманитарная гимназия-интернат для одаренных детей\"","Русский язык"]
[90,"134003_16375720179_39","ГАОУ \"Гуманитарная гимназия-интернат для одаренных детей\"",{"v":1.638E10,"d":"1.64E+10"},"Шайхуллина","Зиля","Расиховна","ж","2011-01-19","нет",7,7,56,null,56,75,"призер",null,"Рафикова Резеда Шамилевна","ГАОУ \"Гуманитарная гимназия-интернат для одаренных детей\"","Русский язык"]
[91,"134003_16488537721_39","ГАОУ \"Гуманитарная гимназия-интернат для одаренных детей\"",{"v":1.649E10,"d":"1.65E+10"},"Фаррахова","Зарина","Хамисовна","ж","2011-04-11","нет",7,7,8,null,8,75,"участник",null,"Рафикова Резеда Шамилевна","ГАОУ \"Гуманитарная гимназия-интернат для одаренных детей\"","Русский язык"]
[119,"134003_17464175689_39","ГАОУ \"Гуманитарная гимназия-интернат для одаренных детей\"",{"v":1.746E10,"d":"1.75E+10"},"Вафина","Чулпан","Габдулловна","ж","2011-02-07","нет",8,8,24,null,24,75,"участник",null,"Шагзамова Энже Фирдависовна","ГАОУ \"Гуманитарная гимназия-интернат для одаренных детей\"","Русский язык"]
[120,"134003_16125730946_39","ГАОУ \"Гуманитарная гимназия-интернат для одаренных детей\"",{"v":1.613E10,"d":"1.61E+10"},"Хусаенова","Ясмина","Нуровна","ж","2010-07-01","нет",8,8,23,null,23,75,"участник",null,"Шагзамова Энже Фирдависовна","ГАОУ \"Гуманитарная гимназия-интернат для одаренных детей\"","Русский язык"]
[121,"134003_16171107230_39","ГАОУ \"Гуманитарная гимназия-интернат для одаренных детей\"",{"v":1.617E10,"d":"1.62E+10"},"Шаймарданова","Тансылу","Рамисовна","ж","2010-03-05","нет",8,8,21,null,21,75,"участник",null,"Шагзамова Энже Фирдависовна","ГАОУ \"Гуманитарная гимназия-интернат для одаренных детей\"","Русский язык"]
[122,"134003_16119708058_39","ГАОУ \"Гуманитарная гимназия-интернат для одаренных детей\"",{"v":1.612E10,"d":"1.61E+10"},"Гафурова","Руфина","Робертовна","ж","2010-07-03","нет",8,8,44,null,44,75,"призер",null,"Шагзамова Энже Фирдависовна","ГАОУ \"Гуманитарная гимназия-интернат для одаренных детей\"","Русский язык"]
[123,"134003_16136211529_39","ГАОУ \"Гуманитарная гимназия-интернат для одаренных детей\"",{"v":1.614E10,"d":"1.61E+10"},"Загертдинова","Эльвина","Илшатовна","ж","2009-10-09","нет",8,8,54,null,54,75,"призер","Да","Рафикова Резеда Шамилевна","ГАОУ \"Гуманитарная гимназия-интернат для одаренных детей\"","Русский язык"]
[124,"134003_16084894798_39","ГАОУ \"Гуманитарная гимназия-интернат для одаренных детей\"",{"v":1.608E10,"d":"1.61E+10"},"Галиуллина","Ильфина","Филусовна","ж","2010-06-11","нет",8,8,18,null,18,75,"участник",null,"Рафикова Резеда Шамилевна","ГАОУ \"Гуманитарная гимназия-интернат для одаренных детей\"","Русский язык"]
[150,"134003_15560623661_39","ГАОУ \"Гуманитарная гимназия-интернат для одаренных детей\"",{"v":1.556E10,"d":"1.56E+10"},"Бикимова","Камила","Юлаевна","ж","2009-08-02","нет",9,9,55,null,55,91,"призер","Да","Рафикова Резеда Шамилевна","ГАОУ \"Гуманитарная гимназия-интернат для одаренных детей\"","Русский язык"]
[151,"134003_15449132466_39","ГАОУ \"Гуманитарная гимназия-интернат для одаренных детей\"",{"v":1.545E10,"d":"1.55E+10"},"Хафизова","Эвелина","Ильвировна","ж","2009-04-23","нет",9,9,34,null,34,91,"участник","Да","Рафикова Резеда Шамилевна","ГАОУ \"Гуманитарная гимназия-интернат для одаренных детей\"","Русский язык"]
[152,"134003_16863979340_39","ГАОУ \"Гуманитарная гимназия-интернат для одаренных детей\"",{"v":1.686E10,"d":"1.69E+10"},"Рафикова","Руфина","Рустамовна","ж","2009-08-31","нет",9,9,20,null,20,91,"участник","Да","Рафикова Резеда Шамилевна","ГАОУ \"Гуманитарная гимназия-интернат для одаренных детей\"","Русский язык"]
[153,"134003_15769763433_39","ГАОУ \"Гуманитарная гимназия-интернат для одаренных детей\"",{"v":1.577E10,"d":"1.58E+10"},"Шакирова","Резеда","Рашитовна","ж","2009-02-09","нет",9,9,30,null,30,91,"участник","Да","Рафикова Резеда Шамилевна","ГАОУ \"Гуманитарная гимназия-интернат для одаренных детей\"","Русский язык"]
[154,"134003_15527690788_39","ГАОУ \"Гуманитарная гимназия-интернат для одаренных детей\"",{"v":1.553E10,"d":"1.55E+10"},"Ильясова","Эндже","Илнуровна","ж","2009-06-20","нет",9,9,24,null,24,91,"участник",null,"Рафикова Резеда Шамилевна","ГАОУ \"Гуманитарная гимназия-интернат для одаренных детей\"","Русский язык"]
[155,"134003_15724110339_39","ГАОУ \"Гуманитарная гимназия-интернат для одаренных детей\"",{"v":1.572E10,"d":"1.57E+10"},"Авзалова","Амелия","Радиславовона","ж","2009-12-10","нет",9,9,58,null,58,91,"призер","Да","Рафикова Резеда Шамилевна","ГАОУ \"Гуманитарная гимназия-интернат для одаренных детей\"","Русский язык"]
[156,"134003_15424581357_39","ГАОУ \"Гуманитарная гимназия-интернат для одаренных детей\"",{"v":1.542E10,"d":"1.54E+10"},"Харисова","Гузель","Ильясовна","ж","2009-04-02","нет",9,9,43,null,43,91,"участник","Да","Рафикова Резеда Шамилевна","ГАОУ \"Гуманитарная гимназия-интернат для одаренных детей\"","Русский язык"]
[157,"134003_15740980687_39","ГАОУ \"Гуманитарная гимназия-интернат для одаренных детей\"",{"v":1.574E10,"d":"1.57E+10"},"Зайдуллин","Искандер","Ильясович","м","2009-02-21","нет",9,9,17,null,17,91,"участник","Да","Рафикова Резеда Шамилевна","ГАОУ \"Гуманитарная гимназия-интернат для одаренных детей\"","Русский язык"]
[176,"134003_15762308374_39","ГАОУ \"Гуманитарная гимназия-интернат для одаренных детей\"",{"v":1.576E10,"d":"1.58E+10"},"Шакирова","Лиана","Ильгамовна","ж","2008-05-22","нет",10,10,69,null,69,83,"победитель","Да","Шагзамова Энже Фирдависовна","ГАОУ \"Гуманитарная гимназия-интернат для одаренных детей\"","Русский язык"]
[177,"134003_15746162885_39","ГАОУ \"Гуманитарная гимназия-интернат для одаренных детей\"",{"v":1.575E10,"d":"1.58E+10"},"Маликова","Азалия","Ильназовна","ж","2008-04-14","нет",10,10,65,null,65,83,"призер","Да","Рафикова Резеда Шамилевна","ГАОУ \"Гуманитарная гимназия-интернат для одаренных детей\"","Русский язык"]
[178,"134003_15769763433_39","ГАОУ \"Гуманитарная гимназия-интернат для одаренных детей\"",{"v":1.577E10,"d":"1.58E+10"},"Сарварова","Язиля","Ильшатовна","ж","2008-09-14","нет",10,10,25,null,25,83,"участник","Да","Рафикова Резеда Шамилевна","ГАОУ \"Гуманитарная гимназия-интернат для одаренных детей\"","Русский язык"]
[187,"134003_16052468854_39","ГАОУ \"Гуманитарная гимназия-интернат для одаренных детей\"",{"v":1.605E10,"d":"1.61E+10"},"Мингазова","Нурзиля","Ринатовна","ж","2007-02-15","нет",11,11,16,null,16,83,"участник",null,"Нурыева Ирина Альбиновна","ГАОУ \"Гуманитарная гимназия-интернат для одаренных детей\"","Русский язык"]
[188,"134003_16052469149_39","ГАОУ \"Гуманитарная гимназия-интернат для одаренных детей\"",{"v":1.605E10,"d":"1.61E+10"},"Мухаметдинова","Эльвина","Ураловна","ж","2007-04-25","нет",11,11,26,null,26,83,"участник",null,"Нурыева Ирина Альбиновна","ГАОУ \"Гуманитарная гимназия-интернат для одаренных детей\"","Русский язык"]
[189,"134003_16063158345_39","ГАОУ \"Гуманитарная гимназия-интернат для одаренных детей\"",{"v":1.606E10,"d":"1.61E+10"},"Зарипова","Адиля","Ильназовна","ж","2007-07-28","нет",11,11,17,null,17,83,"участник",null,"Нурыева Ирина Альбиновна","ГАОУ \"Гуманитарная гимназия-интернат для одаренных детей\"","Русский язык"]
[190,"134003_16096153166_39","ГАОУ \"Гуманитарная гимназия-интернат для одаренных детей\"",{"v":1.61E10,"d":"1.61E+10"},"Хаернасова","Алина","Ринатовна","ж","2007-04-06","нет",11,11,63,null,63,83,"призер","Да","Шагзамова Энже Фирдависовна","ГАОУ \"Гуманитарная гимназия-интернат для одаренных детей\"","Русский язык"]

{"sheet":"русский НШ","index":8,"n_rows":33,"n_cols":21,"rows_kept":33}
[]
[]
["№","Код участника","Название ОУ","СНИЛС","Фамилия","Имя","Отчество","Пол","Дата рождения","Участник с ОВЗ","Класс","Класс участия","Первичный балл","Добавлено по итогам аппеляции","Итоговый балл","Макс. балл","Статус","Призер МЭ прошлого года","Учитель","Место работы учителя","Предмет"]
[17,"134003_16375720179_19","ГАОУ \"Гуманитарная гимназия-интернат для одаренных детей\"",{"v":1.64E10,"d":"1.64E+10"},"Шайхуллина","Зиля","Расиховна","ж","2011-01-19","нет",7,7,34,null,34,85,"участник",null,"Рафикова Резеда Шамилевна","ГАОУ \"Гуманитарная гимназия-интернат для одаренных детей\"","Русский язык для обучающихся школ с родным языком обучения"]
[18,"134003_16488537721_19","ГАОУ \"Гуманитарная гимназия-интернат для одаренных детей\"",{"v":1.65E10,"d":"1.65E+10"},"Фаррахова","Зарина","Хамисовна","ж","2011-04-11","нет",7,7,26,null,26,85,"участник",null,"Рафикова Резеда Шамилевна","ГАОУ \"Гуманитарная гимназия-интернат для одаренных детей\"","Русский язык для обучающихся школ с родным языком обучения"]
[19,"134003_17145014435_19","ГАОУ \"Гуманитарная гимназия-интернат для одаренных детей\"",{"v":1.71E10,"d":"1.71E+10"},"Галиев","Самир","Сиринатович","м","2011-07-05","нет",7,7,18,null,18,85,"участник","Да","Шагзамова Энже Фирдависовна","ГАОУ \"Гуманитарная гимназия-интернат для одаренных детей\"","Русский язык для обучающихся школ с родным языком обучения"]
[20,"134003_17292121963_19","ГАОУ \"Гуманитарная гимназия-интернат для одаренных детей\"",{"v":1.73E10,"d":"1.73E+10"},"Гильметдинова","Тансылу","Маратовна","ж","2011-04-03","нет",7,7,78,null,78,85,"победитель","Да","Шагзамова Энже Фирдависовна","ГАОУ \"Гуманитарная гимназия-интернат для одаренных детей\"","Русский язык для обучающихся школ с родным языком обучения"]
[21,"134003_21612057517_19","ГАОУ \"Гуманитарная гимназия-интернат для одаренных детей\"",{"v":2.16E10,"d":"2.16E+10"},"Салахова","Валерия","Вильдановна","ж","2011-09-20","нет",7,7,27,null,27,85,"участник","Да","Шагзамова Энже Фирдависовна","ГАОУ \"Гуманитарная гимназия-интернат для одаренных детей\"","Русский язык для обучающихся школ с родным языком обучения"]
[22,"134003_16364655688_19","ГАОУ \"Гуманитарная гимназия-интернат для одаренных детей\"",{"v":1.64E10,"d":"1.64E+10"},"Шайхайдарова","Амина","Булатовна","ж","2010-12-15","нет",7,7,73,null,73,85,"призер",null,"Нурыева Ирина Альбиновна","ГАОУ \"Гуманитарная гимназия-интернат для одаренных детей\"","Русский язык для обучающихся школ с родным языком обучения"]
[23,"134003_16775529217_19","ГАОУ \"Гуманитарная гимназия-интернат для одаренных детей\"",{"v":1.68E10,"d":"1.68E+10"},"Имамова","Милана","Рамилевна","ж","2011-07-31","нет",7,7,29,null,29,85,"участник",null,"Нурыева Ирина Альбиновна","ГАОУ \"Гуманитарная гимназия-интернат для одаренных детей\"","Русский язык для обучающихся школ с родным языком обучения"]
[24,"134003_16948542018_19","ГАОУ \"Гуманитарная гимназия-интернат для одаренных детей\"",{"v":1.69E10,"d":"1.69E+10"},"Шайхайдарова","Лиана","Виловна","ж","2011-10-26","нет",7,7,32,null,32,85,"участник",null,"Нурыева Ирина Альбиновна","ГАОУ \"Гуманитарная гимназия-интернат для одаренных детей\"","Русский язык для обучающихся школ с родным языком обучения"]
[41,"134003_16506110432_19","ГАОУ \"Гуманитарная гимназия-интернат для одаренных детей\"",{"v":1.65E10,"d":"1.65E+10"},"Шакурова","Диляра","Фаварисовна","ж","2011-04-08","нет",7,7,75,null,75,85,"призер","Да","Шагзамова Энже Фирдависовна","ГАОУ \"Гуманитарная гимназия-интернат для одаренных детей\"","Русский язык для обучающихся школ с родным языком обучения"]
[58,"134003_16136211529_19","ГАОУ \"Гуманитарная гимназия-интернат для одаренных детей\"",{"v":1.61E10,"d":"1.61E+10"},"Загертдинова","Эльвина","Илшатовна","ж","2009-10-09","нет",8,8,71,null,71,85,"призер","Да","Рафикова Резеда Шамилевна","ГАОУ \"Гуманитарная гимназия-интернат для одаренных детей\"","Русский язык для обучающихся школ с родным языком обучения"]
[59,"134003_16084894798_19","ГАОУ \"Гуманитарная гимназия-интернат для одаренных детей\"",{"v":1.61E10,"d":"1.61E+10"},"Галиуллина","Ильфина","Филусовна","ж","2010-06-11","нет",8,8,72,null,72,85,"призер",null,"Рафикова Резеда Шамилевна","ГАОУ \"Гуманитарная гимназия-интернат для одаренных детей\"","Русский язык для обучающихся школ с родным языком обучения"]
[60,"134003_17464175689_19","ГАОУ \"Гуманитарная гимназия-интернат для одаренных детей\"",{"v":1.75E10,"d":"1.75E+10"},"Вафина","Чулпан","Габдулловна","ж","2011-02-07","нет",8,8,29,null,29,85,"участник","Да","Шагзамова Энже Фирдависовна","ГАОУ \"Гуманитарная гимназия-интернат для одаренных детей\"","Русский язык для обучающихся школ с родным языком обучения"]
[62,"134003_16171107230_19","ГАОУ \"Гуманитарная гимназия-интернат для одаренных детей\"",{"v":1.62E10,"d":"1.62E+10"},"Шаймарданова","Тансылу","Рамисовна","ж","2010-03-05","нет",8,8,32,null,32,85,"участник","Да","Шагзамова Энже Фирдависовна","ГАОУ \"Гуманитарная гимназия-интернат для одаренных детей\"","Русский язык для обучающихся школ с родным языком обучения"]
[63,"134003_16119708058_19","ГАОУ \"Гуманитарная гимназия-интернат для одаренных детей\"",{"v":1.61E10,"d":"1.61E+10"},"Гафурова","Руфина","Робертовна","ж","2010-07-03","нет",8,8,73,null,73,85,"призер","Да","Шагзамова Энже Фирдависовна","ГАОУ \"Гуманитарная гимназия-интернат для одаренных детей\"","Русский язык для обучающихся школ с родным языком обучения"]
[80,"134003_16125730946_19","ГАОУ \"Гуманитарная гимназия-интернат для одаренных детей\"",{"v":1.61E10,"d":"1.61E+10"},"Хусаенова","Ясмина","Нуровна","ж","2010-07-01","нет",8,8,38,null,38,85,"участник","Да","Шагзамова Энже Фирдависовна","ГАОУ \"Гуманитарная гимназия-интернат для одаренных детей\"","Русский язык для обучающихся школ с родным языком обучения"]
[91,"134003_15560623661_19","ГАОУ \"Гуманитарная гимназия-интернат для одаренных детей\"",{"v":1.56E10,"d":"1.56E+10"},"Бикимова","Камила","Юлаевна","ж","2009-08-02","нет",9,9,87,null,87,100,"призер","Да","Рафикова Резеда Шамилевна","ГАОУ \"Гуманитарная гимназия-интернат для одаренных детей\"","Русский язык для обучающихся школ с родным языком обучения"]
[92,"134003_15449132466_19","ГАОУ \"Гуманитарная гимназия-интернат для одаренных детей\"",{"v":1.54E10,"d":"1.54E+10"},"Хафизова","Эвелина","Ильвировна","ж","2009-04-23","нет",9,9,92,null,92,100,"победитель","Да","Рафикова Резеда Шамилевна","ГАОУ \"Гуманитарная гимназия-интернат для одаренных детей\"","Русский язык для обучающихся школ с родным языком обучения"]
[93,"134003_16863979340_19","ГАОУ \"Гуманитарная гимназия-интернат для одаренных детей\"",{"v":1.69E10,"d":"1.69E+10"},"Рафикова","Руфина","Рустамовна","ж","2009-08-31","нет",9,9,49,null,49,100,"участник","Да","Рафикова Резеда Шамилевна","ГАОУ \"Гуманитарная гимназия-интернат для одаренных детей\"","Русский язык для обучающихся школ с родным языком обучения"]
[94,"134003_15577216083_19","ГАОУ \"Гуманитарная гимназия-интернат для одаренных детей\"",{"v":1.56E10,"d":"1.56E+10"},"Адиятуллина","Эделина","Ильназовна","ж","2009-08-20","нет",9,9,44,null,44,100,"участник","Да","Рафикова Резеда Шамилевна","ГАОУ \"Гуманитарная гимназия-интернат для одаренных детей\"","Русский язык для обучающихся школ с родным языком обучения"]
[95,"134003_15769763433_19","ГАОУ \"Гуманитарная гимназия-интернат для одаренных детей\"",{"v":1.58E10,"d":"1.58E+10"},"Шакирова","Резеда","Рашитовна","ж","2009-02-09","нет",9,9,90,null,90,100,"призер","Да","Рафикова Резеда Шамилевна","ГАОУ \"Гуманитарная гимназия-интернат для одаренных детей\"","Русский язык для обучающихся школ с родным языком обучения"]
[96,"134003_15527690788_19","ГАОУ \"Гуманитарная гимназия-интернат для одаренных детей\"",{"v":1.55E10,"d":"1.55E+10"},"Ильясова","Эндже","Илнуровна","ж","2009-06-20","нет",9,9,85,null,85,100,"призер",null,"Рафикова Резеда Шамилевна","ГАОУ \"Гуманитарная гимназия-интернат для одаренных детей\"","Русский язык для обучающихся школ с родным языком обучения"]
[97,"134003_15724110339_19","ГАОУ \"Гуманитарная гимназия-интернат для одаренных детей\"",{"v":1.57E10,"d":"1.57E+10"},"Авзалова","Амелия","Радиславовона","ж","2009-12-10","нет",9,9,89,null,89,100,"призер","Да","Рафикова Резеда Шамилевна","ГАОУ \"Гуманитарная гимназия-интернат для одаренных детей\"","Русский язык для обучающихся школ с родным языком обучения"]
[98,"134003_15424581357_19","ГАОУ \"Гуманитарная гимназия-интернат для одаренных детей\"",{"v":1.54E10,"d":"1.54E+10"},"Харисова","Гузель","Ильясовна","ж","2009-04-02","нет",9,9,48,null,48,100,"участник","Да","Рафикова Резеда Шамилевна","ГАОУ \"Гуманитарная гимназия-интернат для одаренных детей\"","Русский язык для обучающихся школ с родным языком обучения"]
[99,"134003_15740980687_19","ГАОУ \"Гуманитарная гимназия-интернат для одаренных детей\"",{"v":1.57E10,"d":"1.57E+10"},"Зайдуллин","Искандер","Ильясович","м","2009-02-21","нет",9,9,51,null,51,100,"участник","Да","Рафикова Резеда Шамилевна","ГАОУ \"Гуманитарная гимназия-интернат для одаренных детей\"","Русский язык для обучающихся школ с родным языком обучения"]
[125,"134003_15746162885_19","ГАОУ \"Гуманитарная гимназия-интернат для одаренных детей\"",{"v":1.57E10,"d":"1.57E+10"},"Маликова","Азалия","Ильназовна","ж","2008-04-14","нет",10,10,44,null,44,100,"участник","Да","Рафикова Резеда Шамилевна","ГАОУ \"Гуманитарная гимназия-интернат для одаренных детей\"","Русский язык для обучающихся школ с родным языком обучения"]
[126,"134003_15762308374_19","ГАОУ \"Гуманитарная гимназия-интернат для одаренных детей\"",{"v":1.58E10,"d":"1.58E+10"},"Шакирова","Лиана","Ильгамовна","ж","2008-05-22","нет",10,10,19,null,19,100,"участник","Да","Шагзамова Энже Фирдависовна","ГАОУ \"Гуманитарная гимназия-интернат для одаренных детей\"","Русский язык для обучающихся школ с родным языком обучения"]
[132,134003,"ГАОУ \"Гуманитарная гимназия-интернат для одаренных детей\"",{"v":1.58E10,"d":"1.58E+10"},"Сарварова","Язиля","Ильшатовна","ж","2008-09-14","нет",10,10,92,null,92,100,"победитель","Да","Рафикова Резеда Шамилевна","ГАОУ \"Гуманитарная гимназия-интернат для одаренных детей\"","Русский язык для обучающихся школ с родным языком обучения"]
[137,"134003_16096153166_19","ГАОУ \"Гуманитарная гимназия-интернат для одаренных детей\"",{"v":1.61E10,"d":"1.61E+10"},"Хаернасова","Алина","Ринатовна","ж","2007-04-06","нет",11,11,91,null,91,100,"победитель","Да","Шагзамова Энже Фирдависовна","ГАОУ \"Гуманитарная гимназия-интернат для одаренных детей\"","Русский язык для обучающихся школ с родным языком обучения"]
[138,"134003_16052468854_19","ГАОУ \"Гуманитарная гимназия-интернат для одаренных детей\"",{"v":1.61E10,"d":"1.61E+10"},"Мингазова","Нурзиля","Ринатовна","ж","2007-02-15","нет",11,11,43,null,43,100,"участник",null,"Нурыева Ирина Альбиновна","ГАОУ \"Гуманитарная гимназия-интернат для одаренных детей\"","Русский язык для обучающихся школ с родным языком обучения"]
[139,"134003_16052469149_19","ГАОУ \"Гуманитарная гимназия-интернат для одаренных детей\"",{"v":1.61E10,"d":"1.61E+10"},"Мухаметдинова","Эльвина","Ураловна","ж","2007-04-25","нет",11,11,88,null,88,100,"призер",null,"Нурыева Ирина Альбиновна","ГАОУ \"Гуманитарная гимназия-интернат для одаренных детей\"","Русский язык для обучающихся школ с родным языком обучения"]

{"sheet":"право","index":9,"n_rows":19,"n_cols":21,"rows_kept":19}
[]
["№","Код участника","Название ОУ","СНИЛС","Фамилия","Имя","Отчество","Пол","Дата рождения","Участник с ОВЗ","Класс","Класс участия","Первичный балл","Добавлено баллов после аппеляций","Итоговый балл","Макс. балл","Статус","Призер МЭ прошлого года","Учитель","Место работы учителя","Предмет"]
[13,"134003_16229647178_41","ГАОУ \"Гуманитарная гимназия-интернат для одаренных детей\"",{"v":1.62E10,"d":"1.62E+10"},"Нигматдинов","Раяз","Ильдарович","м","2010-09-15","нет",8,8,3,null,3,70,"участник",null,"Абдуллина Миляуша Магьсумовна","ГАОУ \"Гуманитарная гимназия-интернат для одаренных детей\"","Право"]
[14,"134003_17464175689_41","ГАОУ \"Гуманитарная гимназия-интернат для одаренных детей\"",{"v":1.75E10,"d":"1.75E+10"},"Вафина","Чулпан","Габдулловна","ж","2011-02-07","нет",8,8,5,null,5,70,"участник",null,"Абдуллина Миляуша Магьсумовна","ГАОУ \"Гуманитарная гимназия-интернат для одаренных детей\"","Право"]
[16,"134003_15794492118_41","ГАОУ \"Гуманитарная гимназия-интернат для одаренных детей\"",{"v":1.58E10,"d":"1.58E+10"},"Лутфуллин","Рамазан","Фаридович","м","2009-08-09","нет",9,9,20,null,20,80,"участник",null,"Абдуллина Миляуша Магьсумовна","ГАОУ \"Гуманитарная гимназия-интернат для одаренных детей\"","Право"]
[20,"134003_15572473785_41","ГАОУ \"Гуманитарная гимназия-интернат для одаренных детей\"",{"v":1.56E10,"d":"1.56E+10"},"Ямалов","Азамат","Филарисович","м","2008-02-14","нет",9,9,27,null,27,80,"участник",null,"Абдуллина Миляуша Магьсумовна","ГАОУ \"Гуманитарная гимназия-интернат для одаренных детей\"","Право"]
[21,"134003_15483786608_41","ГАОУ \"Гуманитарная гимназия-интернат для одаренных детей\"",{"v":1.55E10,"d":"1.55E+10"},"Корбанов","Каюм","Камилевич","м","2009-06-01","нет",9,9,29,null,29,80,"участник",null,"Абдуллина Миляуша Магьсумовна","ГАОУ \"Гуманитарная гимназия-интернат для одаренных детей\"","Право"]
[22,"134003_15449132466_41","ГАОУ \"Гуманитарная гимназия-интернат для одаренных детей\"",{"v":1.54E10,"d":"1.54E+10"},"Хафизова","Эвелина","Ильвировна","ж","2009-04-23","нет",9,9,15,null,15,80,"участник",null,"Абдуллина Миляуша Магьсумовна","ГАОУ \"Гуманитарная гимназия-интернат для одаренных детей\"","Право"]
[35,"134003_16296599321_41","ГАОУ \"Гуманитарная гимназия-интернат для одаренных детей\"",{"v":1.63E10,"d":"1.63E+10"},"Рахматуллин","Артур","Ренатович","м","2008-06-01","нет",10,10,20,null,20,80,"участник",null,"Абдуллина Миляуша Магьсумовна","ГАОУ \"Гуманитарная гимназия-интернат для одаренных детей\"","Право"]
[36,"134003_15081715345_41","ГАОУ \"Гуманитарная гимназия-интернат для одаренных детей\"",{"v":1.51E10,"d":"1.51E+10"},"Умяров","Ильяс","Султанович","м","2008-05-22","нет",10,10,9,null,9,80,"участник",null,"Абдуллина Миляуша Магьсумовна","ГАОУ \"Гуманитарная гимназия-интернат для одаренных детей\"","Право"]
[37,"134003_14993166409_41","ГАОУ \"Гуманитарная гимназия-интернат для одаренных детей\"",{"v":1.5E10,"d":"1.50E+10"},"Ахметова","Ляйля","Ирековна","ж","2008-01-28","нет",10,10,6,null,6,80,"участник",null,"Абдуллина Миляуша Магьсумовна","ГАОУ \"Гуманитарная гимназия-интернат для одаренных детей\"","Право"]
[38,"134003_15769763433_41","ГАОУ \"Гуманитарная гимназия-интернат для одаренных детей\"",{"v":1.58E10,"d":"1.58E+10"},"Сарварова","Язиля","Ильшатовна","ж","2008-09-14","нет",10,10,25,null,25,80,"участник",null,"Абдуллина Миляуша Магьсумовна","ГАОУ \"Гуманитарная гимназия-интернат для одаренных детей\"","Право"]
[42,"134003_15431056733_41","ГАОУ \"Гуманитарная гимназия-интернат для одаренных детей\"",{"v":1.54E10,"d":"1.54E+10"},"Галимов","Рустем","Равилевич","м","2008-03-19","нет",11,11,28,null,28,90,"участник",null,"Абдуллина Миляуша Магьсумовна","ГАОУ \"Гуманитарная гимназия-интернат для одаренных детей\"","Право"]
[43,"134003_16063158345_41","ГАОУ \"Гуманитарная гимназия-интернат для одаренных детей\"",{"v":1.61E10,"d":"1.61E+10"},"Зарипова","Адиля","Ильназовна","ж","2007-07-28","нет",11,11,21,null,21,90,"участник",null,"Абдуллина Миляуша Магьсумовна","ГАОУ \"Гуманитарная гимназия-интернат для одаренных детей\"","Право"]
[44,"134003_16096149175_41","ГАОУ \"Гуманитарная гимназия-интернат для одаренных детей\"",{"v":1.61E10,"d":"1.61E+10"},"Загрутдинов","Амирхан","Русланович","м","2007-04-04","нет",11,11,23,null,23,90,"участник",null,"Абдуллина Миляуша Магьсумовна","ГАОУ \"Гуманитарная гимназия-интернат для одаренных детей\"","Право"]
[45,"134003_16052468854_41","ГАОУ \"Гуманитарная гимназия-интернат для одаренных детей\"",{"v":1.61E10,"d":"1.61E+10"},"Мингазова","Нурзиля","Ринатовна","ж","2007-02-15","нет",11,11,25,null,25,90,"участник",null,"Абдуллина Миляуша Магьсумовна","ГАОУ \"Гуманитарная гимназия-интернат для одаренных детей\"","Право"]
[46,"134003_16052469149_41","ГАОУ \"Гуманитарная гимназия-интернат для одаренных детей\"",{"v":1.61E10,"d":"1.61E+10"},"Мухаметдинова","Эльвина","Ураловна","ж","2007-04-25","нет",11,11,27,null,27,90,"участник",null,"Абдуллина Миляуша Магьсумовна","ГАОУ \"Гуманитарная гимназия-интернат для одаренных детей\"","Право"]
[47,"134003_16382925289_41","ГАОУ \"Гуманитарная гимназия-интернат для одаренных детей\"",{"v":1.64E10,"d":"1.64E+10"},"Мирзасалихов","Мухаммет","Илшатович","м","2007-11-18","нет",11,11,31,null,31,90,"участник",null,"Абдуллина Миляуша Магьсумовна","ГАОУ \"Гуманитарная гимназия-интернат для одаренных детей\"","Право"]
[48,"134003_15746162986_41","ГАОУ \"Гуманитарная гимназия-интернат для одаренных детей\"",{"v":1.57E10,"d":"1.57E+10"},"Фардиева","Алиса","Ильназовна","ж","2007-11-01","нет",11,11,28,null,28,90,"участник",null,"Абдуллина Миляуша Магьсумовна","ГАОУ \"Гуманитарная гимназия-интернат для одаренных детей\"","Право"]

{"sheet":"общество","index":10,"n_rows":31,"n_cols":21,"rows_kept":31}
["№","Код участника","Название ОУ","СНИЛС","Фамилия","Имя","Отчество","Пол","Дата рождения","Участник с ОВЗ","Класс","Класс участия","Первичный балл","Добавлено баллов после аппеляции","Итоговый балл","Макс. балл","Статус","Призер МЭ прошлого года","Учитель","Место работы учителя","Предмет"]
[1,"134003_17367530590_36","ГАОУ \"Гуманитарная гимназия-интернат для одаренных детей\"",17367530590,"Шагалиева","Айсина","Айнурова","ж","2012-08-27","нет",6,7,25,null,25,90,"участник",null,"Абдуллина Миляуша Магьсумовна","ГАОУ \"Гуманитарная гимназия-интернат для одаренных детей\"","Обществознание"]
[2,"134003_17213615238_36","ГАОУ \"Гуманитарная гимназия-интернат для одаренных детей\"",17213615238,"Валиахметова","Аделина","Ильфатовна","ж","2012-05-14","нет",6,7,25,null,25,90,"участник",null,"Абдуллина Миляуша Магьсумовна","ГАОУ \"Гуманитарная гимназия-интернат для одаренных детей\"","Обществознание"]
[3,"134003_17072790576_36","ГАОУ \"Гуманитарная гимназия-интернат для одаренных детей\"",17072790576,"Закирова","Амира","Ильгизаровна","ж","2012-02-13","нет",6,7,11,null,11,90,"участник",null,"Абдуллина Миляуша Магьсумовна","ГАОУ \"Гуманитарная гимназия-интернат для одаренных детей\"","Обществознание"]
[13,"134003_17078377699_36","ГАОУ \"Гуманитарная гимназия-интернат для одаренных детей\"",17078377699,"Мухаметдинова","Раина","Ралифовна","ж","2011-12-17","нет",7,7,30,null,30,90,"участник",null,"Абдуллина Миляуша Магьсумовна","ГАОУ \"Гуманитарная гимназия-интернат для одаренных детей\"","Обществознание"]
[14,"134003_16506110432_36","ГАОУ \"Гуманитарная гимназия-интернат для одаренных детей\"",16506110432,"Шакурова","Диляра","Фаварисовна","ж","2011-04-08","нет",7,7,34,null,34,90,"участник",null,"Абдуллина Миляуша Магьсумовна","ГАОУ \"Гуманитарная гимназия-интернат для одаренных детей\"","Обществознание"]
[34,"134003_16229647178_36","ГАОУ \"Гуманитарная гимназия-интернат для одаренных детей\"",16229647178,"Нигматдинов","Раяз","Ильдарович","м","2010-09-15","нет",8,8,17,null,17,90,"участник",null,"Абдуллина Миляуша Магьсумовна","ГАОУ \"Гуманитарная гимназия-интернат для одаренных детей\"","Обществознание"]
[35,"134003_16084894798_36","ГАОУ \"Гуманитарная гимназия-интернат для одаренных детей\"",16084894798,"Галиуллина","Ильфина","Филусовна","ж","2010-06-11","нет",8,8,23,null,23,90,"участник",null,"Абдуллина Миляуша Магьсумовна","ГАОУ \"Гуманитарная гимназия-интернат для одаренных детей\"","Обществознание"]
[36,"134003_15637704483_36","ГАОУ \"Гуманитарная гимназия-интернат для одаренных детей\"",15637704483,"Саяпова","Аделина","Алмазовна","ж","2009-10-15","нет",8,8,32,null,32,90,"участник",null,"Абдуллина Миляуша Магьсумовна","ГАОУ \"Гуманитарная гимназия-интернат для одаренных детей\"","Обществознание"]
[61,"134003_15424581357_36","ГАОУ \"Гуманитарная гимназия-интернат для одаренных детей\"",15424581357,"Харисова","Гузель","Ильясовна","ж","2009-04-02","нет",9,9,33,null,33,95,"участник",null,"Абдуллина Миляуша Магьсумовна","ГАОУ \"Гуманитарная гимназия-интернат для одаренных детей\"","Обществознание"]
[62,"134003_15415018026_36","ГАОУ \"Гуманитарная гимназия-интернат для одаренных детей\"",15415018026,"Закирова","Камила","Риназовна","ж","2009-03-27","нет",9,9,10,null,10,95,"участник",null,"Абдуллина Миляуша Магьсумовна","ГАОУ \"Гуманитарная гимназия-интернат для одаренных детей\"","Обществознание"]
[63,"134003_15449132466_36","ГАОУ \"Гуманитарная гимназия-интернат для одаренных детей\"",15449132466,"Хафизова","Эвелина","Ильвировна","ж","2009-04-23","нет",9,9,16,null,16,95,"участник",null,"Абдуллина Миляуша Магьсумовна","ГАОУ \"Гуманитарная гимназия-интернат для одаренных детей\"","Обществознание"]
[64,"134003_15483786608_36","ГАОУ \"Гуманитарная гимназия-интернат для одаренных детей\"",15483786608,"Корбанов","Каюм","Камилевич","м","2009-06-01","нет",9,9,25,null,25,95,"участник",null,"Абдуллина Миляуша Магьсумовна","ГАОУ \"Гуманитарная гимназия-интернат для одаренных детей\"","Обществознание"]
[65,"134003_15740980687_36","ГАОУ \"Гуманитарная гимназия-интернат для одаренных детей\"",15740980687,"Зайдуллин","Искандер","Ильясович","м","2009-02-21","нет",9,9,17,null,17,95,"участник",null,"Абдуллина Миляуша Магьсумовна","ГАОУ \"Гуманитарная гимназия-интернат для одаренных детей\"","Обществознание"]
[66,"134003_15560623661_36","ГАОУ \"Гуманитарная гимназия-интернат для одаренных детей\"",15560623661,"Бикимова","Камила","Юлаевна","ж","2009-08-02","нет",9,9,22,null,22,95,"участник",null,"Абдуллина Миляуша Магьсумовна","ГАОУ \"Гуманитарная гимназия-интернат для одаренных детей\"","Обществознание"]
[67,"134003_16863979340_36","ГАОУ \"Гуманитарная гимназия-интернат для одаренных детей\"",16863979340,"Рафикова","Руфина","Рустамовна","ж","2009-08-31","нет",9,9,12,null,12,95,"участник",null,"Абдуллина Миляуша Магьсумовна","ГАОУ \"Гуманитарная гимназия-интернат для одаренных детей\"","Обществознание"]
[84,"134003_16762308374_36","ГАОУ \"Гуманитарная гимназия-интернат для одаренных детей\"",16762308374,"Шакирова","Лиана","Ильгамовна","ж","2008-05-22","нет",10,10,19,null,19,100,"участник",null,"Абдуллина Миляуша Магьсумовна","ГАОУ \"Гуманитарная гимназия-интернат для одаренных детей\"","Обществознание"]
[85,"134003_16063156644_36","ГАОУ \"Гуманитарная гимназия-интернат для одаренных детей\"",16063156644,"Галиев","Камиль","Ильнурович","м","2008-09-20","нет",10,10,30,null,30,100,"участник",null,"Абдуллина Миляуша Магьсумовна","ГАОУ \"Гуманитарная гимназия-интернат для одаренных детей\"","Обществознание"]
[86,"134003_15769763433_36","ГАОУ \"Гуманитарная гимназия-интернат для одаренных детей\"",15769763433,"Сарварова","Язиля","Ильшатовна","ж","2008-09-14","нет",10,10,18,null,18,100,"участник",null,"Абдуллина Миляуша Магьсумовна","ГАОУ \"Гуманитарная гимназия-интернат для одаренных детей\"","Обществознание"]
[87,"134003_14993166409_36","ГАОУ \"Гуманитарная гимназия-интернат для одаренных детей\"",14993166409,"Ахметова","Ляйля","Ирековна","ж","2008-01-28","нет",10,10,14,null,14,100,"участник",null,"Абдуллина Миляуша Магьсумовна","ГАОУ \"Гуманитарная гимназия-интернат для одаренных детей\"","Обществознание"]
[88,"134003_15081715345_36","ГАОУ \"Гуманитарная гимназия-интернат для одаренных детей\"",15081715345,"Умяров","Ильяс","Султанович","м","2008-05-22","нет",10,10,17,null,17,100,"участник",null,"Абдуллина Миляуша Магьсумовна","ГАОУ \"Гуманитарная гимназия-интернат для одаренных детей\"","Обществознание"]
[89,"134003_18353621575_36","ГАОУ \"Гуманитарная гимназия-интернат для одаренных детей\"",18353621575,"Амирова","Азалия","Айзатовна","ж","2008-11-21","нет",10,10,19,null,19,100,"участник",null,"Абдуллина Миляуша Магьсумовна","ГАОУ \"Гуманитарная гимназия-интернат для одаренных детей\"","Обществознание"]
[90,"134003_16296599321_36","ГАОУ \"Гуманитарная гимназия-интернат для одаренных детей\"",16296599321,"Рахматуллин","Артур","Ренатович","м","2008-06-01","нет",10,10,15,null,15,100,"участник",null,"Абдуллина Миляуша Магьсумовна","ГАОУ \"Гуманитарная гимназия-интернат для одаренных детей\"","Обществознание"]
[96,"134003_16063158345_36","ГАОУ \"Гуманитарная гимназия-интернат для одаренных детей\"",16063158345,"Зарипова","Адиля","Ильназовна","ж","2007-07-28","нет",11,11,17,null,17,115,"участник",null,"Абдуллина Миляуша Магьсумовна","ГАОУ \"Гуманитарная гимназия-интернат для одаренных детей\"","Обществознание"]
[97,"134003_16096149175_36","ГАОУ \"Гуманитарная гимназия-интернат для одаренных детей\"",16096149175,"Загрутдинов","Амирхан","Русланович","м","2007-04-04","нет",11,11,13,null,13,115,"участник",null,"Абдуллина Миляуша Магьсумовна","ГАОУ \"Гуманитарная гимназия-интернат для одаренных детей\"","Обществознание"]
[98,"134003_16052468854_36","ГАОУ \"Гуманитарная гимназия-интернат для одаренных детей\"",16052468854,"Мингазова","Нурзиля","Ринатовна","ж","2007-02-15","нет",11,11,15,null,15,115,"участник",null,"Абдуллина Миляуша Магьсумовна","ГАОУ \"Гуманитарная гимназия-интернат для одаренных детей\"","Обществознание"]
[99,"134003_16052469149_36","ГАОУ \"Гуманитарная гимназия-интернат для одаренных детей\"",16052469149,"Мухаметдинова","Эльвина","Ураловна","ж","2007-04-25","нет",11,11,21,null,21,115,"участник",null,"Абдуллина Миляуша Магьсумовна","ГАОУ \"Гуманитарная гимназия-интернат для одаренных детей\"","Обществознание"]
[100,"134003_16382925289_36","ГАОУ \"Гуманитарная гимназия-интернат для одаренных детей\"",16382925289,"Мирзасалихов","Мухаммет","Илшатович","м","2007-11-18","нет",11,11,16,null,16,115,"участник",null,"Абдуллина Миляуша Магьсумовна","ГАОУ \"Гуманитарная гимназия-интернат для одаренных детей\"","Обществознание"]
[101,"134003_15746162986_36","ГАОУ \"Гуманитарная гимназия-интернат для одаренных детей\"",15746162986,"Фардиева","Алиса","Ильназовна","ж","2007-11-01","нет",11,11,23,null,23,115,"участник",null,"Абдуллина Миляуша Магьсумовна","ГАОУ \"Гуманитарная гимназия-интернат для одаренных детей\"","Обществознание"]
[102,"134003_15431056733_36","ГАОУ \"Гуманитарная гимназия-интернат для одаренных детей\"",15431056733,"Галимов","Рустем","Равилевич","м","2008-03-19","нет",11,11,16,null,16,115,"участник",null,"Абдуллина Миляуша Магьсумовна","ГАОУ \"Гуманитарная гимназия-интернат для одаренных детей\"","Обществознание"]
[103,"134003_16146507354_36","ГАОУ \"Гуманитарная гимназия-интернат для одаренных детей\"",16146507354,"Амирханов","Ильнур","Инсафович","м",26.102007,"нет",11,11,21,null,21,115,"участник","Да","Абдуллина Миляуша Магьсумовна","ГАОУ \"Гуманитарная гимназия-интернат для одаренных детей\"","Обществознание"]

{"sheet":"экономика","index":11,"n_rows":22,"n_cols":21,"rows_kept":22}
["№","Код участника","Название ОУ","СНИЛС","Фамилия","Имя","Отчество","Пол","Дата рождения","Участник с ОВЗ","Класс","Класс участия","Первичный балл","Добавлено после аппеляции","Итоговый балл","Макс. балл","Статус","Призер МЭ прошлого года","Учитель","Место работы учителя","Предмет"]
[1,"134003_16430183137_11","ГАОУ \"Гуманитарная гимназия-интернат для одаренных детей\"",{"v":1.64E10,"d":"1.64E+10"},"Маликов","Раяз","Ильназович","м","2011-02-21","нет",7,7,60,null,60,100,"призер",null,"Абдуллина Миляуша Магьсумовна","ГАОУ \"Гуманитарная гимназия-интернат для одаренных детей\"","Экономика"]
[3,"134003_17385499523_11","ГАОУ \"Гуманитарная гимназия-интернат для одаренных детей\"",{"v":1.74E10,"d":"1.74E+10"},"Фархиев","Зиннур","Риналевич","м","2010-11-19","нет",8,8,62,null,62,100,"победитель",null,"Абдуллина Миляуша Магьсумовна","ГАОУ \"Гуманитарная гимназия-интернат для одаренных детей\"","Экономика"]
[4,"134003_15637704483_11","ГАОУ \"Гуманитарная гимназия-интернат для одаренных детей\"",{"v":1.56E10,"d":"1.56E+10"},"Саяпова","Аделина","Алмазовна","ж","2009-10-15","нет",8,8,22,null,22,100,"участник",null,"Абдуллина Миляуша Магьсумовна","ГАОУ \"Гуманитарная гимназия-интернат для одаренных детей\"","Экономика"]
[5,"134003_18817027897_11","ГАОУ \"Гуманитарная гимназия-интернат для одаренных детей\"",{"v":1.88E10,"d":"1.88E+10"},"Гузаиров","Рифат","Русланович","м","2010-12-06","нет",8,8,27,null,27,100,"участник",null,"Абдуллина Миляуша Магьсумовна","ГАОУ \"Гуманитарная гимназия-интернат для одаренных детей\"","Экономика"]
[6,"134003_17247408978_11","ГАОУ \"Гуманитарная гимназия-интернат для одаренных детей\"",{"v":1.72E10,"d":"1.72E+10"},"Ягофаров","Хасан","Русланович","м","2010-10-21","нет",8,8,36,null,36,100,"участник",null,"Абдуллина Миляуша Магьсумовна","ГАОУ \"Гуманитарная гимназия-интернат для одаренных детей\"","Экономика"]
[8,"134003_15593406080_11","ГАОУ \"Гуманитарная гимназия-интернат для одаренных детей\"",{"v":1.56E10,"d":"1.56E+10"},"Сарваров","Рамазан","Рушатович","м","2009-08-25","нет",9,9,30,null,30,100,"участник","Да","Абдуллина Миляуша Магьсумовна","ГАОУ \"Гуманитарная гимназия-интернат для одаренных детей\"","Экономика"]
[9,"134003_15794492118_11","ГАОУ \"Гуманитарная гимназия-интернат для одаренных детей\"",{"v":1.58E10,"d":"1.58E+10"},"Лутфуллин","Рамазан","Фаридович","м","2009-08-09","нет",9,9,17,null,17,100,"участник",null,"Абдуллина Миляуша Магьсумовна","ГАОУ \"Гуманитарная гимназия-интернат для одаренных детей\"","Экономика"]
[10,"134003_15739000000_11","ГАОУ \"Гуманитарная гимназия-интернат для одаренных детей\"",{"v":1.57E10,"d":"1.57E+10"},"Ибрагимов","Амир","Илгамович","м","2009-01-19","нет",9,9,26,null,26,100,"участник",null,"Абдуллина Миляуша Магьсумовна","ГАОУ \"Гуманитарная гимназия-интернат для одаренных детей\"","Экономика"]
[11,"134003_15483786608_11","ГАОУ \"Гуманитарная гимназия-интернат для одаренных детей\"",{"v":1.55E10,"d":"1.55E+10"},"Корбанов","Каюм","Камилевич","м","2009-06-01","нет",9,9,23,null,23,100,"участник",null,"Абдуллина Миляуша Магьсумовна","ГАОУ \"Гуманитарная гимназия-интернат для одаренных детей\"","Экономика"]
[12,"134003_15441830450_11","ГАОУ \"Гуманитарная гимназия-интернат для одаренных детей\"",{"v":1.54E10,"d":"1.54E+10"},"Баширов","Ильяс","Филарисович","м","2009-04-13","нет",9,9,26,null,26,100,"участник","Да","Абдуллина Миляуша Магьсумовна","ГАОУ \"Гуманитарная гимназия-интернат для одаренных детей\"","Экономика"]
[13,"134003_15572473785_11","ГАОУ \"Гуманитарная гимназия-интернат для одаренных детей\"",{"v":1.56E10,"d":"1.56E+10"},"Ямалов","Азамат","Филарисович","м","2008-02-14","нет",9,9,50,null,50,100,"призер","Да","Абдуллина Миляуша Магьсумовна","ГАОУ \"Гуманитарная гимназия-интернат для одаренных детей\"","Экономика"]
[14,"134003_15739242387_11","ГАОУ \"Гуманитарная гимназия-интернат для одаренных детей\"",{"v":1.57E10,"d":"1.57E+10"},"Фахразиев","Раяз","Камилевич","м","2008-02-17","нет",9,9,53,null,53,100,"победитель",null,"Абдуллина Миляуша Магьсумовна","ГАОУ \"Гуманитарная гимназия-интернат для одаренных детей\"","Экономика"]
[17,"134003_15581842892_11","ГАОУ \"Гуманитарная гимназия-интернат для одаренных детей\"",{"v":1.56E10,"d":"1.56E+10"},"Шаймарданов","Амирхан","Алмазович","м","2008-07-02","нет",10,10,39,null,39,100,"участник","Да","Абдуллина Миляуша Магьсумовна","ГАОУ \"Гуманитарная гимназия-интернат для одаренных детей\"","Экономика"]
[18,"134003_16250254839_11","ГАОУ \"Гуманитарная гимназия-интернат для одаренных детей\"",{"v":1.63E10,"d":"1.63E+10"},"Хазиев","Румиль","Рустемович","м","2007-12-02","нет",10,10,69,null,69,100,"победитель","Да","Абдуллина Миляуша Магьсумовна","ГАОУ \"Гуманитарная гимназия-интернат для одаренных детей\"","Экономика"]
[19,"134003_15081715345_11","ГАОУ \"Гуманитарная гимназия-интернат для одаренных детей\"",{"v":1.51E10,"d":"1.51E+10"},"Умяров","Ильяс","Султанович","м","2008-05-22","нет",10,10,14,null,14,100,"участник",null,"Абдуллина Миляуша Магьсумовна","ГАОУ \"Гуманитарная гимназия-интернат для одаренных детей\"","Экономика"]
[20,"134003_16063156644_11","ГАОУ \"Гуманитарная гимназия-интернат для одаренных детей\"",{"v":1.61E10,"d":"1.61E+10"},"Галиев","Камиль","Ильнурович","м","2008-09-20","нет",10,10,16,null,16,100,"участник",null,"Абдуллина Миляуша Магьсумовна","ГАОУ \"Гуманитарная гимназия-интернат для одаренных детей\"","Экономика"]
[22,"134003_16052466950_11","ГАОУ \"Гуманитарная гимназия-интернат для одаренных детей\"",{"v":1.61E10,"d":"1.61E+10"},"Газизов","Амир","Ленарович","м","2007-05-11","нет",11,11,10,null,10,100,"участник",null,"Абдуллина Миляуша Магьсумовна","ГАОУ \"Гуманитарная гимназия-интернат для одаренных детей\"","Экономика"]
[23,"134003_17451939090_11","ГАОУ \"Гуманитарная гимназия-интернат для одаренных детей\"",{"v":1.75E10,"d":"1.75E+10"},"Саттаров","Самат","Расулович","м","2007-01-26","нет",11,11,24,null,24,100,"участник",null,"Абдуллина Миляуша Магьсумовна","ГАОУ \"Гуманитарная гимназия-интернат для одаренных детей\"","Экономика"]
[24,"134003_14562140643_11","ГАОУ \"Гуманитарная гимназия-интернат для одаренных детей\"",{"v":1.46E10,"d":"1.46E+10"},"Тимеров","Ислам","Ильсурович","м","2007-04-10","нет",11,11,50,null,50,100,"призер","Да","Абдуллина Миляуша Магьсумовна","ГАОУ \"Гуманитарная гимназия-интернат для одаренных детей\"","Экономика"]
[25,"134003_16052464038_11","ГАОУ \"Гуманитарная гимназия-интернат для одаренных детей\"",{"v":1.61E10,"d":"1.61E+10"},"Шайхразиев","Амирхан","Булатович","м","2007-06-21","нет",11,11,21,null,21,100,"участник",null,"Абдуллина Миляуша Магьсумовна","ГАОУ \"Гуманитарная гимназия-интернат для одаренных детей\"","Экономика"]
[26,"134003_17908261802_11","ГАОУ \"Гуманитарная гимназия-интернат для одаренных детей\"",{"v":1.79E10,"d":"1.79E+10"},"Ханов","Рузаль","Раифович","м","2007-03-19","нет",11,11,31,null,31,100,"участник",null,"Абдуллина Миляуша Магьсумовна","ГАОУ \"Гуманитарная гимназия-интернат для одаренных детей\"","Экономика"]

{"sheet":"история","index":12,"n_rows":26,"n_cols":21,"rows_kept":26}
[]
[]
["№","Код участника","Название ОУ","СНИЛС","Фамилия","Имя","Отчество","Пол","Дата рождения","Участник с ОВЗ","Класс","Класс участия","Первичный балл","Добавлено баллов по итогам аппеляции","Итоговый балл","Макс. балл","Статус","Призер МЭ прошлого года","Учитель","Место работы учителя","Предмет"]
[3,"134003_16821243055_21","ГАОУ \"Гуманитарная гимназия-интернат для одаренных детей\"",16821243055,"Абударов","Адель","Зульфатович","м","2011-08-11","нет",6,7,29,null,29,100,"участник",null,"Гилметдинов Марат Ильсурович","ГАОУ \"Гуманитарная гимназия-интернат для одаренных детей\"","История"]
[4,"134003_17396639221_21","ГАОУ \"Гуманитарная гимназия-интернат для одаренных детей\"",17396639221,"Исламов","Азамат","Янбулатович","м","2012-10-04","нет",6,7,28,null,28,100,"участник",null,"Гилметдинов Марат Ильсурович","ГАОУ \"Гуманитарная гимназия-интернат для одаренных детей\"","История"]
[15,"134003_16451128449_21","ГАОУ \"Гуманитарная гимназия-интернат для одаренных детей\"",16451128449,"Фазаелова","Тансылу","Халиловна","ж","2011-03-04","нет",7,7,55,null,55,100,"победитель",null,"Гилметдинов Марат Ильсурович","ГАОУ \"Гуманитарная гимназия-интернат для одаренных детей\"","История"]
[21,"134003_17227793995_21","ГАОУ \"Гуманитарная гимназия-интернат для одаренных детей\"",17227793995,"Рахимов","Булат","Рузилевич","м","2010-11-11","нет",7,8,55,null,55,100,"победитель","Да","Гилметдинов Марат Ильсурович","ГАОУ \"Гуманитарная гимназия-интернат для одаренных детей\"","История"]
[23,134003,"ГАОУ \"Гуманитарная гимназия-интернат для одаренных детей\"",15838694525,"Ахмадгалиев","Амир","Нургалиевич","м","2010-03-20","нет",8,8,29,null,29,100,"участник",null,"Гилметдинов Марат Ильсурович","ГАОУ \"Гуманитарная гимназия-интернат для одаренных детей\"","История"]
[35,"134003_17247408978_21","ГАОУ \"Гуманитарная гимназия-интернат для одаренных детей\"",17247408978,"Ягофаров","Хасан","Русланович","м","2010-10-21","нет",8,8,25,null,25,100,"участник","Да","Гилметдинов Марат Ильсурович","ГАОУ \"Гуманитарная гимназия-интернат для одаренных детей\"","История"]
[36,"134003_17464175689_21","ГАОУ \"Гуманитарная гимназия-интернат для одаренных детей\"",17464175689,"Вафина","Чулпан","Габдулловна","ж","2011-02-07","нет",8,8,42,null,42,100,"участник",null,"Гилметдинов Марат Ильсурович","ГАОУ \"Гуманитарная гимназия-интернат для одаренных детей\"","История"]
[37,"134003_16299191809_21","ГАОУ \"Гуманитарная гимназия-интернат для одаренных детей\"",16299191809,"Сабирова","Гульмира","Робертовна","ж","2010-11-06","нет",8,8,21,null,21,100,"участник","Да","Гилметдинов Марат Ильсурович","ГАОУ \"Гуманитарная гимназия-интернат для одаренных детей\"","История"]
[38,"134003_16147695992_21","ГАОУ \"Гуманитарная гимназия-интернат для одаренных детей\"",16147695992,"Хамматуллина","Гузель","Радисовна","ж","2010-07-29","нет",8,8,49,null,49,100,"участник",null,"Гилметдинов Марат Ильсурович","ГАОУ \"Гуманитарная гимназия-интернат для одаренных детей\"","История"]
[39,"134003_16125730946_21","ГАОУ \"Гуманитарная гимназия-интернат для одаренных детей\"",16125730946,"Хусаенова","Ясмина","Нуровна","ж","2010-07-01","нет",8,8,38,null,38,100,"участник",null,"Гилметдинов Марат Ильсурович","ГАОУ \"Гуманитарная гимназия-интернат для одаренных детей\"","История"]
[40,"134003_16171107230_21","ГАОУ \"Гуманитарная гимназия-интернат для одаренных детей\"",16171107230,"Шаймарданова","Тансылу","Рамисовна","ж","2010-03-05","нет",8,8,45,null,45,100,"участник",null,"Гилметдинов Марат Ильсурович","ГАОУ \"Гуманитарная гимназия-интернат для одаренных детей\"","История"]
[62,"134003_16063156644_21","ГАОУ \"Гуманитарная гимназия-интернат для одаренных детей\"",16063156644,"Галиев","Камиль","Ильнурович","м","2008-09-20","нет",10,10,52,null,52,100,"призер",null,"Гилметдинов Марат Ильсурович","ГАОУ \"Гуманитарная гимназия-интернат для одаренных детей\"","История"]
[63,"134003_15772835302_21","ГАОУ \"Гуманитарная гимназия-интернат для одаренных детей\"",15772835302,"Кирамова","Зиля","Рамилевна","ж","2008-11-24","нет",10,10,35,null,35,100,"участник",null,"Гилметдинов Марат Ильсурович","ГАОУ \"Гуманитарная гимназия-интернат для одаренных детей\"","История"]
[64,"134003_16296599321_21","ГАОУ \"Гуманитарная гимназия-интернат для одаренных детей\"",16296599321,"Рахматулин","Артур","Ренатович","м","2008-06-01","нет",10,10,40,null,40,100,"участник",null,"Гилметдинов Марат Ильсурович","ГАОУ \"Гуманитарная гимназия-интернат для одаренных детей\"","История"]
[65,"134003_15900553860_21","ГАОУ \"Гуманитарная гимназия-интернат для одаренных детей\"",15900553860,"Шайгаллямова","Назиля","Фирдависовна","ж","2008-07-09","нет",10,10,23,null,23,100,"участник",null,"Гилметдинов Марат Ильсурович","ГАОУ \"Гуманитарная гимназия-интернат для одаренных детей\"","История"]
[66,"134003_17355946807_21","ГАОУ \"Гуманитарная гимназия-интернат для одаренных детей\"",17355946807,"Хазиев","Румиль","Рустемович","м","2007-12-02","нет",10,10,61,null,61,100,"победитель",null,"Гилметдинов Марат Ильсурович","ГАОУ \"Гуманитарная гимназия-интернат для одаренных детей\"","История"]
[69,134003,"ГАОУ \"Гуманитарная гимназия-интернат для одаренных детей\"",15765927619,"Имамов","Руслан","Тимурович","м","2008-10-08","нет",10,10,21,null,21,100,"участник",null,"Гилметдинов Марат Ильсурович","ГАОУ \"Гуманитарная гимназия-интернат для одаренных детей\"","История"]
[70,134003,"ГАОУ \"Гуманитарная гимназия-интернат для одаренных детей\"",15769763433,"Сарварова","Язиля","Ильшатовна","ж","2008-09-14","нет",10,10,41,null,41,100,"участник",null,"Гилметдинов Марат Ильсурович","ГАОУ \"Гуманитарная гимназия-интернат для одаренных детей\"","История"]
[72,"134003_15431056733_21","ГАОУ \"Гуманитарная гимназия-интернат для одаренных детей\"",15431056733,"Галимов","Рустем","Равилевич","м","2008-03-19","нет",11,11,26,null,26,100,"участник",null,"Гилметдинов Марат Ильсурович","ГАОУ \"Гуманитарная гимназия-интернат для одаренных детей\"","История"]
[73,"134003_16382925289_21","ГАОУ \"Гуманитарная гимназия-интернат для одаренных детей\"",16382925289,"Мирзасалихов","Мухаммет","Илшатович","м","2007-11-18","нет",11,11,50,null,50,100,"призер",null,"Гилметдинов Марат Ильсурович","ГАОУ \"Гуманитарная гимназия-интернат для одаренных детей\"","История"]
[74,"134003_15746162986_21","ГАОУ \"Гуманитарная гимназия-интернат для одаренных детей\"",15746162986,"Фардиева","Алиса","Ильназовна","ж","2007-11-01","нет",11,11,50,null,50,100,"призер",null,"Гилметдинов Марат Ильсурович","ГАОУ \"Гуманитарная гимназия-интернат для одаренных детей\"","История"]
[75,"134003_16146507354_21","ГАОУ \"Гуманитарная гимназия-интернат для одаренных детей\"",16146507354,"Амирханов","Ильнур","Инсафович","м","2007-10-26","нет",11,11,65,null,65,100,"победитель",null,"Гилметдинов Марат Ильсурович","ГАОУ \"Гуманитарная гимназия-интернат для одаренных детей\"","История"]
[78,134003,"ГАОУ \"Гуманитарная гимназия-интернат для одаренных детей\"",16096149175,"Загрутдинов","Амирхан","Русланович","м","2007-04-04","нет",11,11,41,null,41,100,"участник",null,"Гилметдинов Марат Ильсурович","ГАОУ \"Гуманитарная гимназия-интернат для одаренных детей\"","История"]

{"sheet":"История татарстана","index":13,"n_rows":18,"n_cols":21,"rows_kept":18}
["№","Код участника","Название ОУ","СНИЛС","Фамилия","Имя","Отчество","Пол","Дата рождения","Участник с ОВЗ","Класс","Класс участия","Первичный балл","Добавлено баллов после аппеляций","Итоговый балл","Максимальный балл","Статус","Призер МЭ прошлого года","Учитель","Место работы учителя","Предмет"]
[6,"134003_17227793995_12","ГАОУ \"Гуманитарная гимназия-интернат для одаренных детей\"",17227793995,"Рахимов","Булат","Рузилевич","м","2010-11-11","нет",7,8,33,null,33,100,"участник","Да","Гилметдинов Марат Ильсурович","ГАОУ \"Гуманитарная гимназия-интернат для одаренных детей\"","История Татарстана и татарского народа"]
[7,"134003_16451128449_12","ГАОУ \"Гуманитарная гимназия-интернат для одаренных детей\"",16451128449,"Фазаелова","Тансылу","Халиловна","ж","2011-03-04","нет",7,8,32,null,32,100,"участник",null,"Гилметдинов Марат Ильсурович","ГАОУ \"Гуманитарная гимназия-интернат для одаренных детей\"","История Татарстана и татарского народа"]
[13,"134003_17464175689_12","ГАОУ \"Гуманитарная гимназия-интернат для одаренных детей\"",17464175689,"Вафина","Чулпан","Габдулловна","ж","2011-02-07","нет",8,8,27,null,27,100,"участник",null,"Гилметдинов Марат Ильсурович","ГАОУ \"Гуманитарная гимназия-интернат для одаренных детей\"","История Татарстана и татарского народа"]
[14,"134003_16299191809_12","ГАОУ \"Гуманитарная гимназия-интернат для одаренных детей\"",16299191809,"Сабирова","Гульмира","Робертовна","ж","2010-11-06","нет",8,8,17,null,17,100,"участник","Да","Гилметдинов Марат Ильсурович","ГАОУ \"Гуманитарная гимназия-интернат для одаренных детей\"","История Татарстана и татарского народа"]
[15,"134003_16147695992_12","ГАОУ \"Гуманитарная гимназия-интернат для одаренных детей\"",16147695992,"Хамматуллина","Гузель","Радисовна","ж","2010-07-29","нет",8,8,22,null,22,100,"участник",null,"Гилметдинов Марат Ильсурович","ГАОУ \"Гуманитарная гимназия-интернат для одаренных детей\"","История Татарстана и татарского народа"]
[16,"134003_16125730946_12","ГАОУ \"Гуманитарная гимназия-интернат для одаренных детей\"",16125730946,"Хусаенова","Ясмина","Нуровна","ж","2010-07-01","нет",8,8,16,null,16,100,"участник",null,"Гилметдинов Марат Ильсурович","ГАОУ \"Гуманитарная гимназия-интернат для одаренных детей\"","История Татарстана и татарского народа"]
[17,"134003_16171107230_12","ГАОУ \"Гуманитарная гимназия-интернат для одаренных детей\"",16171107230,"Шаймарданова","Тансылу","Рамисовна","ж","2010-03-05","нет",8,8,24,null,24,100,"участник",null,"Гилметдинов Марат Ильсурович","ГАОУ \"Гуманитарная гимназия-интернат для одаренных детей\"","История Татарстана и татарского народа"]
[26,"134003_16063156644_12","ГАОУ \"Гуманитарная гимназия-интернат для одаренных детей\"",16063156644,"Галиев","Камиль","Ильнурович","м","2008-09-20","нет",10,10,68,null,68,133,"победитель",null,"Гилметдинов Марат Ильсурович","ГАОУ \"Гуманитарная гимназия-интернат для одаренных детей\"","История Татарстана и татарского народа"]
[27,"134003_16296599321_12","ГАОУ \"Гуманитарная гимназия-интернат для одаренных детей\"",16296599321,"Рахматулин","Артур","Ренатович","м","2008-06-01","нет",10,10,52,null,52,133,"участник",null,"Гилметдинов Марат Ильсурович","ГАОУ \"Гуманитарная гимназия-интернат для одаренных детей\"","История Татарстана и татарского народа"]
[28,"134003_15900553860_12","ГАОУ \"Гуманитарная гимназия-интернат для одаренных детей\"",15900553860,"Шайгаллямова","Назиля","Фирдависовна","ж","2008-07-09","нет",10,10,38,null,38,133,"участник",null,"Гилметдинов Марат Ильсурович","ГАОУ \"Гуманитарная гимназия-интернат для одаренных детей\"","История Татарстана и татарского народа"]
[29,134003,"ГАОУ \"Гуманитарная гимназия-интернат для одаренных детей\"",15765927619,"Имамов","Руслан","Тимурович","м","2008-10-08","нет",10,10,10,null,10,133,"участник",null,"Гилметдинов Марат Ильсурович","ГАОУ \"Гуманитарная гимназия-интернат для одаренных детей\"","История Татарстана и татарского народа"]
[31,"134003_","ГАОУ \"Гуманитарная гимназия-интернат для одаренных детей\"",15769763433,"Сарварова","Язиля","Ильшатовна","ж","2008-09-14","нет",10,10,56,null,56,133,"участник",null,"Гилметдинов Марат Ильсурович","ГАОУ \"Гуманитарная гимназия-интернат для одаренных детей\"","История Татарстана и татарского народа"]
[34,"134003_15431056733_12","ГАОУ \"Гуманитарная гимназия-интернат для одаренных детей\"",15431056733,"Галимов","Рустем","Равилевич","м","2008-03-19","нет",11,11,33,null,33,133,"участник",null,"Гилметдинов Марат Ильсурович","ГАОУ \"Гуманитарная гимназия-интернат для одаренных детей\"","История Татарстана и татарского народа"]
[35,"134003_16382925289_12","ГАОУ \"Гуманитарная гимназия-интернат для одаренных детей\"",16382925289,"Мирзасалихов","Мухаммет","Илшатович","м","2007-11-18","нет",11,11,55,null,55,133,"участник",null,"Гилметдинов Марат Ильсурович","ГАОУ \"Гуманитарная гимназия-интернат для одаренных детей\"","История Татарстана и татарского народа"]
[36,"134003_15746162986_12","ГАОУ \"Гуманитарная гимназия-интернат для одаренных детей\"",15746162986,"Фардиева","Алиса","Ильназовна","ж","2007-11-01","нет",11,11,63,null,63,133,"участник",null,"Гилметдинов Марат Ильсурович","ГАОУ \"Гуманитарная гимназия-интернат для одаренных детей\"","История Татарстана и татарского народа"]
[37,"134003_16146507354_12","ГАОУ \"Гуманитарная гимназия-интернат для одаренных детей\"",16146507354,"Амирханов","Ильнур","Инсафович","м","2007-10-26","нет",11,11,74,null,74,133,"призер",null,"Гилметдинов Марат Ильсурович","ГАОУ \"Гуманитарная гимназия-интернат для одаренных детей\"","История Татарстана и татарского народа"]
[38,134003,"ГАОУ \"Гуманитарная гимназия-интернат для одаренных детей\"",16096149175,"Загрутдинов","Амирхан","Русланович","м","2007-04-04","нет",11,11,57,null,57,133,"участник",null,"Гилметдинов Марат Ильсурович","ГАОУ \"Гуманитарная гимназия-интернат для одаренных детей\"","История Татарстана и татарского народа"]

{"sheet":"геология","index":14,"n_rows":7,"n_cols":21,"rows_kept":7}
["№","Код участника","Название ОУ","СНИЛС","Фамилия","Имя","Отчество","Пол","Дата рождения","Участник с ОВЗ","Класс","Класс участия","Первичный балл","Добавлено баллов по итогам аппеляции","Итоговый балл","Макс. балл","Статус","Призер РЭ прошлого года","Учитель","Место работы учителя","Предмет"]
[11,"134003_16323513538_17","ГАОУ \"Гуманитарная гимназия-интернат для одаренных детей\"",16323513538,"Гимадиев","Ильяс","Рушатович","м","2010-12-05","нет",8,8,48,null,48,100,"участник",null,"Файзуллин Рустам Уелович","ГАОУ \"Гуманитарная гимназия-интернат для одарённых детей\"","Геология"]
[12,"134003_16069037868_17","ГАОУ \"Гуманитарная гимназия-интернат для одаренных детей\"",16069037868,"Саетов","Азат","Алмазович","м","07.062010","нет",8,8,42,null,42,100,"участник",null,"Файзуллин Рустам Уелович","ГАОУ \"Гуманитарная гимназия-интернат для одарённых детей\"","Геология"]
[13,"134003_16196729100_17","ГАОУ \"Гуманитарная гимназия-интернат для одаренных детей\"",16196729100,"Гарипов","Тимур","Русланович","м","2010-05-16","нет",8,8,71,null,71,100,"призер",null,"Файзуллин Рустам Уелович","ГАОУ \"Гуманитарная гимназия-интернат для одарённых детей\"","Геология"]
[14,"134003_15688994654_17","ГАОУ \"Гуманитарная гимназия-интернат для одаренных детей\"",15688994654,"Закиев","Камиль","Булатович","м","2009-12-09","нет",8,8,80,null,80,100,"победитель",null,"Файзуллин Рустам Уелович","ГАОУ \"Гуманитарная гимназия-интернат для одарённых детей\"","Геология"]
[15,"134003_16361082147_17","ГАОУ \"Гуманитарная гимназия-интернат для одаренных детей\"",16361082147,"Хафизов","Ильяр","Ильдарович","м","2010-12-01","нет",8,8,77,null,77,100,"призер",null,"Файзуллин Рустам Уелович","ГАОУ \"Гуманитарная гимназия-интернат для одарённых детей\"","Геология"]
[34,"134003_16063162033_17","ГАОУ \"Гуманитарная гимназия-интернат для одаренных детей\"",16063162033,"Султанов","Самат","Булатович","м","2007-11-10","нет",11,11,78,null,78,100,"победитель","Да","Файзуллин Рустам Уелович","ГАОУ \"Гуманитарная гимназия-интернат для одарённых детей\"","Геология"]

{"sheet":"ОБЗР","index":15,"n_rows":218,"n_cols":13,"rows_kept":218}
["№","Фамилия","Имя","Отчество","Пол","Участник с ОВЗ","Класс","Балл","Макс. балл","Статус","Призер МЭ прошлого года","Учитель","Предмет"]
[1,"Вагизов","Ильяс","Ильдарович","м","нет",4,52,100,"призер","Да","Шайхуллина Светлана Рифовна","ОБЗР"]
[2,"Габдулгалиева","Камила","Линаровна","ж","нет",4,56,100,"победитель","Да","Шайхуллина Светлана Рифовна","ОБЗР"]
[3,"Шайхутдинов","Газиз","Айдарович","м","нет",4,53,100,"призер","Да","Шайхуллина Светлана Рифовна","ОБЗР"]
[4,"Гафуров","Зиннур","Ильгизович","м","нет",4,50,100,"призер",null,"Хуббутдинова Дилара Дугласовна","ОБЗР"]
[5,"Шавалиев","Амир","Ленарович","м","нет",9,135,200,"победитель","Да","Сибгатуллин Ришат Тимершаехович","ОБЗР"]
[6,"Адиатуллина","Эделина","Ильназовна","ж","нет",9,119,200,"призер","Да","Сибгатуллин Ришат Тимершаехович","ОБЗР"]
[7,"Хуззятова","Камиля","Ильназовна","ж","нет",9,132,200,"призер","Да","Сибгатуллин Ришат Тимершаехович","ОБЗР"]
[8,"Мухаметдинов","Радмир","Ильнарович","м","нет",9,128,200,"призер","Да","Сибгатуллин Ришат Тимершаехович","ОБЗР"]
[9,"Шавалиева","Замира","Рашитовна","ж","нет",10,130,200,"победитель",null,"Сибгатуллин Ришат Тимершаехович","ОБЗР"]
[10,"Латипова","Ясмина","Назилевна","ж","нет",4,34,62,"победитель",null,"Ганиева Файруза Филарисовна","Английский язык"]
[11,"Харисова","Гузель","Ильясовна","ж","нет",9,111,125,"победитель","Да","Ганиева Файруза Филарисовна","Английский язык"]
[12,"Бакирова","Айзиля","Рузилевна","ж","нет",4,33,62,"призер",null,"Ганиева Файруза Филарисовна","Английский язык"]
[13,"Шайхайдарова","Адиля","Булатовна","ж","нет",5,30,56,"призер",null,"Темел Румия Данисовна","Английский язык"]
[14,"Ахмадгалиев","Аяз","Ниязович","м","нет",5,28,56,"призер",null,"Темел Румия Данисовна","Английский язык"]
[15,"Миниханова","Лия","Ильмировна","ж","нет",5,31,56,"призер",null,"Мусина Рузиля Айдаровна","Английский язык"]
[16,"Мугтазирова","Фарида","Инсафовна","ж","нет",5,29,56,"призер",null,"Гимранова Сания Мударисовна","Английский язык"]
[17,"Исламова","Динара","Ленаровна","ж","нет",5,32,56,"призер",null,"Ганиева Файруза Филарисовна","Английский язык"]
[18,"Гафуров","Тимур","Анварович","ж","нет",5,41,56,"призер",null,"Ганиева Файруза Филарисовна","Английский язык"]
[19,"Валиев","Юнус","Ленисович","м","нет",6,35,56,"призер","Да","Гимранова Сания Мударисовна.","Английский язык"]
[20,"Салахова","Валерия","Вильдановна","ж","нет",7,65,95,"призер","Да","Темел Румия Данисовна","Английский язык"]
[21,"Шакурова","Диляра","Фаварисовна","ж","нет",7,48,95,"призер",null,"Темел Румия Данисовна","Английский язык"]
[22,"Исламова","Камила","Эдуардовна","ж","нет",7,69,95,"призер",null,"Гимранова Сания Мударисовна.","Английский язык"]
[23,"Гильметдинова","Тансылу","Маратовна","ж","нет",7,73,95,"призер","Да","Гимранова Сания Мударисовна.","Английский язык"]
[24,"Галиев","Самир","Сиринатович","м","нет",7,66,95,"призер",null,"Гимранова Сания Мударисовна.","Английский язык"]
[25,"Закирова","Камила","Риназовна","ж","нет",9,88,125,"призер","Да","Ганиева Файруза Филарисовна","Английский язык"]
[26,"Шакирова","Лиана","Ильгамовна","ж","нет",10,107,125,"призер","Да","Ганиева Файруза Филарисовна","Английский язык"]
[27,"Мухаметдинова","Эльвина","Ураловна","ж","нет",11,87,125,"призер","Да","Ганиева Файруза Филарисовна","Английский язык"]
[28,"Ибрагимова","Алия","Ильгамовна","ж","нет",11,90,125,"призер",null,"Ганиева Файруза Филарисовна","Английский язык"]
[29,"Марданова","Азалия","Ильнуровна","ж","нет",7,65,100,"победитель",null,"Рафикова Резеда Шамилевна","Литература"]
[30,"Вафина","Чулпан","Габдулловна","ж","нет",8,85,100,"победитель","Да","Рафикова Резеда Шамилевна","Литература"]
[31,"Шакирова","Резеда","Рашитовна","ж","нет",9,89,100,"победитель","Да","Рафикова Резеда Шамилевна","Литература"]
[32,"Сарварова","Язиля","Ильшатовна","ж","нет",10,91,100,"победитель","Да","Рафикова Резеда Шамилевна","Литература"]
[33,"Шайхайдарова","Лиана","Виловна","ж","нет",7,56,100,"призер",null,"Нурыева Ирина Альбиновна","Литература"]
[34,"Имамова","Милана","Рамилевна","ж","нет",7,58,100,"призер",null,"Нурыева Ирина Альбиновна","Литература"]
[35,"Гильметдинова","Тансылу","Маратовна","ж","нет",7,62,100,"призер",null,"Нурыева Ирина Альбиновна","Литература"]
[36,"Галиуллина","Ильфина","Филусовна","ж","нет",8,82,100,"призер","Да","Рафикова Резеда Шамилевна","Литература"]
[37,"Ягофаров","Хасан","Русланович","ж","нет",8,57,100,"призер",null,"Рафикова Резеда Шамилевна","Литература"]
[38,"Хусаенова","Ясмина","Нуровна","ж","нет",8,83,100,"призер",null,"Рафикова Резеда Шамилевна","Литература"]
[39,"Гафурова","Руфина","Робертовна","ж","нет",8,80,100,"призер",null,"Рафикова Резеда Шамилевна","Литература"]
[40,"Хафизова","Эвелина","Ильвировна","ж","нет",9,82,100,"призер","Да","Нурыева Ирина Альбиновна","Литература"]
[41,"Адиятуллина","Эделина","Ильназовна","ж","нет",9,79,100,"призер","Да","Нурыева Ирина Альбиновна","Литература"]
[42,"Рафикова","Руфина","Рустямовна","ж","нет",9,72,100,"призер",null,"Нурыева Ирина Альбиновна","Литература"]
[43,"Авзалова","Амелия","Радиславовна","ж","нет",9,85,100,"призер","Да","Рафикова Резеда Шамилевна","Литература"]
[44,"Ильясова","Эндже","Илнуровна","ж","нет",9,84,100,"призер",null,"Рафикова Резеда Шамилевна","Литература"]
[45,"Шайхайдарова","Лиана","Виловна","ж","нет",7,65,130,"призер",null,"Абдуллина Миляуша Магьсумовна","Искусство (МХК)"]
[46,"Гафурова","Руфина","Робертовна","ж","нет",8,88,130,"победитель",null,"Абдуллина Миляуша Магьсумовна","Искусство (МХК)"]
[47,"Саяпова","Аделина","Алмазовна","ж","нет",8,82,130,"призер",null,"Абдуллина Миляуша Магьсумовна","Искусство (МХК)"]
[48,"Рафикова","Руфина","Рустамовна","ж","нет",9,87,170,"призер",null,"Абдуллина Миляуша Магьсумовна","Искусство (МХК)"]
[49,"Авзалова","Амелия","Радиславовна","ж","нет",9,86,170,"призер",null,"Абдуллина Миляуша Магьсумовна","Искусство (МХК)"]
[50,"Шакирова","Резеда","Рашитовна","ж","нет",9,91,170,"победитель",null,"Абдуллина Миляуша Магьсумовна","Искусство (МХК)"]
[51,"Зайдуллин","Искандер","Ильясович","м","нет",9,89,170,"призер","Да","Абдуллина Миляуша Магьсумовна","Искусство (МХК)"]
[52,"Фардиева","Илина","Рависовна","ж","нет",11,179,210,"победитель","Да","Абдуллина Миляуша Магьсумовна","Искусство (МХК)"]
[53,"Гибадуллин","Тимур","Альфредович","м","нет",5,40,73,"призер",null,"Нурыева Ирина Альбиновна","Русский язык"]
[54,"Исхакова","Адиля","Маратовна","ж","нет",5,43,73,"призер",null,"Рафикова Резеда Шамилевна","Русский язык"]
[55,"Валиев","Юнус","Ленисович","м","нет",6,39,73,"призер",null,"Нурыева Ирина Альбиновна","Русский язык"]
[56,"Валиахметова","Аделина","Илфатовна","ж","нет",6,53,73,"призер",null,"Шагзамова Энже Фирдависовна","Русский язык"]
[57,"Шагалиева","Айсина","Айнуровна","ж","нет",6,53,73,"призер",null,"Шагзамова Энже Фирдависовна","Русский язык"]
[58,"Шайхайдарова","Лиана","Виловна","ж","нет",7,40,75,"призер",null,"Нурыева Ирина Альбиновна","Русский язык"]
[59,"Гильметдинова","Тансылу","Маратовна","ж","нет",7,56,75,"призер","Да","Шагзамова Энже Фирдависовна","Русский язык"]
[60,"Шакурова","Диляра","Фаварисовна","ж","нет",7,56,75,"призер","Да","Шагзамова Энже Фирдависовна","Русский язык"]
[61,"Шайхуллина","Зиля","Расиховна","ж","нет",7,56,75,"призер",null,"Рафикова Резеда Шамилевна","Русский язык"]
[62,"Гафурова","Руфина","Робертовна","ж","нет",8,44,75,"призер",null,"Шагзамова Энже Фирдависовна","Русский язык"]
[63,"Загертдинова","Эльвина","Илшатовна","ж","нет",8,54,75,"призер","Да","Рафикова Резеда Шамилевна","Русский язык"]
[64,"Бикимова","Камила","Юлаевна","ж","нет",9,55,91,"призер","Да","Рафикова Резеда Шамилевна","Русский язык"]
[65,"Авзалова","Амелия","Радиславовона","ж","нет",9,58,91,"призер","Да","Рафикова Резеда Шамилевна","Русский язык"]
[66,"Шакирова","Лиана","Ильгамовна","ж","нет",10,69,83,"победитель","Да","Шагзамова Энже Фирдависовна","Русский язык"]
[67,"Маликова","Азалия","Ильназовна","ж","нет",10,65,83,"призер","Да","Рафикова Резеда Шамилевна","Русский язык"]
[68,"Хаернасова","Алина","Ринатовна","ж","нет",11,63,83,"призер","Да","Шагзамова Энже Фирдависовна","Русский язык"]
[69,"Гильметдинова","Тансылу","Маратовна","ж","нет",7,78,85,"победитель","Да","Шагзамова Энже Фирдависовна","Русский язык для обучающихся школ с родным языком обучения"]
[70,"Шайхайдарова","Амина","Булатовна","ж","нет",7,73,85,"призер",null,"Нурыева Ирина Альбиновна","Русский язык для обучающихся школ с родным языком обучения"]
[71,"Шакурова","Диляра","Фаварисовна","ж","нет",7,75,85,"призер","Да","Шагзамова Энже Фирдависовна","Русский язык для обучающихся школ с родным языком обучения"]
[72,"Загертдинова","Эльвина","Илшатовна","ж","нет",8,71,85,"призер","Да","Рафикова Резеда Шамилевна","Русский язык для обучающихся школ с родным языком обучения"]
[73,"Галиуллина","Ильфина","Филусовна","ж","нет",8,72,85,"призер",null,"Рафикова Резеда Шамилевна","Русский язык для обучающихся школ с родным языком обучения"]
[74,"Гафурова","Руфина","Робертовна","ж","нет",8,73,85,"призер","Да","Шагзамова Энже Фирдависовна","Русский язык для обучающихся школ с родным языком обучения"]
[75,"Бикимова","Камила","Юлаевна","ж","нет",9,87,100,"призер","Да","Рафикова Резеда Шамилевна","Русский язык для обучающихся школ с родным языком обучения"]
[76,"Хафизова","Эвелина","Ильвировна","ж","нет",9,92,100,"победитель","Да","Рафикова Резеда Шамилевна","Русский язык для обучающихся школ с родным языком обучения"]
[77,"Шакирова","Резеда","Рашитовна","ж","нет",9,90,100,"призер","Да","Рафикова Резеда Шамилевна","Русский язык для обучающихся школ с родным языком обучения"]
[78,"Ильясова","Эндже","Илнуровна","ж","нет",9,85,100,"призер",null,"Рафикова Резеда Шамилевна","Русский язык для обучающихся школ с родным языком обучения"]
[79,"Авзалова","Амелия","Радиславовона","ж","нет",9,89,100,"призер","Да","Рафикова Резеда Шамилевна","Русский язык для обучающихся школ с родным языком обучения"]
[80,"Сарварова","Язиля","Ильшатовна","ж","нет",10,92,100,"победитель","Да","Рафикова Резеда Шамилевна","Русский язык для обучающихся школ с родным языком обучения"]
[81,"Хаернасова","Алина","Ринатовна","ж","нет",11,91,100,"победитель","Да","Шагзамова Энже Фирдависовна","Русский язык для обучающихся школ с родным языком обучения"]
[82,"Мухаметдинова","Эльвина","Ураловна","ж","нет",11,88,100,"призер",null,"Нурыева Ирина Альбиновна","Русский язык для обучающихся школ с родным языком обучения"]
[83,"Маликов","Раяз","Ильназович","м","нет",7,60,100,"призер",null,"Абдуллина Миляуша Магьсумовна","Экономика"]
[84,"Фархиев","Зиннур","Риналевич","м","нет",8,62,100,"победитель",null,"Абдуллина Миляуша Магьсумовна","Экономика"]
[85,"Ямалов","Азамат","Филарисович","м","нет",9,50,100,"призер","Да","Абдуллина Миляуша Магьсумовна","Экономика"]
[86,"Фахразиев","Раяз","Камилевич","м","нет",9,53,100,"победитель",null,"Абдуллина Миляуша Магьсумовна","Экономика"]
[87,"Хазиев","Румиль","Рустемович","м","нет",10,69,100,"победитель","Да","Абдуллина Миляуша Магьсумовна","Экономика"]
[88,"Тимеров","Ислам","Ильсурович","м","нет",11,50,100,"призер","Да","Абдуллина Миляуша Магьсумовна","Экономика"]
[89,"Фазаелова","Тансылу","Халиловна","ж","нет",7,55,100,"победитель",null,"Гилметдинов Марат Ильсурович","История"]
[90,"Рахимов","Булат","Рузилевич","м","нет",7,55,100,"победитель","Да","Гилметдинов Марат Ильсурович","История"]
[91,"Галиев","Камиль","Ильнурович","м","нет",10,52,100,"призер",null,"Гилметдинов Марат Ильсурович","История"]
[92,"Хазиев","Румиль","Рустемович","м","нет",10,61,100,"победитель",null,"Гилметдинов Марат Ильсурович","История"]
[93,"Мирзасалихов","Мухаммет","Илшатович","м","нет",11,50,100,"призер",null,"Гилметдинов Марат Ильсурович","История"]
[94,"Фардиева","Алиса","Ильназовна","ж","нет",11,50,100,"призер",null,"Гилметдинов Марат Ильсурович","История"]
[95,"Амирханов","Ильнур","Инсафович","м","нет",11,65,100,"победитель",null,"Гилметдинов Марат Ильсурович","История"]
[96,"Галиев","Камиль","Ильнурович","м","нет",10,68,133,"победитель",null,"Гилметдинов Марат Ильсурович","История Татарстана и татарского народа"]
[97,"Амирханов","Ильнур","Инсафович","м","нет",11,74,133,"призер",null,"Гилметдинов Марат Ильсурович","История Татарстана и татарского народа"]
[98,"Гарипов","Тимур","Русланович","м","нет",8,71,100,"призер",null,"Файзуллин Рустам Уелович","Геология"]
[99,"Закиев","Камиль","Булатович","м","нет",8,80,100,"победитель",null,"Файзуллин Рустам Уелович","Геология"]
[100,"Хафизов","Ильяр","Ильдарович","м","нет",8,77,100,"призер",null,"Файзуллин Рустам Уелович","Геология"]
[101,"Султанов","Самат","Булатович","м","нет",11,78,100,"победитель","Да","Файзуллин Рустам Уелович","Геология"]
[102,"Миргаязова","Алия","Ильхамовна","ж","нет",7,45,50,"призер",null,"Рафикова Резеда Шамилевна","Русская литература для обучающихся школ с родным языком обучения"]
[103,"Хуснетдинова","Нурзия","Ильназовна","ж","нет",7,47,50,"призер",null,"Рафикова Резеда Шамилевна","Русская литература для обучающихся школ с родным языком обучения"]
[104,"Шайхайдарова","Амина","Булатовна","ж","нет",7,48,50,"победитель",null,"Нурыева Ирина Альбиновна","Русская литература для обучающихся школ с родным языком обучения"]
[105,"Ахметшина","Амалия","Альбертовна","ж","нет",7,44,50,"призер",null,"Нурыева Ирина Альбиновна","Русская литература для обучающихся школ с родным языком обучения"]
[106,"Имамова","Милана","Рамилевна","ж","нет",7,46,50,"призер",null,"Нурыева Ирина Альбиновна","Русская литература для обучающихся школ с родным языком обучения"]
[107,"Гильметдинова","Тансылу","Маратовна","ж","нет",7,47,50,"призер",null,"Нурыева Ирина Альбиновна","Русская литература для обучающихся школ с родным языком обучения"]
[108,"Галиуллина","Ильфина","Филусовна","ж","нет",8,46,50,"призер","Да","Рафикова Резеда Шамилевна","Русская литература для обучающихся школ с родным языком обучения"]
[109,"Гафурова","Руфина","Робертовна","ж","нет",8,43,50,"призер",null,"Рафикова Резеда Шамилевна","Русская литература для обучающихся школ с родным языком обучения"]
[110,"Афзалова","Амелия","Радиславовна","ж","нет",9,45,50,"призер","Да","Рафикова Резеда Шамилевна","Русская литература для обучающихся школ с родным языком обучения"]
[111,"Шакирова","Резеда","Рашитовна","ж","нет",9,47,50,"победитель","Да","Рафикова Резеда Шамилевна","Русская литература для обучающихся школ с родным языком обучения"]
[112,"Ильясова","Эндже","Илнуровна","ж","нет",9,44,50,"призер",null,"Рафикова Резеда Шамилевна","Русская литература для обучающихся школ с родным языком обучения"]
[113,"Адиятуллина","Эделина","Ильназовна","ж","нет",9,44,50,"призер","Да","Нурыева Ирина Альбиновна","Русская литература для обучающихся школ с родным языком обучения"]
[114,"Сарварова","Язиля","Ильшатовна","ж","нет",10,46,50,"призер","Да","Рафикова Резеда Шамилевна","Русская литература для обучающихся школ с родным языком обучения"]
[115,"Абударов","Адель","Зульфатович","м","нет",6,29,56,"победитель","нет","Файзуллин Рустам Уелович","География"]
[116,"Маликов","Раяз","Ильназович","м","нет",7,28,56,"призер","нет","Файзуллин Рустам Уелович","География"]
[117,"Саетов","Азат","Алмазович","м","нет",8,48.5,90,"победитель","нет","Файзуллин Рустам Уелович","География"]
[118,"Хазиев","Румиль","Рустамович","м","нет",10,97.5,126,"победитель","Да","Файзуллин Рустам Уелович","География"]
[119,"Султанов","Самат","Булатович","м","нет",11,108.5,128,"победитель","Да","Файзуллин Рустам Уелович","География"]
[120,"Маликов","Раяз","Ильназович","м","нет",7,21,40,"призер",null,"Маликова Резеда Тимергазиевна","Физика"]
[121,"Галиев","Самир","Сиринатович","м","нет",7,20,40,"призер",null,"Маликова Резеда Тимергазиевна","Физика"]
[122,"Хузин","Айвар","Ниязович","м","нет",8,20,40,"призер","Да","Маликова Резеда Тимергазиевна","Физика"]
[123,"Ямалов","Азамат","Филарисович","м","нет",9,26,50,"победитель","Да","Маликова Резеда Тимергазиевна","Физика"]
[124,"Шаймарданов","Амирхан","Алмазович","м","нет",10,49,50,"победитель","Да","Маликова Резеда Тимергазиевна","Физика"]
[125,"Хуснетдинова","Нурзия","Ильназовна","ж","нет",7,16.5,30.5,"победитель",null,"Исламова Зульфия Асгатовна","Биология"]
[126,"Ахмадгалиева","Зилия","Ниязовна","ж","нет",8,18.5,36.5,"призер",null,"Исламова Зульфия Асгатовна","Биология"]
[127,"Рашитова","Марьям","Илфаковна","ж","нет",8,18.5,36.5,"призер",null,"Исламова Зульфия Асгатовна","Биология"]
[128,"Маликова","Азалия","Ильназовна","ж","нет",10,47,68,"победитель","Да","Исламова Зульфия Асгатовна","Биология"]
[129,"Маликова","Азалия","Ильназовна","ж","нет",10,30,60,"победитель",null,"Гарипова Рузиля Ильдаровна","Химия"]
[130,"Гафуров","Зиннур","Ильгизович","м","нет",4,65,100,"призер","нет","Хуббутдинова Дилара Дугласовна","Математика"]
[131,"Имамова","Румия","Тимуровна","ж","нет",5,61,100,"призер","Да","Маликова Резеда Тимергазиевна","Математика"]
[132,"Валиев","Юнус","Ленисович","м","нет",6,50,100,"призер",null,"Хазиева Рамиля Адиповна","Математика"]
[133,"Шакиров","Лимар","Ильгамович","м","нет",6,63,100,"победитель",null,"Валиева Земфия Гильфановна","Математика"]
[134,"Абударов","Адель","Зульфатович","м","нет",6,54,100,"призер","Да","Хазиева Рамиля Адиповна","Математика"]
[135,"Хакимов","Самат","Алмазович","м","нет",6,60,100,"призер",null,"Валиева Земфия Гильфановна","Математика"]
[136,"Бакирова","Айзиля","Рузилевна","ж","нет",4,80,100,"победитель","нет","Муллаярова Сумая Талгатовна","Математика"]
[137,"Маликов","Раяз","Ильназович","м","нет",7,71,100,"победитель","да","Фардиева Регина Равилевна","Математика"]
[138,"Галиев","Самир","Сиринатович","м","нет",7,64,100,"призер",null,"Фардиева Регина Равилевна","Математика"]
[139,"Рахимов","Булат","Рузилевич","м","нет",7,54,100,"призер",null,"Фардиева Регина Равилевна","Математика"]
[140,"Харисова","Гузель","Ильясовна","жен","нет",9,90,100,"победитель","да","Темел Румия Данисовна","Турецкий язык"]
[141,"Ильясова","Эндже","Илнуровна","жен","нет",9,85,100,"призер","нет","Темел Румия Данисовна","Турецкий язык"]
[142,"Адиятуллина","Рубина","Ильназовна","ж","нет",4,36,50,"призер","нет","Муллаярова Сумая Талгатовна","Родной (татарский) язык для обучающихся школ с татарским языком обучения"]
[143,"Гарипова","Диана","Ильдусовна","ж","нет",4,39,50,"призер","нет","Муллаярова Сумая Талгатовна","Родной (татарский) язык для обучающихся школ с татарским языком обучения"]
[144,"Вагизов","Ильяс","Ильдарович","м","нет",4,35.5,50,"призер","нет","Шайхуллина Светлана Рифовна","Родной (татарский) язык для обучающихся школ с татарским языком обучения"]
[145,"Габдулгалиева","Камила","Линаровна","ж","нет",4,37.5,50,"призер","нет","Шайхуллина Светлана Рифовна","Родной (татарский) язык для обучающихся школ с татарским языком обучения"]
[146,"Шайхутдинов","Газиз","Айдарович","м","нет",4,37.5,50,"призер","нет","Шайхуллина Светлана Рифовна","Родной (татарский) язык для обучающихся школ с татарским языком обучения"]
[147,"Миназев","Рамазан","Алмазович","м","нет",4,36.5,50,"призер","нет","Шайхуллина Светлана Рифовна","Родной (татарский) язык для обучающихся школ с татарским языком обучения"]
[148,"Шайхразиева","Айлина","Рузилевна","ж","нет",4,39,50,"призер","нет","Хуббутдинова Дилара Дугласовна","Родной (татарский) язык для обучающихся школ с татарским языком обучения"]
[149,"Ахмадгалиев","Аяз","Ниязович","м","нет",5,49.8,54,"призер","Да","Шарипова Чулпан Рамзилевна","Родной (татарский) язык для обучающихся школ с татарским языком обучения"]
[150,"Шайхайдарова","Аделя","Булатовна","ж","нет",5,50,54,"призер","Да","Шарипова Чулпан Рамзилевна","Родной (татарский) язык для обучающихся школ с татарским языком обучения"]
[151,"Гафуров","Тимур","Анварович","м","нет",5,52.8,54,"призер",null,"Шарипова Чулпан Рамзилевна","Родной (татарский) язык для обучающихся школ с татарским языком обучения"]
[152,"Исламова","Динара","Ленаровна","ж","нет",5,40.5,54,"призер",null,"Шарипова Чулпан Рамзилевна","Родной (татарский) язык для обучающихся школ с татарским языком обучения"]
[153,"Зайнуллин","Алмаз","Алгенатович","м","нет",5,38.4,54,"призер",null,"Шарипова Чулпан Рамзилевна","Родной (татарский) язык для обучающихся школ с татарским языком обучения"]
[154,"Исхакова","Адиля","Маратовна","ж","нет",5,38.6,54,"призер",null,"Шарипова Чулпан Рамзилевна","Родной (татарский) язык для обучающихся школ с татарским языком обучения"]
[155,"Имамова","Румия","Тимуровна","ж","нет",5,42.5,54,"призер",null,"Шарипова Чулпан Рамзилевна","Родной (татарский) язык для обучающихся школ с татарским языком обучения"]
[156,"Мугтазирова","Фарида","Инсафовна","ж","нет",5,51,54,"призер",null,"Ахмадгалиева Айгуль Ралифовна","Родной (татарский) язык для обучающихся школ с татарским языком обучения"]
[157,"Анварова","Дилия","Айнуровна","ж","нет",5,51.8,54,"призер",null,"Ахмадгалиева Айгуль Ралифовна","Родной (татарский) язык для обучающихся школ с татарским языком обучения"]
[158,"Валиахметова","Аделина","Ильфатовна","ж","нет",6,58.8,60,"призер","Да","Шарипова Чулпан Рамзилевна","Родной (татарский) язык для обучающихся школ с татарским языком обучения"]
[159,"Шагалиева","Айсина","Айнуровна","ж","нет",6,58,60,"призер","Да","Шарипова Чулпан Рамзилевна","Родной (татарский) язык для обучающихся школ с татарским языком обучения"]
[160,"Шакиров","Лимар","Ильгамович","м","нет",6,45,60,"призер",null,"Шарипова Чулпан Рамзилевна","Родной (татарский) язык для обучающихся школ с татарским языком обучения"]
[161,"Валиев","Юнус","Ленисович","м","нет",6,56.5,60,"призер",null,"Ахмадгалиева Айгуль Ралифовна","Родной (татарский) язык для обучающихся школ с татарским языком обучения"]
[162,"Харисова","Адиля","Ильфатовна","ж","нет",7,57,60,"призер","Да","Шарипова Чулпан Рамзилевна","Родной (татарский) язык для обучающихся школ с татарским языком обучения"]
[163,"Гильметдинова","Тансылу","Маратовна","ж","нет",7,57.8,60,"призер","Да","Ахмадгалиева Айгуль Ралифовна","Родной (татарский) язык для обучающихся школ с татарским языком обучения"]
[164,"Шакурова","Диляра","Фаварисовна","ж","нет",7,57,60,"призер",null,"Ахмадгалиева Айгуль Ралифовна","Родной (татарский) язык для обучающихся школ с татарским языком обучения"]
[165,"Гайнуллина","Залия","Ильсуровна","ж","нет",7,56.8,60,"призер",null,"Ахмадгалиева Айгуль Ралифовна","Родной (татарский) язык для обучающихся школ с татарским языком обучения"]
[166,"Шайхуллина","Зиля","Расиховна","ж","нет",7,58.9,60,"призер",null,"Ахмадгалиева Айгуль Ралифовна","Родной (татарский) язык для обучающихся школ с татарским языком обучения"]
[167,"Шарипова","Айзиля","Риназовна","ж","нет",8,56.5,60,"призер","Да","Шарипова Чулпан Рамзилевна","Родной (татарский) язык для обучающихся школ с татарским языком обучения"]
[168,"Салахова","Аделина","Вильсуровна","ж","нет",8,55,60,"призер","Да","Шарипова Чулпан Рамзилевна","Родной (татарский) язык для обучающихся школ с татарским языком обучения"]
[169,"Галиуллина","Ильфина","Филусовна","ж","нет",8,57,60,"призер","Да","Шавалиев Ленар Зуфакович","Родной (татарский) язык для обучающихся школ с татарским языком обучения"]
[170,"Закирова","Камила","Риназовна","ж","нет",9,56.5,64,"призер","Да","Шарипова Чулпан Рамзилевна","Родной (татарский) язык для обучающихся школ с татарским языком обучения"]
[171,"Шакирова","Резеда","Рашитовна","ж","нет",9,62,64,"призер","Да","Шарипова Чулпан Рамзилевна","Родной (татарский) язык для обучающихся школ с татарским языком обучения"]
[172,"Авзалова","Амелия","Радиславовна","ж","нет",9,62.9,64,"призер","Да","Шарипова Чулпан Рамзилевна","Родной (татарский) язык для обучающихся школ с татарским языком обучения"]
[173,"Мингазова","Алина","Айнуровна","ж","нет",9,57,64,"призер",null,"Шарипова Чулпан Рамзилевна","Родной (татарский) язык для обучающихся школ с татарским языком обучения"]
[174,"Бикимова","Камила","Юлаевна","ж","нет",9,61,64,"призер","Да","Шарипова Чулпан Рамзилевна","Родной (татарский) язык для обучающихся школ с татарским языком обучения"]
[175,"Маликова","Азалия","Ильназовна","ж","нет",10,63,64,"призер","Да","Шарипова Чулпан Рамзилевна","Родной (татарский) язык для обучающихся школ с татарским языком обучения"]
[176,"Амирова","Азалия","Айзатовна","ж","нет",10,62.3,64,"призер","Да","Шарипова Чулпан Рамзилевна","Родной (татарский) язык для обучающихся школ с татарским языком обучения"]
[177,"Мухаметдинова","Лиана","Хакимзяновна","ж","нет",10,62.9,64,"призер","Да","Шарипова Чулпан Рамзилевна","Родной (татарский) язык для обучающихся школ с татарским языком обучения"]
[178,"Сафиуллина","Адиля","Руслановна","ж","нет",10,62,64,"призер","Да","Шарипова Чулпан Рамзилевна","Родной (татарский) язык для обучающихся школ с татарским языком обучения"]
[179,"Ахметшина","Амалия","Альбертовна","ж","нет",7,40,45,"призер",null,"Шарипова Чулпан Рамзилевна","Родная (татарская) литература для обучающихся школ с татарским языком обучения"]
[180,"Гайнуллина","Залия","Ильсуровна","ж","нет",7,43,45,"победитель",null,"Ахмадгалиева Айгуль Ралифовна","Родная (татарская) литература для обучающихся школ с татарским языком обучения"]
[181,"Сабирова","Айзиряк","Ринатовна","ж","нет",7,40,45,"призер",null,"Ахмадгалиева Айгуль Ралифовна","Родная (татарская) литература для обучающихся школ с татарским языком обучения"]
[182,"Салахова","Аделина","Вильсуровна","ж","нет",8,17,45,"призер","Да","Шарипова Чулпан Рамзилевна","Родная (татарская) литература для обучающихся школ с татарским языком обучения"]
[183,"Вафина","Чулпан","Габдулловна","ж","нет",8,21,45,"призер","Да","Ахмадгалиева Айгуль Ралифовна","Родная (татарская) литература для обучающихся школ с татарским языком обучения"]
[184,"Шаймарданова","Тансылу","Рамисовна","ж","нет",8,17.5,45,"призер",null,"Ахмадгалиева Айгуль Ралифовна","Родная (татарская) литература для обучающихся школ с татарским языком обучения"]
[185,"Ильясова","Эндже","Илнуровна","ж","нет",9,52,55,"победитель","Да","Шарипова Чулпан Рамзилевна","Родная (татарская) литература для обучающихся школ с татарским языком обучения"]
[186,"Шакирова","Резеда","Рашитовна","ж","нет",9,50,55,"призер","Да","Шарипова Чулпан Рамзилевна","Родная (татарская) литература для обучающихся школ с татарским языком обучения"]
[187,"Адиятуллина","Эделина","Ильназовна","ж","нет",9,30,55,"призер","Да","Шарипова Чулпан Рамзилевна","Родная (татарская) литература для обучающихся школ с татарским языком обучения"]
[188,"Хафизова","Эвелина","Ильфировна","ж","нет",9,30.5,55,"призер","Да","Шарипова Чулпан Рамзилевна","Родная (татарская) литература для обучающихся школ с татарским языком обучения"]
[189,"Хуззятова","Камиля","Ильназовна","ж","нет",9,30,55,"призер","Да","Шарипова Чулпан Рамзилевна","Родная (татарская) литература для обучающихся школ с татарским языком обучения"]
[190,"Харисова","Гузель","Ильясовна","ж","нет",9,51,55,"призер",null,"Шарипова Чулпан Рамзилевна","Родная (татарская) литература для обучающихся школ с татарским языком обучения"]
[191,"Шайгаллямова","Назиля","Фирдависовна","ж","нет",10,52,55,"призер","Да","Шарипова Чулпан Рамзилевна","Родная (татарская) литература для обучающихся школ с татарским языком обучения"]
[192,"Салахова","Эвелина","Вильсуровна","ж","нет",10,53,55,"победитель","Да","Шарипова Чулпан Рамзилевна","Родная (татарская) литература для обучающихся школ с татарским языком обучения"]
[193,"Кирамова","Зиля","Рамилевна","ж","нет",10,51,55,"призер","Да","Шарипова Чулпан Рамзилевна","Родная (татарская) литература для обучающихся школ с татарским языком обучения"]
[194,"Ахметшина","Амалия","Альбертовна","ж","нет",7,80.5,100,"победитель",null,"Хуснетдинова Гузель Фаридовна","2 - Культура дома, дизайн и технологии"]
[195,"Хусаинова","Амина","Ленаровна","ж","нет",6,51,100,"призер",null,"Хуснетдинова Гузель Фаридовна","2 - Культура дома, дизайн и технологии"]
[196,"Лотфуллина","Айсылу","Ильнуровна","ж","нет",6,53.3,100,"призер",null,"Хуснетдинова Гузель Фаридовна","2 - Культура дома, дизайн и технологии"]
[197,"Гаязов","Рамазан","Дилшатович","м","нет",8,88,100,"победитель",null,"Сибгатуллин Ришат Тимершаехович","1 - Техника, технологии и техническое творчество"]
[198,"Хуснетдинова","Нурзия","Ильназовна","ж","нет",7,60.2,100,"победитель",null,"Хуснетдинова Гузель Фаридовна","2 - Культура дома, дизайн и технологии"]
[199,"Ямалова","Азалия","Филарисовна","ж","нет",7,68,100,"победитель","да","Ямалов Филарис Фанисович"]
[200,"Ямалов","Азамат","Филарисович","м","нет",9,69,100,"победитель","да","Ямалов Филарис Фанисович"]
[201,"Фархтдинов","Тимур","Ирекович","м","нет",4,94.34,100,"призер",null,"Исламов Ильмир Рузилович, . Харрасова Алсу Раскатовна","Физическая культура"]
[202,"Микаелян","Мери","Маркосовна","ж","нет",5,92.14,100,"призер",null,"Исламов Ильмир Рузилович, . Харрасова Алсу Раскатовна","Физическая культура"]
[203,"Закирова","Алмазия","Ильшатовна","ж","нет",5,82.87,100,"призер",null,"Исламов Ильмир Рузилович, . Харрасова Алсу Раскатовна","Физическая культура"]
[204,"Муллаянова","Алина","Ильнуровна","ж","нет",5,87.34,100,"призер",null,"Исламов Ильмир Рузилович, . Харрасова Алсу Раскатовна","Физическая культура"]
[205,"Шакирзянова","Сафия","Ильнуровна","ж","нет",5,84.09,100,"призер",null,"Исламов Ильмир Рузилович, . Харрасова Алсу Раскатовна","Физическая культура"]
[206,"Ахметов","Рияз","Ильназович","м","нет",7,96.81,100,"призер","Да","Исламов Ильмир Рузилович, . Харрасова Алсу Раскатовна","Физическая культура"]
[207,"Сарваров","Фаяз","Ильшатович","м","нет",7,92.59,100,"призер","Да","Исламов Ильмир Рузилович, . Харрасова Алсу Раскатовна","Физическая культура"]
[208,"Шарипов","Раяз","Риназович","м","нет",7,97.88,100,"победитель","Да","Исламов Ильмир Рузилович, . Харрасова Алсу Раскатовна","Физическая культура"]
[209,"Исламова","Камила","Эдуардовна","ж","нет",7,100,100,"победитель","Да","Исламов Ильмир Рузилович, . Харрасова Алсу Раскатовна","Физическая культура"]
[210,"Гимаев","Руслан","Рустамович","м","нет",7,84.59,100,"призер",null,"Исламов Ильмир Рузилович, . Харрасова Алсу Раскатовна","Физическая культура"]
[211,"Валиев","Булат","Ильшатович","м","нет",8,89.61,100,"призер",null,"Исламов Ильмир Рузилович, . Харрасова Алсу Раскатовна","Физическая культура"]
[212,"Шарипова","Айзиля","Риназовна","ж","нет",8,97.74,100,"призер","Да","Исламов Ильмир Рузилович, . Харрасова Алсу Раскатовна","Физическая культура"]
[213,"Валеева","Лилия","Ильгизовна","ж","нет",8,88.48,100,"призер","Да","Исламов Ильмир Рузилович, . Харрасова Алсу Раскатовна","Физическая культура"]
[214,"Галиуллина","Ильфина","Филусовна","ж","нет",8,97.34,100,"призер",null,"Исламов Ильмир Рузилович, . Харрасова Алсу Раскатовна","Физическая культура"]
[215,"Харрасов","Ильмар","Тагирович","м","нет",9,100,100,"победитель","Да","Исламов Ильмир Рузилович, . Харрасова Алсу Раскатовна","Физическая культура"]
[216,"Газетдинова","Гульяр","Наилевна","ж","нет",11,90.74,100,"призер","Да","Исламов Ильмир Рузилович, . Харрасова Алсу Раскатовна","Физическая культура"]
[217,"Шагалиева","Зилия","Финусовна","ж","нет",11,100,100,"победитель","Да","Исламов Ильмир Рузилович, . Харрасова Алсу Раскатовна","Физическая культура"]

{"sheet":"литра для НШ","index":16,"n_rows":31,"n_cols":21,"rows_kept":31}
[1,2,3,4,5,6,7,8,9,10,11,12,13,14,15,16]
[]
[]
["№","Код участника","Название ОУ","СНИЛС","Фамилия","Имя","Отчество","Пол","Дата рождения","Участник с ОВЗ","Класс","Класс участия","Итоговыйбалл","Добавлено баллов после апелляции","Итоговый балл","Макс. балл","Статус","Призер МЭ прошлого года","Учитель","Место работы учителя","Предмет"]
[11,"134003_16375720179_18","ГАОУ \"Гуманитарная гимназия-интернат для одаренных детей\"",16375720179,"Шайхуллина","Зиля","Расиховна","ж","2011-01-19","нет",7,7,21,null,21,50,"участник",null,"Рафикова Резеда Шамилевна","ГАОУ \"Гуманитарная гимназия-интернат для одаренных детей\"","Русская литература для обучающихся школ с родным языком обучения"]
[12,"134003_16850673700_18","ГАОУ \"Гуманитарная гимназия-интернат для одаренных детей\"",16850673700,"Миргаязова","Алия","Ильхамовна","ж","2011-09-20","нет",7,7,45,null,45,50,"призер",null,"Рафикова Резеда Шамилевна","ГАОУ \"Гуманитарная гимназия-интернат для одаренных детей\"","Русская литература для обучающихся школ с родным языком обучения"]
[13,134003,"ГАОУ \"Гуманитарная гимназия-интернат для одаренных детей\"",16948543222,"Марданова","Азалия","Ильнуровна","ж","2011-11-30","нет",7,7,22,null,22,50,"участник",null,"Рафикова Резеда Шамилевна","ГАОУ \"Гуманитарная гимназия-интернат для одаренных детей\"","Русская литература для обучающихся школ с родным языком обучения"]
[14,"134003_17061138135_18","ГАОУ \"Гуманитарная гимназия-интернат для одаренных детей\"",17061138135,"Хуснетдинова","Нурзия","Ильназовна","ж","2012-02-22","нет",7,7,47,null,47,50,"призер",null,"Рафикова Резеда Шамилевна","ГАОУ \"Гуманитарная гимназия-интернат для одаренных детей\"","Русская литература для обучающихся школ с родным языком обучения"]
[15,"134003_16364655688_18","ГАОУ \"Гуманитарная гимназия-интернат для одаренных детей\"",16364655688,"Шайхайдарова","Амина","Булатовна","ж","2010-12-15","нет",7,7,48,null,48,50,"победитель",null,"Нурыева Ирина Альбиновна","ГАОУ \"Гуманитарная гимназия-интернат для одаренных детей\"","Русская литература для обучающихся школ с родным языком обучения"]
[16,"134003_16948542018_18","ГАОУ \"Гуманитарная гимназия-интернат для одаренных детей\"",16948542018,"Шайхайдарова","Лиана","Виловна","ж","2011-10-26","нет",7,7,18,null,18,50,"участник",null,"Нурыева Ирина Альбиновна","ГАОУ \"Гуманитарная гимназия-интернат для одаренных детей\"","Русская литература для обучающихся школ с родным языком обучения"]
[17,"134003_16823996215_18","ГАОУ \"Гуманитарная гимназия-интернат для одаренных детей\"",16823996215,"Ахметшина","Амалия","Альбертовна","ж","2011-09-20","нет",7,7,44,null,44,50,"призер",null,"Нурыева Ирина Альбиновна","ГАОУ \"Гуманитарная гимназия-интернат для одаренных детей\"","Русская литература для обучающихся школ с родным языком обучения"]
[18,"134003_16775529217_18","ГАОУ \"Гуманитарная гимназия-интернат для одаренных детей\"",16775529217,"Имамова","Милана","Рамилевна","ж","2011-07-31","нет",7,7,46,null,46,50,"призер",null,"Нурыева Ирина Альбиновна","ГАОУ \"Гуманитарная гимназия-интернат для одаренных детей\"","Русская литература для обучающихся школ с родным языком обучения"]
[19,"134003_16506110432_18","ГАОУ \"Гуманитарная гимназия-интернат для одаренных детей\"",16506110432,"Шакурова","Диляра","Фаварисовна","ж","2011-04-03","нет",7,7,11,null,11,50,"участник",null,"Нурыева Ирина Альбиновна","ГАОУ \"Гуманитарная гимназия-интернат для одаренных детей\"","Русская литература для обучающихся школ с родным языком обучения"]
[20,"134003_17292121963_18","ГАОУ \"Гуманитарная гимназия-интернат для одаренных детей\"",17292121963,"Гильметдинова","Тансылу","Маратовна","ж","2011-04-03","нет",7,7,47,null,47,50,"призер",null,"Нурыева Ирина Альбиновна","ГАОУ \"Гуманитарная гимназия-интернат для одаренных детей\"","Русская литература для обучающихся школ с родным языком обучения"]
[21,"134003_16351550350_18","ГАОУ \"Гуманитарная гимназия-интернат для одаренных детей\"",16351550350,"Шарифуллина","Адиля","Фаилевна","ж","2010-12-17","нет",7,7,19,null,19,50,"участник",null,"Нурыева Ирина Альбиновна","ГАОУ \"Гуманитарная гимназия-интернат для одаренных детей\"","Русская литература для обучающихся школ с родным языком обучения"]
[34,"134003_16136211529_18","ГАОУ \"Гуманитарная гимназия-интернат для одаренных детей\"",16136211529,"Загертдинова","Эльвина","Илшатовна","ж","2009-10-09","нет",8,8,22,null,22,50,"участник","Да","Рафикова Резеда Шамилевна","ГАОУ \"Гуманитарная гимназия-интернат для одаренных детей\"","Русская литература для обучающихся школ с родным языком обучения"]
[35,"134003_16084894798_18","ГАОУ \"Гуманитарная гимназия-интернат для одаренных детей\"",16084894798,"Галиуллина","Ильфина","Филусовна","ж","2010-06-11","нет",8,8,46,null,46,50,"призер","Да","Рафикова Резеда Шамилевна","ГАОУ \"Гуманитарная гимназия-интернат для одаренных детей\"","Русская литература для обучающихся школ с родным языком обучения"]
[36,"134003_15724672987_18","ГАОУ \"Гуманитарная гимназия-интернат для одаренных детей\"",15724672987,"Шарипова","Айзиля","Риназовна","ж","2010-01-16","нет",8,8,11,null,11,50,"участник",null,"Рафикова Резеда Шамилевна","ГАОУ \"Гуманитарная гимназия-интернат для одаренных детей\"","Русская литература для обучающихся школ с родным языком обучения"]
[37,"134003_16255346869_18","ГАОУ \"Гуманитарная гимназия-интернат для одаренных детей\"",16255346869,"Юрьева","Анастасия","Витальевна","ж","2010-09-18","нет",8,8,15,null,15,50,"участник","Да","Рафикова Резеда Шамилевна","ГАОУ \"Гуманитарная гимназия-интернат для одаренных детей\"","Русская литература для обучающихся школ с родным языком обучения"]
[38,"134003_17464175689_18","ГАОУ \"Гуманитарная гимназия-интернат для одаренных детей\"",17464175689,"Вафина","Чулпан","Габдулловна","ж","2011-02-07","нет",8,8,15,null,15,50,"участник","Да","Рафикова Резеда Шамилевна","ГАОУ \"Гуманитарная гимназия-интернат для одаренных детей\"","Русская литература для обучающихся школ с родным языком обучения"]
[39,"134003_16125730946_18","ГАОУ \"Гуманитарная гимназия-интернат для одаренных детей\"",16125730946,"Хусаенова","Ясмина","Нуровна","ж","2010-07-01","нет",8,8,19,null,19,50,"участник",null,"Рафикова Резеда Шамилевна","ГАОУ \"Гуманитарная гимназия-интернат для одаренных детей\"","Русская литература для обучающихся школ с родным языком обучения"]
[40,"134003_16119708058_18","ГАОУ \"Гуманитарная гимназия-интернат для одаренных детей\"",16119708058,"Гафурова","Руфина","Робертовна","ж","2010-07-03","нет",8,8,43,null,43,50,"призер",null,"Рафикова Резеда Шамилевна","ГАОУ \"Гуманитарная гимназия-интернат для одаренных детей\"","Русская литература для обучающихся школ с родным языком обучения"]
[41,"134003_15966040190_18","ГАОУ \"Гуманитарная гимназия-интернат для одаренных детей\"",15966040190,"Рашитова","Марьям","Ильфаковна","ж","2010-05-07","нет",8,8,17,null,17,50,"участник",null,"Нурыева Ирина Альбиновна","ГАОУ \"Гуманитарная гимназия-интернат для одаренных детей\"","Русская литература для обучающихся школ с родным языком обучения"]
[53,"134003_15724110339_18","ГАОУ \"Гуманитарная гимназия-интернат для одаренных детей\"",15724110339,"Афзалова","Амелия","Радиславовна","ж","2009-12-10","нет",9,9,45,null,45,50,"призер","Да","Рафикова Резеда Шамилевна","ГАОУ \"Гуманитарная гимназия-интернат для одаренных детей\"","Русская литература для обучающихся школ с родным языком обучения"]
[54,"134003_15773152784_18","ГАОУ \"Гуманитарная гимназия-интернат для одаренных детей\"",15773152784,"Шакирова","Резеда","Рашитовна","ж","2009-02-09","нет",9,9,47,null,47,50,"победитель","Да","Рафикова Резеда Шамилевна","ГАОУ \"Гуманитарная гимназия-интернат для одаренных детей\"","Русская литература для обучающихся школ с родным языком обучения"]
[55,"134003_15527690788_18","ГАОУ \"Гуманитарная гимназия-интернат для одаренных детей\"",15527690788,"Ильясова","Эндже","Илнуровна","ж","2009-06-20","нет",9,9,44,null,44,50,"призер",null,"Рафикова Резеда Шамилевна","ГАОУ \"Гуманитарная гимназия-интернат для одаренных детей\"","Русская литература для обучающихся школ с родным языком обучения"]
[56,"134003_16017891462_18","ГАОУ \"Гуманитарная гимназия-интернат для одаренных детей\"",16017891462,"Мингазова","Алина","Айнуровна","ж","2009-05-29","нет",9,9,15,null,15,50,"участник",null,"Рафикова Резеда Шамилевна","ГАОУ \"Гуманитарная гимназия-интернат для одаренных детей\"","Русская литература для обучающихся школ с родным языком обучения"]
[57,"134003_15449132466_18","ГАОУ \"Гуманитарная гимназия-интернат для одаренных детей\"",15449132466,"Хафизова","Эвелина","Ильвировна","ж","2009-04-23","нет",9,9,26,null,26,50,"участник","Да","Нурыева Ирина Альбиновна","ГАОУ \"Гуманитарная гимназия-интернат для одаренных детей\"","Русская литература для обучающихся школ с родным языком обучения"]
[58,"134003_15577216083_18","ГАОУ \"Гуманитарная гимназия-интернат для одаренных детей\"",15577216083,"Адиятуллина","Эделина","Ильназовна","ж","2009-08-20","нет",9,9,44,null,44,50,"призер","Да","Нурыева Ирина Альбиновна","ГАОУ \"Гуманитарная гимназия-интернат для одаренных детей\"","Русская литература для обучающихся школ с родным языком обучения"]
[59,"134003_16863979340_18","ГАОУ \"Гуманитарная гимназия-интернат для одаренных детей\"",16863979340,"Рафикова","Руфина","Рустямовна","ж","2009-08-31","нет",9,9,20,null,20,50,"участник",null,"Нурыева Ирина Альбиновна","ГАОУ \"Гуманитарная гимназия-интернат для одаренных детей\"","Русская литература для обучающихся школ с родным языком обучения"]
[73,"134003_15769763433_18","ГАОУ \"Гуманитарная гимназия-интернат для одаренных детей\"",15769763433,"Сарварова","Язиля","Ильшатовна","ж","2008-09-14","нет",10,10,46,null,46,50,"призер","Да","Рафикова Резеда Шамилевна","ГАОУ \"Гуманитарная гимназия-интернат для одаренных детей\"","Русская литература для обучающихся школ с родным языком обучения"]

{"sheet":"география","index":17,"n_rows":11,"n_cols":19,"rows_kept":11}
[]
["№","Код участника","Название ОУ","СНИЛС","Фамилия","Имя","Отчество","Пол","Дата рождения","Участник с ОВЗ","Класс","Класс участия","Балл","Макс. балл","Статус","Призер МЭ прошлого года","Учитель","Место работы учителя","Предмет"]
[8,"134003_16821243055_26","ГАОУ \"Гуманитарная гимназия-интернат для одаренных детей\"",{"v":1.68E10,"d":"1.68E+10"},"Абударов","Адель","Зульфатович","м","2011-08-11","нет",6,7,29,56,"победитель","нет","Файзуллин Рустам Уелович","ГАОУ \"Гуманитарная гимназия-интернат для одарённых детей\"","География"]
[9,"134003_16430183137_26","ГАОУ \"Гуманитарная гимназия-интернат для одаренных детей\"",{"v":1.64E10,"d":"1.64E+10"},"Маликов","Раяз","Ильназович","м","2011-02-21","нет",7,7,28,56,"призер","нет","Файзуллин Рустам Уелович","ГАОУ \"Гуманитарная гимназия-интернат для одарённых детей\"","География"]
[38,"134003_16069037868_26","ГАОУ \"Гуманитарная гимназия-интернат для одаренных детей\"",{"v":1.61E10,"d":"1.61E+10"},"Саетов","Азат","Алмазович","м","07.062010","нет",8,8,48.5,90,"победитель","нет","Файзуллин Рустам Уелович","ГАОУ \"Гуманитарная гимназия-интернат для одарённых детей\"","География"]
[39,"134003_16196729100_26","ГАОУ \"Гуманитарная гимназия-интернат для одаренных детей\"",{"v":1.62E10,"d":"1.62E+10"},"Гарипов","Тимур","Русланович","м","2010-05-16","нет",8,8,31.5,90,"участник","нет","Файзуллин Рустам Уелович","ГАОУ \"Гуманитарная гимназия-интернат для одарённых детей\"","География"]
[40,"134003_15688994654_26","ГАОУ \"Гуманитарная гимназия-интернат для одаренных детей\"",{"v":1.57E10,"d":"1.57E+10"},"Закиев","Камиль","Булатович","м","2009-12-09","нет",8,8,35,90,"участник","нет","Файзуллин Рустам Уелович","ГАОУ \"Гуманитарная гимназия-интернат для одарённых детей\"","География"]
[41,"134003_16361082147_26","ГАОУ \"Гуманитарная гимназия-интернат для одаренных детей\"",{"v":1.64E10,"d":"1.64E+10"},"Хафизов","Ильяр","Ильдарович","м","2010-12-01","нет",8,8,27,90,"участник","нет","Файзуллин Рустам Уелович","ГАОУ \"Гуманитарная гимназия-интернат для одарённых детей\"","География"]
[42,"134003_16323513538_26","ГАОУ \"Гуманитарная гимназия-интернат для одаренных детей\"",{"v":1.63E10,"d":"1.63E+10"},"Гимадиев","Ильяс","Рушатович","м","2010-12-05","нет",8,8,26.5,90,"участник","нет","Файзуллин Рустам Уелович","ГАОУ \"Гуманитарная гимназия-интернат для одарённых детей\"","География"]
[71,"134003_17355946807_26","ГАОУ \"Гуманитарная гимназия-интернат для одаренных детей\"",{"v":1.74E10,"d":"1.74E+10"},"Хазиев","Румиль","Рустамович","м","2007-12-02","нет",10,10,97.5,126,"победитель","Да","Файзуллин Рустам Уелович","ГАОУ \"Гуманитарная гимназия-интернат для одарённых детей\"","География"]
[74,"134003_16063162033_26","ГАОУ \"Гуманитарная гимназия-интернат для одаренных детей\"",{"v":1.61E10,"d":"1.61E+10"},"Султанов","Самат","Булатович","м","2007-11-10","нет",11,11,108.5,128,"победитель","Да","Файзуллин Рустам Уелович","ГАОУ \"Гуманитарная гимназия-интернат для одарённых детей\"","География"]

{"sheet":"физика","index":18,"n_rows":14,"n_cols":21,"rows_kept":14}
[]
["№","Код участника","Название ОУ","СНИЛС","Фамилия","Имя","Отчество","Пол","Дата рождения","Участник с ОВЗ","Класс","Класс участия","Первичный балл","Добавлено баллов по итогам аппеляции","Итоговый балл","Макс. балл","Статус","Призер МЭ прошлого года","Учитель","Место работы учителя","Предмет"]
[1,"134003_16430183137_10","ГАОУ \"Гуманитарная гимназия-интернат для одаренных детей\"",16430183137,"Маликов","Раяз","Ильназович","м","#######","нет",7,7,21,null,21,40,"призер",null,"Маликова Резеда Тимергазиевна","ГАОУ \"Гуманитарная гимназия-интернат для одаренных детей\"","Физика"]
[2,"134003_17145014435_10","ГАОУ \"Гуманитарная гимназия-интернат для одаренных детей\"",17145014435,"Галиев","Самир","Сиринатович","м","#######","нет",7,7,20,null,20,40,"призер",null,"Маликова Резеда Тимергазиевна","ГАОУ \"Гуманитарная гимназия-интернат для одаренных детей\"","Физика"]
[3,"134003_21612057517_10","ГАОУ \"Гуманитарная гимназия-интернат для одаренных детей\"",21612057517,"Салахова","Валерия","Вильдановна","ж","#######","нет",7,7,7,null,7,40,"участник",null,"Маликова Резеда Тимергазиевна","ГАОУ \"Гуманитарная гимназия-интернат для одаренных детей\"","Физика"]
[4,"134003_17083579187_10","ГАОУ \"Гуманитарная гимназия-интернат для одаренных детей\"",17083579187,"Садыков","Динис","Ильназович","м","#######","нет",7,7,2,null,2,40,"участник",null,"Маликова Резеда Тимергазиевна","ГАОУ \"Гуманитарная гимназия-интернат для одаренных детей\"","Физика"]
[6,"134003_16632349775_10","ГАОУ \"Гуманитарная гимназия-интернат для одаренных детей\"",16632349775,"Анамов","Ахмад","Дилшатович","м","#######","нет",7,7,4,null,4,40,"участник",null,"Маликова Резеда Тимергазиевна","ГАОУ \"Гуманитарная гимназия-интернат для одаренных детей\"","Физика"]
[7,"134003_17227793995_10","ГАОУ \"Гуманитарная гимназия-интернат для одаренных детей\"",17227793995,"Рахимов","Булат","Рузилевич","м","#######","нет",7,7,3,null,3,40,"участник",null,"Маликова Резеда Тимергазиевна","ГАОУ \"Гуманитарная гимназия-интернат для одаренных детей\"","Физика"]
[17,"134003_15605598785_10","ГАОУ \"Гуманитарная гимназия-интернат для одаренных детей\"",15605598785,"Гаязов","Рамазан","Дилшатович","м","#######","нет",8,8,2,null,2,40,"участник",null,"Маликова Резеда Тимергазиевна","ГАОУ \"Гуманитарная гимназия-интернат для одаренных детей\"","Физика"]
[18,"134003_17247408978_10","ГАОУ \"Гуманитарная гимназия-интернат для одаренных детей\"",17247408978,"Ягофаров","Хасан","Русланович","м","#######","нет",8,8,3,null,3,40,"участник",null,"Маликова Резеда Тимергазиевна","ГАОУ \"Гуманитарная гимназия-интернат для одаренных детей\"","Физика"]
[19,"134003_16130152812_10","ГАОУ \"Гуманитарная гимназия-интернат для одаренных детей\"",16130152812,"Хузин","Айвар","Ниязович","м","#######","нет",8,8,20,null,20,40,"призер","Да","Маликова Резеда Тимергазиевна","ГАОУ \"Гуманитарная гимназия-интернат для одаренных детей\"","Физика"]
[20,"134003_17385499523_10","ГАОУ \"Гуманитарная гимназия-интернат для одаренных детей\"",17385499523,"Фархиев","Зиннур","Риналевич","м","#######","нет",8,8,5,null,5,40,"участник",null,"Маликова Резеда Тимергазиевна","ГАОУ \"Гуманитарная гимназия-интернат для одаренных детей\"","Физика"]
[29,"134003_16874002381_10","ГАОУ \"Гуманитарная гимназия-интернат для одаренных детей\"",16874002381,"Ямалов","Азамат","Филарисович","м","#######","нет",9,9,26,null,26,50,"победитель","Да","Маликова Резеда Тимергазиевна","ГАОУ \"Гуманитарная гимназия-интернат для одаренных детей\"","Физика"]
[43,"134003_15581842892_10","ГАОУ \"Гуманитарная гимназия-интернат для одаренных детей\"",15581842892,"Шаймарданов","Амирхан","Алмазович","м","#######","нет",10,10,49,null,49,50,"победитель","Да","Маликова Резеда Тимергазиевна","ГАОУ \"Гуманитарная гимназия-интернат для одаренных детей\"","Физика"]

{"sheet":"биология","index":19,"n_rows":23,"n_cols":21,"rows_kept":23}
[]
[]
["№","Код участника","Название ОУ","СНИЛС","Фамилия","Имя","Отчество","Пол","Дата рождения","Участник с ОВЗ","Класс","Класс участия","Первичный балл","Добавлено по итогам аппеляции","Итоговый балл","Макс. балл","Статус","Призер МЭ прошлого года","Учитель","Место работы учителя","Предмет"]
[2,"134003_16821243055_27","ГАОУ \"Гуманитарная гимназия-интернат для одаренных детей\"",16821243055,"Абударов","Адель","Зульфаович","м","2011-08-11","нет",6,7,10.5,null,10.5,30.5,"участник",null,"Исламова Зульфия Асгатовна","ГАОУ \"Гуманитарная гимназия-интернат для одаренных детей\"","Биология"]
[6,"134003_17061138135_27","ГАОУ \"Гуманитарная гимназия-интернат для одаренных детей\"",17061138135,"Хуснетдинова","Нурзия","Ильназовна","ж","2012-02-22","нет",7,7,16.5,null,16.5,30.5,"победитель",null,"Исламова Зульфия Асгатовна","ГАОУ \"Гуманитарная гимназия-интернат для одаренных детей\"","Биология"]
[7,"134003_16850673700_27","ГАОУ \"Гуманитарная гимназия-интернат для одаренных детей\"",16850673700,"Миргаязова","Алия","Ильхамовна","ж","2011-09-20","нет",7,7,12,null,12,30.5,"участник",null,"Исламова Зульфия Асгатовна","ГАОУ \"Гуманитарная гимназия-интернат для одаренных детей\"","Биология"]
[31,"134003_15675471197_27","ГАОУ \"Гуманитарная гимназия-интернат для одаренных детей\"",15675471197,"Ахмадгалиева","Зилия","Ниязовна","ж","2009-11-27","нет",8,8,18.5,null,18.5,36.5,"призер",null,"Исламова Зульфия Асгатовна","ГАОУ \"Гуманитарная гимназия-интернат для одаренных детей\"","Биология"]
[42,"134003_16243447859_27","ГАОУ \"Гуманитарная гимназия-интернат для одаренных детей\"",16243447859,"Газетдинова","Амалия","Алгизовна","ж","2010-09-27","нет",8,8,16,null,16,36.5,"участник",null,"Исламова Зульфия Асгатовна","ГАОУ \"Гуманитарная гимназия-интернат для одаренных детей\"","Биология"]
[44,"134003_15994185426_27","ГАОУ \"Гуманитарная гимназия-интернат для одаренных детей\"",15994185426,"Исламова","Камиля","Илмировна","ж","2010-05-12","нет",8,8,16.5,null,16.5,36.5,"участник",null,"Исламова Зульфия Асгатовна","ГАОУ \"Гуманитарная гимназия-интернат для одаренных детей\"","Биология"]
[45,"134003_15873139799_27","ГАОУ \"Гуманитарная гимназия-интернат для одаренных детей\"",15873139799,"Нуриахметова","Алия","Айдаровна","ж","2010-03-29","нет",8,8,15,null,15,36.5,"участник",null,"Исламова Зульфия Асгатовна","ГАОУ \"Гуманитарная гимназия-интернат для одаренных детей\"","Биология"]
[46,"134003_16119708058_27","ГАОУ \"Гуманитарная гимназия-интернат для одаренных детей\"",16119708058,"Гафурова","Руфина","Робертовна","ж","2010-07-03","нет",8,8,17.5,null,17.5,36.5,"участник","Да","Исламова Зульфия Асгатовна","ГАОУ \"Гуманитарная гимназия-интернат для одаренных детей\"","Биология"]
[47,"134003_16147695992_27","ГАОУ \"Гуманитарная гимназия-интернат для одаренных детей\"",16147695992,"Хамматуллина","Гузель","Радисовна","ж","2010-07-29","нет",8,8,14.5,null,14.5,36.5,"участник","Да","Исламова Зульфия Асгатовна","ГАОУ \"Гуманитарная гимназия-интернат для одаренных детей\"","Биология"]
[48,"134003_15966040190_27","ГАОУ \"Гуманитарная гимназия-интернат для одаренных детей\"",15966040190,"Рашитова","Марьям","Илфаковна","ж","2010-05-07","нет",8,8,18.5,null,18.5,36.5,"призер",null,"Исламова Зульфия Асгатовна","ГАОУ \"Гуманитарная гимназия-интернат для одаренных детей\"","Биология"]
[57,"134003_15753876107_27","ГАОУ \"Гуманитарная гимназия-интернат для одаренных детей\"",15753876107,"Валиева","Алина","Рустамовна","ж","2008-12-19","нет",9,9,21.5,null,21.5,52,"участник","Да","Исламова Зульфия Асгатовна","ГАОУ \"Гуманитарная гимназия-интернат для одаренных детей\"","Биология"]
[58,"134003_12244354623_27","ГАОУ \"Гуманитарная гимназия-интернат для одаренных детей\"",12244354623,"Мингазова","Алина","Айнуровна","ж","2009-05-29","нет",9,9,17.5,null,17.5,52,"участник",null,"Исламова Зульфия Асгатовна","ГАОУ \"Гуманитарная гимназия-интернат для одаренных детей\"","Биология"]
[59,"134003_19422526169_27","ГАОУ \"Гуманитарная гимназия-интернат для одаренных детей\"",19422526169,"Сафин","Данияр","Ильгизович","м","2009-03-11","нет",9,9,18.5,null,18.5,52,"участник",null,"Исламова Зульфия Асгатовна","ГАОУ \"Гуманитарная гимназия-интернат для одаренных детей\"","Биология"]
[60,"134003_15593406080_27","ГАОУ \"Гуманитарная гимназия-интернат для одаренных детей\"",15593406080,"Сарваров","Рамазан","Рушатович","м","2009-08-25","нет",9,9,18,null,18,52,"участник",null,"Исламова Зульфия Асгатовна","ГАОУ \"Гуманитарная гимназия-интернат для одаренных детей\"","Биология"]
[61,"134003_15577216083_27","ГАОУ \"Гуманитарная гимназия-интернат для одаренных детей\"",15577216083,"Адиятуллина","Эделина","Ильназовна","ж","2009-08-20","нет",9,9,19,null,19,52,"участник",null,"Исламова Зульфия Асгатовна","ГАОУ \"Гуманитарная гимназия-интернат для одаренных детей\"","Биология"]
[83,"134003_15834362076_27","ГАОУ \"Гуманитарная гимназия-интернат для одаренных детей\"",15834362076,"Зиязетдинова","Гузель","Илгизаровна","ж","2008-05-26","нет",10,10,31.5,null,31.5,68,"участник","Да","Исламова Зульфия Асгатовна","ГАОУ \"Гуманитарная гимназия-интернат для одаренных детей\"","Биология"]
[85,"134003_15770717791_27","ГАОУ \"Гуманитарная гимназия-интернат для одаренных детей\"",15770717791,"Сафиуллина","Адиля","Руслановна","ж","2008-06-04","нет",10,10,24,null,24,68,"участник",null,"Исламова Зульфия Асгатовна","ГАОУ \"Гуманитарная гимназия-интернат для одаренных детей\"","Биология"]
[87,"134003_15374022142_27","ГАОУ \"Гуманитарная гимназия-интернат для одаренных детей\"",15374022142,"Галиуллина","Камилла","Айназовна","ж","2009-02-09","нет",10,10,30,null,30,68,"участник","Да","Исламова Зульфия Асгатовна","ГАОУ \"Гуманитарная гимназия-интернат для одаренных детей\"","Биология"]
[88,"134003_16063449558_27","ГАОУ \"Гуманитарная гимназия-интернат для одаренных детей\"",16063449558,"Мухаметдинова","Лиана","Хакимзяновна","ж","2007-11-24","нет",10,10,27,null,27,68,"участник",null,"Исламова Зульфия Асгатовна","ГАОУ \"Гуманитарная гимназия-интернат для одаренных детей\"","Биология"]
[89,"134003_15746162885_27","ГАОУ \"Гуманитарная гимназия-интернат для одаренных детей\"",15746162885,"Маликова","Азалия","Ильназовна","ж","2008-04-14","нет",10,10,47,null,47,68,"победитель","Да","Исламова Зульфия Асгатовна","ГАОУ \"Гуманитарная гимназия-интернат для одаренных детей\"","Биология"]

{"sheet":"химия","index":20,"n_rows":15,"n_cols":21,"rows_kept":15}
[]
["№","Код участника","Название ОУ","СНИЛС","Фамилия","Имя","Отчество","Пол","Дата рождения","Участник с ОВЗ","Класс","Класс участия","Первичный балл","Добавлено баллов по итогам аппеляции","Итоговый балл","Макс. балл","Статус","Призер МЭ прошлого года","Учитель","Место работы учителя","Предмет"]
[2,"134003_15724672987_20","ГАОУ \"Гуманитарная гимназия-интернат для одаренных детей\"",15724672987,"Шарипова","Айзиля","Риназовна","ж","1.16.2010","нет",8,8,3,null,3,70,"участник",null,"Гарипова Рузиля Ильдаровна","ГАОУ \"Гуманитарная гимназия-интернат для одаренных детей\"","Химия"]
[3,"134003_17385499523_20","ГАОУ \"Гуманитарная гимназия-интернат для одаренных детей\"",17385499523,"Фархиев","Зиннур","Риналевич","м","11.19.2010","нет",8,8,6,null,6,70,"участник",null,"Гарипова Рузиля Ильдаровна","ГАОУ \"Гуманитарная гимназия-интернат для одаренных детей\"","Химия"]
[4,"134003_15605598785_20","ГАОУ \"Гуманитарная гимназия-интернат для одаренных детей\"",15605598785,"Гаязов","Рамазан","Дилшатович","м","2009-09-12","нет",8,8,5,null,5,70,"участник",null,"Гарипова Рузиля Ильдаровна","ГАОУ \"Гуманитарная гимназия-интернат для одаренных детей\"","Химия"]
[5,"134003_15994185426_20","ГАОУ \"Гуманитарная гимназия-интернат для одаренных детей\"",15994185426,"Исламова","Камиля","Ильмировна","ж","2010-12-05","нет",8,8,8,null,8,70,"участник",null,"Гарипова Рузиля Ильдаровна","ГАОУ \"Гуманитарная гимназия-интернат для одаренных детей\"","Химия"]
[6,"134003_17801569990_20","ГАОУ \"Гуманитарная гимназия-интернат для одаренных детей\"",17801569990,"Валеева","Лилия","Ильгизовна","ж","1900-01-26","нет",8,8,6,null,6,70,"участник",null,"Гарипова Рузиля Ильдаровна","ГАОУ \"Гуманитарная гимназия-интернат для одаренных детей\"","Химия"]
[7,"134003_15873139799_20","ГАОУ \"Гуманитарная гимназия-интернат для одаренных детей\"",15873139799,"Нуриахметова","Алия","Айдаровна","ж","3.29.2010","нет",8,8,5,null,5,70,"участник",null,"Гарипова Рузиля Ильдаровна","ГАОУ \"Гуманитарная гимназия-интернат для одаренных детей\"","Химия"]
[8,"134003_16255346869_20","ГАОУ \"Гуманитарная гимназия-интернат для одаренных детей\"",16255346869,"Юрьева","Анастасия","Витальевна","ж","2010-09-19","нет",8,8,7,null,7,70,"участник",null,"Гарипова Рузиля Ильдаровна","ГАОУ \"Гуманитарная гимназия-интернат для одаренных детей\"","Химия"]
[14,"134003_15675471197_20","ГАОУ \"Гуманитарная гимназия-интернат для одаренных детей\"",15675471197,"Ахмадгалиева","Зилия","Ниязовна","ж","2009-11-27","нет",8,8,5,null,5,70,"участник",null,"Гарипова Рузиля Ильдаровна","ГАОУ \"Гуманитарная гимназия-интернат для одаренных детей\"","Химия"]
[17,"134003_16874002381_20","ГАОУ \"Гуманитарная гимназия-интернат для одаренных детей\"",16874002381,"Ямалов","Азамат","Филарисович","м","2008-02-14","нет",9,9,7.3,null,7.3,93,"участник",null,"Гарипова Рузиля Ильдаровна","ГАОУ \"Гуманитарная гимназия-интернат для одаренных детей\"","Химия"]
[19,"134003_15593406080_20","ГАОУ \"Гуманитарная гимназия-интернат для одаренных детей\"",15593406080,"Сарваров","Рамазан","Рушатович","м","2009-08-25","нет",9,9,10.1,null,10.1,93,"участник",null,"Гарипова Рузиля Ильдаровна","ГАОУ \"Гуманитарная гимназия-интернат для одаренных детей\"","Химия"]
[23,"134003_15374022142_20","ГАОУ \"Гуманитарная гимназия-интернат для одаренных детей\"",15374022142,"Галиуллина","Камилла","Айназовна","ж","2009-02-09","нет",10,10,3,null,3,60,"участник",null,"Гарипова Рузиля Ильдаровна","ГАОУ \"Гуманитарная гимназия-интернат для одаренных детей\"","Химия"]
[24,"134003_15746162885_20","ГАОУ \"Гуманитарная гимназия-интернат для одаренных детей\"",15746162885,"Маликова","Азалия","Ильназовна","ж","2008-04-14","нет",10,10,30,null,30,60,"победитель",null,"Гарипова Рузиля Ильдаровна","ГАОУ \"Гуманитарная гимназия-интернат для одаренных детей\"","Химия"]
[25,"134003_17355946807_20","ГАОУ \"Гуманитарная гимназия-интернат для одаренных детей\"",17355946807,"Хазиев","Румиль","Рустемович","м","2007-12-02","нет",10,10,7.5,null,7.5,60,"участник","Да","Гарипова Рузиля Ильдаровна","ГАОУ \"Гуманитарная гимназия-интернат для одаренных детей\"","Химия"]

{"sheet":"экология","index":21,"n_rows":7,"n_cols":21,"rows_kept":7}
[null,"Код участника","Название ОУ","СНИЛС","Фамилия","Имя","Отчество","Пол","Дата рождения","Участник с ОВЗ","Класс","Класс участия","Первичный балл","Добавлено по итогам аппеляции","Итоговый балл","Макс. балл","Статус","Призер МЭ прошлого года","Учитель","Место работы учителя","Предмет"]
[2,"134003_16850673700_23","ГАОУ \"Гуманитарная гимназия-интернат для одаренных детей\"",16850673700,"Миргаязова","Алия","Ильхамовна","ж","2011-09-20","нет",7,7,15,null,15,50,"участник",null,"Исламова Зульфия Асгатовна","ГАОУ \"Гуманитарная гимназия-интернат для одаренных детей\"","Экология"]
[3,"134003_17061138135_23","ГАОУ \"Гуманитарная гимназия-интернат для одаренных детей\"",17061138135,"Хуснетдинова","Нурзия","Ильназовна","ж","2012-02-22","нет",7,7,9.5,null,9.5,50,"участник",null,"Исламова Зульфия Асгатовна","ГАОУ \"Гуманитарная гимназия-интернат для одаренных детей\"","Экология"]
[20,"134003_15994185426_23","ГАОУ \"Гуманитарная гимназия-интернат для одаренных детей\"",15994185426,"Исламова","Камиля","Ильмировна","ж","2010-05-12","нет",8,8,20.2,null,20.2,53,"участник",null,"Исламова Зульфия Асгатовна","ГАОУ \"Гуманитарная гимназия-интернат для одаренных детей\"","Экология"]
[21,"134003_15675471197_23","ГАОУ \"Гуманитарная гимназия-интернат для одаренных детей\"",15675471197,"Ахмадгалиева","Зиля","Ниязовна","ж","2009-11-27","нет",8,8,13.5,null,13.5,53,"участник",null,"Исламова Зульфия Асгатовна","ГАОУ \"Гуманитарная гимназия-интернат для одаренных детей\"","Экология"]
[57,"134003_15753876107_23","ГАОУ \"Гуманитарная гимназия-интернат для одаренных детей\"",15753876107,"Валиева","Алина","Рустамовна","ж","2008-12-19","нет",9,9,14,null,14,68,"участник",null,"Исламова Зульфия Асгатовна","ГАОУ \"Гуманитарная гимназия-интернат для одаренных детей\"","Экология"]
[58,"134003_12244354623_23","ГАОУ \"Гуманитарная гимназия-интернат для одаренных детей\"",12244354623,"Мингазова","Алина","Айнуровна","ж","2009-05-29","нет",9,9,16,null,16,68,"участник",null,"Исламова Зульфия Асгатовна","ГАОУ \"Гуманитарная гимназия-интернат для одаренных детей\"","Экология"]

{"sheet":"информатика","index":22,"n_rows":0,"n_cols":0,"rows_kept":0}

{"sheet":"математика","index":23,"n_rows":37,"n_cols":21,"rows_kept":37}
[]
["№","Код участника","Название ОУ","СНИЛС","Фамилия","Имя","Отчество","Пол","Дата рождения","Участник с ОВЗ","Класс","Класс участия","Первичный баллалл","Добавлено по итогам аппеляций","Итоговый балл","Макс. балл","Статус","Призер МЭ прошлого года","Учитель","Место работы учителя","Предмет"]
[12,"134003_18554874320_34","ГАОУ \"Гуманитарная гимназия-интернат для одаренных детей\"",18554874320,"Адиятуллина","Рубина","Ильназовна","ж","2014-10-20","нет",4,4,40,null,40,100,"участник","нет","Муллаярова Сумая Талгатовна","ГАОУ \"Гуманитарная гимназия-интернат для одаренных детей\"","Математика"]
[13,"134003_17988585674_34","ГАОУ \"Гуманитарная гимназия-интернат для одаренных детей\"",17988585674,"Гафуров","Зиннур","Ильгизович","м","1900-01-16","нет",4,4,65,null,65,100,"призер","нет","Хуббутдинова Дилара Дугласовна","ГАОУ \"Гуманитарная гимназия-интернат для одаренных детей\"","Математика"]
[14,"134003_17957874961_34","ГАОУ \"Гуманитарная гимназия-интернат для одаренных детей\"",17957874961,"Шагалиева","Айзада","Айнуровна","ж","2013-12-21","нет",4,4,30,null,30,100,"участник","нет","Муллаярова Сумая Талгатовна","ГАОУ \"Гуманитарная гимназия-интернат для одаренных детей\"","Математика"]
[15,"134003_18114976175_34","ГАОУ \"Гуманитарная гимназия-интернат для одаренных детей\"",18114976175,"Гарипова","Диана","Ильдусовна","ж","2014-04-19","нет",4,4,35,null,35,100,"участник","нет","Муллаярова Сумая Талгатовна","ГАОУ \"Гуманитарная гимназия-интернат для одаренных детей\"","Математика"]
[11,"134003_17516563887_34","ГАОУ \"Гуманитарная гимназия-интернат для одаренных детей\"",17516563887,"Имамова","Румия","Тимуровна","ж","2012-12-23","нет",5,5,61,null,61,100,"призер","Да","Маликова Резеда Тимергазиевна","ГАОУ \"Гуманитарная гимназия-интернат для одаренных детей\"","Математика"]
[12,"134003_17862933824_34","ГАОУ \"Гуманитарная гимназия-интернат для одаренных детей\"",17862933824,"Миниханова","Лия","Ильмировна","ж","2013-10-14","нет",5,5,15,null,15,100,"участник",null,"Маликова Резеда Тимергазиевна","ГАОУ \"Гуманитарная гимназия-интернат для одаренных детей\"","Математика"]
[13,"134003_17730602665_34","ГАОУ \"Гуманитарная гимназия-интернат для одаренных детей\"",17730602665,"Миниханова","Ралина","Ильвировна","ж","2013-06-09","нет",5,5,15,null,15,100,"участник",null,"Маликова Резеда Тимергазиевна","ГАОУ \"Гуманитарная гимназия-интернат для одаренных детей\"","Математика"]
[14,"134003_17787271127_34","ГАОУ \"Гуманитарная гимназия-интернат для одаренных детей\"",17787271127,"Хабирова","Диляра","Рузилевна","ж","2013-08-10","нет",5,5,25,null,25,100,"участник",null,"Маликова Резеда Тимергазиевна","ГАОУ \"Гуманитарная гимназия-интернат для одаренных детей\"","Математика"]
[15,"134003_17395692321_34","ГАОУ \"Гуманитарная гимназия-интернат для одаренных детей\"",17395692321,"Сафиуллин","Амир","Русланович","м","2012-09-26","нет",5,5,15,null,15,100,"участник",null,"Маликова Резеда Тимергазиевна","ГАОУ \"Гуманитарная гимназия-интернат для одаренных детей\"","Математика"]
[16,"134003_17598673245_34","ГАОУ \"Гуманитарная гимназия-интернат для одаренных детей\"",17598673245,"Шайхразиев","Мирхайдар","Булатович","м","2013-03-10","нет",5,5,31,null,31,100,"участник",null,"Валиева Земфия Гильфановна","ГАОУ \"Гуманитарная гимназия-интернат для одаренных детей\"","Математика"]
[42,"134003_17213615238_34","ГАОУ \"Гуманитарная гимназия-интернат для одаренных детей\"",17213615238,"Валиахметова","Аделина","Ильфатовна","ж","2013-05-14","нет",6,6,25,null,25,100,"участник",null,"Валиева Земфия Гильфановна","ГАОУ \"Гуманитарная гимназия-интернат для одаренных детей\"","Математика"]
[43,"134003_17500170428_34","ГАОУ \"Гуманитарная гимназия-интернат для одаренных детей\"",17500170428,"Валиев","Юнус","Ленисович","м","12/16/2012","нет",6,6,50,null,50,100,"призер",null,"Хазиева Рамиля Адиповна","ГАОУ \"Гуманитарная гимназия-интернат для одаренных детей\"","Математика"]
[44,"134003_17367530590_34","ГАОУ \"Гуманитарная гимназия-интернат для одаренных детей\"",17367530590,"Шагалиева","Айсина","Айнуровна","ж","8/27/2012","нет",6,6,40,null,40,100,"участник",null,"Валиева Земфия Гильфановна","ГАОУ \"Гуманитарная гимназия-интернат для одаренных детей\"","Математика"]
[45,"134003_17061138842_34","ГАОУ \"Гуманитарная гимназия-интернат для одаренных детей\"",17061138842,"Шакиров","Лимар","Ильгамович","м","2012-08-02","нет",6,6,63,null,63,100,"победитель",null,"Валиева Земфия Гильфановна","ГАОУ \"Гуманитарная гимназия-интернат для одаренных детей\"","Математика"]
[46,"134003_16821243055_34","ГАОУ \"Гуманитарная гимназия-интернат для одаренных детей\"",16821243055,"Абударов","Адель","Зульфатович","м","2011-11-08","нет",6,6,54,null,54,100,"призер","Да","Хазиева Рамиля Адиповна","ГАОУ \"Гуманитарная гимназия-интернат для одаренных детей\"","Математика"]
[47,"134003_17500000000_34","ГАОУ \"Гуманитарная гимназия-интернат для одаренных детей\"",1.75E10,"Сабиров","Самир","Ренатович","м","2013-01-22","нет",6,6,38,null,38,100,"участник",null,"Валиева Земфия Гильфановна","ГАОУ \"Гуманитарная гимназия-интернат для одаренных детей\"","Математика"]
[48,"134003_17170478773_34","ГАОУ \"Гуманитарная гимназия-интернат для одаренных детей\"",17170478773,"Хакимов","Самат","Алмазович","м","2012-08-18","нет",6,6,60,null,60,100,"призер",null,"Валиева Земфия Гильфановна","ГАОУ \"Гуманитарная гимназия-интернат для одаренных детей\"","Математика"]
[26,"134003_17957874961_34","ГАОУ\"Гуманитарная гимназия-интернат для одаренных детей\"",18674174210,"Бакирова","Айзиля","Рузилевна","ж","2014-12-29","нет",4,4,80,null,80,100,"победитель","нет","Муллаярова Сумая Талгатовна","ГАОУ \"Гуманитарная гимназия-интернат для одаренных детей\"","Математика"]
[1,"134003_21612057517_34","ГАОУ \"Гуманитарная гимназия-интернат для одаренных детей\"",21612057517,"Салахова","Валерия","Вильдановна","ж","2011-09-20","нет",7,7,44,null,44,100,"участник",null,"Фардиева Регина Равилевна","ГАОУ \"Гуманитарная гимназия-интернат для одаренных детей\"","Математика"]
[2,"134003_16868076121_34","ГАОУ \"Гуманитарная гимназия-интернат для одаренных детей\"",16868076121,"Ахметов","Рияз","Ильназович","м","2011-10-02","нет",7,7,27,null,27,100,"участник",null,"Фардиева Регина Равилевна","ГАОУ \"Гуманитарная гимназия-интернат для одаренных детей\"","Математика"]
[7,"134003_16430183137_34","ГАОУ \"Гуманитарная гимназия-интернат для одаренных детей\"",16430183137,"Маликов","Раяз","Ильназович","м","2011-02-21","нет",7,7,71,null,71,100,"победитель","да","Фардиева Регина Равилевна","ГАОУ \"Гуманитарная гимназия-интернат для одаренных детей\"","Математика"]
[8,"134003_17145014435_34","ГАОУ \"Гуманитарная гимназия-интернат для одаренных детей\"",17145014435,"Галиев","Самир","Сиринатович","м","2011-07-05","нет",7,7,64,null,64,100,"призер",null,"Фардиева Регина Равилевна","ГАОУ \"Гуманитарная гимназия-интернат для одаренных детей\"","Математика"]
[11,"134003_17227793995_34","ГАОУ \"Гуманитарная гимназия-интернат для одаренных детей\"",17227793995,"Рахимов","Булат","Рузилевич","м","2010-11-11","нет",7,7,54,null,54,100,"призер",null,"Фардиева Регина Равилевна","ГАОУ \"Гуманитарная гимназия-интернат для одаренных детей\"","Математика"]
[13,"134003_16485159801_34","ГАОУ \"Гуманитарная гимназия-интернат для одаренных детей\"",16485159801,"Бакиров","Раиль","Радикович","м","2011-04-04","нет",7,7,31,null,31,100,"участник","да","Фардиева Регина Равилевна","ГАОУ \"Гуманитарная гимназия-интернат для одаренных детей\"","Математика"]
[14,"134003_16632349775_34","ГАОУ \"Гуманитарная гимназия-интернат для одаренных детей\"",16632349775,"Анамов","Ахмад","Дилшатович","м","2011-04-14","нет",7,7,31,null,31,100,"участник",null,"Фардиева Регина Равилевна","ГАОУ \"Гуманитарная гимназия-интернат для одаренных детей\"","Математика"]
[15,"134003_16506110432_34","ГАОУ \"Гуманитарная гимназия-интернат для одаренных детей\"",16506110432,"Шакурова","Диляра","Фаварисовна","ж","2011-08-04","нет",7,7,41,null,41,100,"участник",null,"Фардиева Регина Равилевна","ГАОУ \"Гуманитарная гимназия-интернат для одаренных детей\"","Математика"]
[16,"134003_17078377699_34","ГАОУ \"Гуманитарная гимназия-интернат для одаренных детей\"",17078377699,"Мухаметдинова","Раина","Ралифовна","ж","2011-12-17","нет",7,7,29,null,29,100,"участник",null,"Фардиева Регина Равилевна","ГАОУ \"Гуманитарная гимназия-интернат для одаренных детей\"","Математика"]
[17,"134003_17083579187_34","ГАОУ \"Гуманитарная гимназия-интернат для одаренных детей\"",17083579187,"Садыков","Динис","Ильназович","м","2012-01-16","нет",7,7,41,null,41,100,"участник",null,"Валиева Земфия Гильфановна","ГАОУ \"Гуманитарная гимназия-интернат для одаренных детей\"","Математика"]
[18,"134003_16352938280_34","ГАОУ \"Гуманитарная гимназия-интернат для одаренных детей\"",16352938280,"Шайхразиев","Разиль","Рузилевич","м","2010-12-08","нет",7,7,22,null,22,100,"участник",null,"Валиева Земфия Гильфановна","ГАОУ \"Гуманитарная гимназия-интернат для одаренных детей\"","Математика"]
[39,"134003_16361082147_34","ГАОУ \"Гуманитарная гимназия-интернат для одаренных детей\"",16361082147,"Хафизов","Ильяр","Ильдарович","м","2010-01-12","нет",8,8,2,null,2,35,"участник","да","Фардиева Регина Равилевна","ГАОУ \"Гуманитарная гимназия-интернат для одаренных детей\"","Математика"]
[59,"134003_15739242993_34","ГАОУ \"Гуманитарная гимназия-интернат для одаренных детей\"",15739242993,"Ибрагимов","Амир","Илгамович","м","2009-01-19","нет",9,9,8,null,8,35,"участник","да","Хазиева Рамиля Адиповна","ГАОУ \"Гуманитарная гимназия-интернат для одаренных детей\"","Математика"]
[60,"134003_15739242387_34","ГАОУ \"Гуманитарная гимназия-интернат для одаренных детей\"",15739242387,"Фахразиев","Раяз","Камилевич","м","2008-02-17","нет",9,9,9,null,9,35,"участник",null,"Хазиева Рамиля Адиповна","ГАОУ \"Гуманитарная гимназия-интернат для одаренных детей\"","Математика"]
[61,"134003_15420280727_34","ГАОУ \"Гуманитарная гимназия-интернат для одаренных детей\"",15420280727,"Шавалиев","Амир","Ленарович","м","2009-02-25","нет",9,9,3,null,3,35,"участник","да","Хазиева Рамиля Адиповна","ГАОУ \"Гуманитарная гимназия-интернат для одаренных детей\"","Математика"]
[72,"134003_15581842892_34","ГАОУ \"Гуманитарная гимназия-интернат для одаренных детей\"",15581842892,"Шаймарданов","Амирхан","Алмазович","м","2008-10-29","нет",10,10,8,null,8,35,"участник",null,"Фардиева Регина Равилевна","ГАОУ \"Гуманитарная гимназия-интернат для одаренных детей\"","Математика"]
[73,"134003_17355946807_34","ГАОУ \"Гуманитарная гимназия-интернат для одаренных детей\"",17355946807,"Хазиев","Румиль","Рустемович","м","2007-02-12","нет",10,10,11,null,11,35,"участник",null,"Фардиева Регина Равилевна","ГАОУ \"Гуманитарная гимназия-интернат для одаренных детей\"","Математика"]

{"sheet":"турецкий язык","index":24,"n_rows":5,"n_cols":16,"rows_kept":5}
["№","СНИЛС","Фамилия","Имя","Отчество","Пол","Дата рождения","Участник с ОВЗ","Класс","Класс участия","Балл","Макс. Балл","Статус","Призер МЭ прошлого года","Учитель","Место работы учителя"]
[1,2,3,4,5,6,7,8,9,10,11,12,13,14,15,16]
[1,"1695099797000361","Харисова","Гузель","Ильясовна","жен","2009-04-02","нет",9,9,90,100,"победитель","да","Темел Румия Данисовна","ГАОУ \"Гуманитарная гимназия-интернат для одаренных детей\""]
[2,"1693099779000407","Ильясова","Эндже","Илнуровна","жен","2009-06-20","нет",9,9,85,100,"призер","нет","Темел Румия Данисовна","ГАОУ \"Гуманитарная гимназия-интернат для одаренных детей\""]
[3,"1691889772000079","Харисова","Адиля","Ильфатовна","жен","2011-01-14","нет",7,7,84,100,"победитель","нет","Темел Румия Данисовна","ГАОУ \"Гуманитарная гимназия-интернат для одаренных детей\""]

{"sheet":"тат язык","index":25,"n_rows":78,"n_cols":21,"rows_kept":78}
["№","Код участника","Название ОУ","СНИЛС","Фамилия","Имя","Отчество","Пол","Дата рождения","Участник с ОВЗ","Класс","Класс участия","Первичный балл","Добавлено баллов по итогам аппеляции","Итоговый балл","Макс. балл","Статус","Призер МЭ прошлого года","Учитель","Место работы учителя","Предмет"]
[23,"134003_18554874320_24","ГАОУ \"Гуманитарная гимназия-интернат для одаренных детей\"",18554874320,"Адиятуллина","Рубина","Ильназовна","ж","2014-10-20","нет",4,4,36,null,36,50,"призер","нет","Муллаярова Сумая Талгатовна","ГАОУ \"Гуманитарная гимназия-интернат для одаренных детей\"","Родной (татарский) язык для обучающихся школ с татарским языком обучения"]
[24,"134003_18114976175_24","ГАОУ \"Гуманитарная гимназия-интернат для одаренных детей\"",18114976175,"Гарипова","Диана","Ильдусовна","ж","2014-04-19","нет",4,4,39,null,39,50,"призер","нет","Муллаярова Сумая Талгатовна","ГАОУ \"Гуманитарная гимназия-интернат для одаренных детей\"","Родной (татарский) язык для обучающихся школ с татарским языком обучения"]
[25,"134003_17981249926_24","ГАОУ \"Гуманитарная гимназия-интернат для одаренных детей\"",17981249926,"Шарипова","Румия","Наилевна","ж","2013-12-30","нет",4,4,33.5,null,33.5,50,"участник","нет","Муллаярова Сумая Талгатовна","ГАОУ \"Гуманитарная гимназия-интернат для одаренных детей\"","Родной (татарский) язык для обучающихся школ с татарским языком обучения"]
[26,"134003_17981249825_24","ГАОУ \"Гуманитарная гимназия-интернат для одаренных детей\"",17981249825,"Вагизов","Ильяс","Ильдарович","м","2014-12-06","нет",4,4,35.5,null,35.5,50,"призер","нет","Шайхуллина Светлана Рифовна","ГАОУ \"Гуманитарная гимназия-интернат для одаренных детей\"","Родной (татарский) язык для обучающихся школ с татарским языком обучения"]
[27,"134003_18780147100_24","ГАОУ \"Гуманитарная гимназия-интернат для одаренных детей\"",18780147100,"Габдулгалиева","Камила","Линаровна","ж","2015-03-06","нет",4,4,37.5,null,37.5,50,"призер","нет","Шайхуллина Светлана Рифовна","ГАОУ \"Гуманитарная гимназия-интернат для одаренных детей\"","Родной (татарский) язык для обучающихся школ с татарским языком обучения"]
[28,"134003_18154647079_24","ГАОУ \"Гуманитарная гимназия-интернат для одаренных детей\"",18154647079,"Шайхутдинов","Газиз","Айдарович","м","2014-05-09","нет",4,4,37.5,null,37.5,50,"призер","нет","Шайхуллина Светлана Рифовна","ГАОУ \"Гуманитарная гимназия-интернат для одаренных детей\"","Родной (татарский) язык для обучающихся школ с татарским языком обучения"]
[29,"134003_17866568039_24","ГАОУ \"Гуманитарная гимназия-интернат для одаренных детей\"",17866568039,"Миназев","Рамазан","Алмазович","м","2013-10-04","нет",4,4,36.5,null,36.5,50,"призер","нет","Шайхуллина Светлана Рифовна","ГАОУ \"Гуманитарная гимназия-интернат для одаренных детей\"","Родной (татарский) язык для обучающихся школ с татарским языком обучения"]
[30,"134003_17931531384_24","ГАОУ \"Гуманитарная гимназия-интернат для одаренных детей\"",17931531384,"Басыйрова","Руфина","Рузилевна","ж","2013-11-30","нет",4,4,25,null,25,50,"участник","нет","Шайхуллина Светлана Рифовна","ГАОУ \"Гуманитарная гимназия-интернат для одаренных детей\"","Родной (татарский) язык для обучающихся школ с татарским языком обучения"]
[31,"134003_18074670483_24","ГАОУ \"Гуманитарная гимназия-интернат для одаренных детей\"",18074670483,"Шарипова","Сюмбель","Рамзилевна","ж","2014-03-19","нет",4,4,30,null,30,50,"участник","нет","Муллаярова Сумая Талгатовна","ГАОУ \"Гуманитарная гимназия-интернат для одаренных детей\"","Родной (татарский) язык для обучающихся школ с татарским языком обучения"]
[32,"134003_17912747300_24","ГАОУ \"Гуманитарная гимназия-интернат для одаренных детей\"",17912747300,"Валиева","Гузель","Ильшатовна","ж","2013-11-08","нет",4,4,24,null,24,50,"участник","нет","Хуббутдинова Дилара Дугласовнаг","ГАОУ \"Гуманитарная гимназия-интернат для одаренных детей\"","Родной (татарский) язык для обучающихся школ с татарским языком обучения"]
[33,"134003_18575711208_24","ГАОУ \"Гуманитарная гимназия-интернат для одаренных детей\"",18575711208,"Нафикова","Амина","Ильсуровна","ж","2014-11-13","нет",4,4,27,null,27,50,"участник","нет","Хуббутдинова Дилара Дугласовна","ГАОУ \"Гуманитарная гимназия-интернат для одаренных детей\"","Родной (татарский) язык для обучающихся школ с татарским языком обучения"]
[34,"134003_18055914680_24","ГАОУ \"Гуманитарная гимназия-интернат для одаренных детей\"",18055914680,"Шайхразиева","Айлина","Рузилевна","ж","2014-03-08","нет",4,4,39,null,39,50,"призер","нет","Хуббутдинова Дилара Дугласовна","ГАОУ \"Гуманитарная гимназия-интернат для одаренных детей\"","Родной (татарский) язык для обучающихся школ с татарским языком обучения"]
[35,"134003_18270839491_24","ГАОУ \"Гуманитарная гимназия-интернат для одаренных детей\"",18270839491,"Мухаметова","Зиля","Ильнуровна","ж","2014-07-17","нет",4,4,30,null,30,50,"участник","нет","Хуббутдинова Дилара Дугласовна","ГАОУ \"Гуманитарная гимназия-интернат для одаренных детей\"","Родной (татарский) язык для обучающихся школ с татарским языком обучения"]
[66,"134003_17586868951_24","ГАОУ \"Гуманитарная гимназия-интернат для одаренных детей\"",17586868951,"Ахмадгалиев","Аяз","Ниязович","м","2013-02-18","нет",5,5,49.8,null,49.8,54,"призер","Да","Шарипова Чулпан Рамзилевна","ГАОУ \"Гуманитарная гимназия-интернат для одаренных детей\"","Родной (татарский) язык для обучающихся школ с татарским языком обучения"]
[67,"134003_17395692321_24","ГАОУ \"Гуманитарная гимназия-интернат для одаренных детей\"",17395692321,"Сафиуллин","Амир","Русланович","м","2012-09-26","нет",5,5,53.3,null,53.3,54,"победитель","Да","Шарипова Чулпан Рамзилевна","ГАОУ \"Гуманитарная гимназия-интернат для одаренных детей\"","Родной (татарский) язык для обучающихся школ с татарским языком обучения"]
[68,"134003_17532214854_24","ГАОУ \"Гуманитарная гимназия-интернат для одаренных детей\"",17532214854,"Шайхайдарова","Аделя","Булатовна","ж","2013-01-16","нет",5,5,50,null,50,54,"призер","Да","Шарипова Чулпан Рамзилевна","ГАОУ \"Гуманитарная гимназия-интернат для одаренных детей\"","Родной (татарский) язык для обучающихся школ с татарским языком обучения"]
[69,"134003_17947344825_24","ГАОУ \"Гуманитарная гимназия-интернат для одаренных детей\"",17947344825,"Шарипов","Бахтияр","Ленарович","м","2013-12-11","нет",5,5,35.6,null,35.6,54,"участник","Да","Шарипова Чулпан Рамзилевна","ГАОУ \"Гуманитарная гимназия-интернат для одаренных детей\"","Родной (татарский) язык для обучающихся школ с татарским языком обучения"]
[70,"134003_17573135685_24","ГАОУ \"Гуманитарная гимназия-интернат для одаренных детей\"",17573135685,"Гафуров","Тимур","Анварович","м","2013-02-22","нет",5,5,52.8,null,52.8,54,"призер",null,"Шарипова Чулпан Рамзилевна","ГАОУ \"Гуманитарная гимназия-интернат для одаренных детей\"","Родной (татарский) язык для обучающихся школ с татарским языком обучения"]
[71,"134003_17740615680_24","ГАОУ \"Гуманитарная гимназия-интернат для одаренных детей\"",17740615680,"Закирова","Алмазия","Ильшатовна","ж","2013-07-04","нет",5,5,32.1,null,32.1,54,"участник",null,"Шарипова Чулпан Рамзилевна","ГАОУ \"Гуманитарная гимназия-интернат для одаренных детей\"","Родной (татарский) язык для обучающихся школ с татарским языком обучения"]
[72,"134003_17586869044_24","ГАОУ \"Гуманитарная гимназия-интернат для одаренных детей\"",17586869044,"Ахмадгалиев","Раяз","Ниязович","м","2013-02-18","нет",5,5,34.1,null,34.1,54,"участник","Да","Шарипова Чулпан Рамзилевна","ГАОУ \"Гуманитарная гимназия-интернат для одаренных детей\"","Родной (татарский) язык для обучающихся школ с татарским языком обучения"]
[73,"134003_17680810897_24","ГАОУ \"Гуманитарная гимназия-интернат для одаренных детей\"",17680810897,"Хакимзянова","Аилина","Ленаровна","ж","2013-05-20","нет",5,5,36.1,null,36.1,54,"участник","Да","Шарипова Чулпан Рамзилевна","ГАОУ \"Гуманитарная гимназия-интернат для одаренных детей\"","Родной (татарский) язык для обучающихся школ с татарским языком обучения"]
[74,"134003_17956690037_24","ГАОУ \"Гуманитарная гимназия-интернат для одаренных детей\"",17956690037,"Нурлыева","Дина","Наилевна","ж","2013-12-29","нет",5,5,33,null,33,54,"участник",null,"Шарипова Чулпан Рамзилевна","ГАОУ \"Гуманитарная гимназия-интернат для одаренных детей\"","Родной (татарский) язык для обучающихся школ с татарским языком обучения"]
[75,"134003_17764824923_24","ГАОУ \"Гуманитарная гимназия-интернат для одаренных детей\"",17764824923,"Маликова","Ильсылу","Ленаровна","ж","2013-07-14","нет",5,5,32.1,null,32.1,54,"участник","Да","Шарипова Чулпан Рамзилевна","ГАОУ \"Гуманитарная гимназия-интернат для одаренных детей\"","Родной (татарский) язык для обучающихся школ с татарским языком обучения"]
[76,134003,"ГАОУ \"Гуманитарная гимназия-интернат для одаренных детей\"",17834055083,"Исламова","Динара","Ленаровна","ж","2013-09-19","нет",5,5,40.5,null,40.5,54,"призер",null,"Шарипова Чулпан Рамзилевна","ГАОУ \"Гуманитарная гимназия-интернат для одаренных детей\"","Родной (татарский) язык для обучающихся школ с татарским языком обучения"]
[77,"134003_17834055083_25","ГАОУ \"Гуманитарная гимназия-интернат для одаренных детей\"",null,"Зайнуллин","Алмаз","Алгенатович","м","2012-09-12","нет",5,5,38.4,null,38.4,54,"призер",null,"Шарипова Чулпан Рамзилевна","ГАОУ \"Гуманитарная гимназия-интернат для одаренных детей\"","Родной (татарский) язык для обучающихся школ с татарским языком обучения"]
[78,134003,"ГАОУ \"Гуманитарная гимназия-интернат для одаренных детей\"",17743077087,"Шайдуллина","Азалия","Ильнуровна","ж","2013-07-04","нет",5,5,34.5,null,34.5,54,"участник",null,"Шарипова Чулпан Рамзилевна","ГАОУ \"Гуманитарная гимназия-интернат для одаренных детей\"","Родной (татарский) язык для обучающихся школ с татарским языком обучения"]
[79,"134003_17743077087_25","ГАОУ \"Гуманитарная гимназия-интернат для одаренных детей\"",null,"Байрамгулова","Нурия","Рафисовна","ж","2013-07-04","нет",5,5,32,null,32,54,"участник",null,"Шарипова Чулпан Рамзилевна","ГАОУ \"Гуманитарная гимназия-интернат для одаренных детей\"","Родной (татарский) язык для обучающихся школ с татарским языком обучения"]
[80,"134003_17484928522_24","ГАОУ \"Гуманитарная гимназия-интернат для одаренных детей\"",17484928522,"Исхакова","Адиля","Маратовна","ж","2012-12-04","нет",5,5,38.6,null,38.6,54,"призер",null,"Шарипова Чулпан Рамзилевна","ГАОУ \"Гуманитарная гимназия-интернат для одаренных детей\"","Родной (татарский) язык для обучающихся школ с татарским языком обучения"]
[81,"134003_17516563887_24","ГАОУ \"Гуманитарная гимназия-интернат для одаренных детей\"",17516563887,"Имамова","Румия","Тимуровна","ж","2012-12-23","нет",5,5,42.5,null,42.5,54,"призер",null,"Шарипова Чулпан Рамзилевна","ГАОУ \"Гуманитарная гимназия-интернат для одаренных детей\"","Родной (татарский) язык для обучающихся школ с татарским языком обучения"]
[82,"134003_17431741562_24","ГАОУ \"Гуманитарная гимназия-интернат для одаренных детей\"",17431741562,"Салихзянова","Алина","Айдаровна","ж","2012-10-19","нет",5,5,31.6,null,31.6,54,"участник",null,"Шарипова Чулпан Рамзилевна","ГАОУ \"Гуманитарная гимназия-интернат для одаренных детей\"","Родной (татарский) язык для обучающихся школ с татарским языком обучения"]
[83,"134003_17628788530_24","ГАОУ \"Гуманитарная гимназия-интернат для одаренных детей\"",17628788530,"Шайхутдинова","Айназ","Гаязовна","ж","2013-03-26","нет",5,5,37.1,null,37.1,54,"участник",null,"Ахмадгалиева Айгуль Ралифовна","ГАОУ \"Гуманитарная гимназия-интернат для одаренных детей\"","Родной (татарский) язык для обучающихся школ с татарским языком обучения"]
[84,"134003_17645758821_24","ГАОУ \"Гуманитарная гимназия-интернат для одаренных детей\"",17645758821,"Хабибуллина","Залия","Айратовна","ж","2013-04-06","нет",5,5,37.3,null,37.3,54,"участник",null,"Ахмадгалиева Айгуль Ралифовна","ГАОУ \"Гуманитарная гимназия-интернат для одаренных детей\"","Родной (татарский) язык для обучающихся школ с татарским языком обучения"]
[85,"134003_17632680183_24","ГАОУ \"Гуманитарная гимназия-интернат для одаренных детей\"",17632680183,"Мугтазирова","Фарида","Инсафовна","ж","2013-03-25","нет",5,5,51,null,51,54,"призер",null,"Ахмадгалиева Айгуль Ралифовна","ГАОУ \"Гуманитарная гимназия-интернат для одаренных детей\"","Родной (татарский) язык для обучающихся школ с татарским языком обучения"]
[86,"134003_17810922173_24","ГАОУ \"Гуманитарная гимназия-интернат для одаренных детей\"",17810922173,"Анварова","Дилия","Айнуровна","ж","2013-08-27","нет",5,5,51.8,null,51.8,54,"призер",null,"Ахмадгалиева Айгуль Ралифовна","ГАОУ \"Гуманитарная гимназия-интернат для одаренных детей\"","Родной (татарский) язык для обучающихся школ с татарским языком обучения"]
[120,"134003_17213615238_24","ГАОУ \"Гуманитарная гимназия-интернат для одаренных детей\"",17213615238,"Валиахметова","Аделина","Ильфатовна","ж","2012-05-14","нет",6,6,58.8,null,58.8,60,"призер","Да","Шарипова Чулпан Рамзилевна","ГАОУ \"Гуманитарная гимназия-интернат для одаренных детей\"","Родной (татарский) язык для обучающихся школ с татарским языком обучения"]
[121,"134003_17367530590_24","ГАОУ \"Гуманитарная гимназия-интернат для одаренных детей\"",17367530590,"Шагалиева","Айсина","Айнуровна","ж","2012-08-27","нет",6,6,58,null,58,60,"призер","Да","Шарипова Чулпан Рамзилевна","ГАОУ \"Гуманитарная гимназия-интернат для одаренных детей\"","Родной (татарский) язык для обучающихся школ с татарским языком обучения"]
[122,"134003_17072790576_24","ГАОУ \"Гуманитарная гимназия-интернат для одаренных детей\"",17072790576,"Закирова","Амира","Ильгизаровна","ж","2012-02-13","нет",6,6,37,null,37,60,"участник",null,"Шарипова Чулпан Рамзилевна","ГАОУ \"Гуманитарная гимназия-интернат для одаренных детей\"","Родной (татарский) язык для обучающихся школ с татарским языком обучения"]
[123,"134003_17061138842_24","ГАОУ \"Гуманитарная гимназия-интернат для одаренных детей\"",17061138842,"Шакиров","Лимар","Ильгамович","м","2012-02-08","нет",6,6,45,null,45,60,"призер",null,"Шарипова Чулпан Рамзилевна","ГАОУ \"Гуманитарная гимназия-интернат для одаренных детей\"","Родной (татарский) язык для обучающихся школ с татарским языком обучения"]
[124,"134003_17500170428_24","ГАОУ \"Гуманитарная гимназия-интернат для одаренных детей\"",17500170428,"Валиев","Юнус","Ленисович","м","2012-12-16","нет",6,6,56.5,null,56.5,60,"призер",null,"Ахмадгалиева Айгуль Ралифовна","ГАОУ \"Гуманитарная гимназия-интернат для одаренных детей\"","Родной (татарский) язык для обучающихся школ с татарским языком обучения"]
[125,"134003_17340758876_24","ГАОУ \"Гуманитарная гимназия-интернат для одаренных детей\"",17340758876,"Мирзасалихов","Гумер","Илшатович","м","2012-08-08","нет",6,6,39.5,null,39.5,60,"участник",null,"Ахмадгалиева Айгуль Ралифовна","ГАОУ \"Гуманитарная гимназия-интернат для одаренных детей\"","Родной (татарский) язык для обучающихся школ с татарским языком обучения"]
[155,"134003_16805185378_24","ГАОУ \"Гуманитарная гимназия-интернат для одаренных детей\"",16805185378,"Харисова","Адиля","Ильфатовна","ж","2011-08-27","нет",7,7,57,null,57,60,"призер","Да","Шарипова Чулпан Рамзилевна","ГАОУ \"Гуманитарная гимназия-интернат для одаренных детей\"","Родной (татарский) язык для обучающихся школ с татарским языком обучения"]
[156,"134003_16823996215_24","ГАОУ \"Гуманитарная гимназия-интернат для одаренных детей\"",16823996215,"Ахметшина","Амалия","Альбертовна","ж","2011-09-20","нет",7,7,40.4,null,40.4,60,"участник",null,"Шарипова Чулпан Рамзилевна","ГАОУ \"Гуманитарная гимназия-интернат для одаренных детей\"","Родной (татарский) язык для обучающихся школ с татарским языком обучения"]
[157,"134003_16382925491_24","ГАОУ \"Гуманитарная гимназия-интернат для одаренных детей\"",16382925491,"Мингазова","Гульзира","Ринатовна","ж","2011-01-06","нет",7,7,45,null,45,60,"участник","Да","Шарипова Чулпан Рамзилевна","ГАОУ \"Гуманитарная гимназия-интернат для одаренных детей\"","Родной (татарский) язык для обучающихся школ с татарским языком обучения"]
[158,"134003_16775529217_24","ГАОУ \"Гуманитарная гимназия-интернат для одаренных детей\"",16775529217,"Имамова","Милана","Халиловна","ж","2011-07-31","нет",7,7,42.7,null,42.7,60,"участник","Да","Шарипова Чулпан Рамзилевна","ГАОУ \"Гуманитарная гимназия-интернат для одаренных детей\"","Родной (татарский) язык для обучающихся школ с татарским языком обучения"]
[159,"134003_16351550350_24","ГАОУ \"Гуманитарная гимназия-интернат для одаренных детей\"",16351550350,"Шарифуллина","Адиля","Фаилевна","ж","2010-12-17","нет",7,7,35,null,35,60,"участник","Да","Шарипова Чулпан Рамзилевна","ГАОУ \"Гуманитарная гимназия-интернат для одаренных детей\"","Родной (татарский) язык для обучающихся школ с татарским языком обучения"]
[160,"134003_17145014435_24","ГАОУ \"Гуманитарная гимназия-интернат для одаренных детей\"",17145014435,"Галиев","Самир","Сиринатович","м","2011-07-05","нет",7,7,44,null,44,60,"участник","Да","Ахмадгалиева Айгуль Ралифовна","ГАОУ \"Гуманитарная гимназия-интернат для одаренных детей\"","Родной (татарский) язык для обучающихся школ с татарским языком обучения"]
[161,"134003_17292121963_24","ГАОУ \"Гуманитарная гимназия-интернат для одаренных детей\"",17292121963,"Гильметдинова","Тансылу","Маратовна","ж","2011-04-03","нет",7,7,57.8,null,57.8,60,"призер","Да","Ахмадгалиева Айгуль Ралифовна","ГАОУ \"Гуманитарная гимназия-интернат для одаренных детей\"","Родной (татарский) язык для обучающихся школ с татарским языком обучения"]
[162,"134003_16506110432_24","ГАОУ \"Гуманитарная гимназия-интернат для одаренных детей\"",16506110432,"Шакурова","Диляра","Фаварисовна","ж","2011-04-08","нет",7,7,57,null,57,60,"призер",null,"Ахмадгалиева Айгуль Ралифовна","ГАОУ \"Гуманитарная гимназия-интернат для одаренных детей\"","Родной (татарский) язык для обучающихся школ с татарским языком обучения"]
[163,"134003_16657181497_24","ГАОУ \"Гуманитарная гимназия-интернат для одаренных детей\"",16657181497,"Гайнуллина","Залия","Ильсуровна","ж","2011-06-05","нет",7,7,56.8,null,56.8,60,"призер",null,"Ахмадгалиева Айгуль Ралифовна","ГАОУ \"Гуманитарная гимназия-интернат для одаренных детей\"","Родной (татарский) язык для обучающихся школ с татарским языком обучения"]
[164,"134003_16767620409_24","ГАОУ \"Гуманитарная гимназия-интернат для одаренных детей\"",16767620409,"Сабирова","Айзиряк","Ринатовна","ж","2011-07-27","нет",7,7,42,null,42,60,"участник",null,"Ахмадгалиева Айгуль Ралифовна","ГАОУ \"Гуманитарная гимназия-интернат для одаренных детей\"","Родной (татарский) язык для обучающихся школ с татарским языком обучения"]
[165,"134003_21612057517_24","ГАОУ \"Гуманитарная гимназия-интернат для одаренных детей\"",21612057517,"Салахова","Валерия","Вильдановна","ж","2011-09-20","нет",7,7,42,null,42,60,"участник",null,"Ахмадгалиева Айгуль Ралифовна","ГАОУ \"Гуманитарная гимназия-интернат для одаренных детей\"","Родной (татарский) язык для обучающихся школ с татарским языком обучения"]
[166,"134003_16488537721_24","ГАОУ \"Гуманитарная гимназия-интернат для одаренных детей\"",16488537721,"Фаррахова","Зарина","Хамисовна","ж","2011-04-11","нет",7,7,46.6,null,46.6,60,"участник",null,"Ахмадгалиева Айгуль Ралифовна","ГАОУ \"Гуманитарная гимназия-интернат для одаренных детей\"","Родной (татарский) язык для обучающихся школ с татарским языком обучения"]
[167,"134003_16375720179_24","ГАОУ \"Гуманитарная гимназия-интернат для одаренных детей\"",16375720179,"Шайхуллина","Зиля","Расиховна","ж","2011-01-19","нет",7,7,58.9,null,58.9,60,"призер",null,"Ахмадгалиева Айгуль Ралифовна","ГАОУ \"Гуманитарная гимназия-интернат для одаренных детей\"","Родной (татарский) язык для обучающихся школ с татарским языком обучения"]
[208,"134003_16255346869_24","ГАОУ \"Гуманитарная гимназия-интернат для одаренных детей\"",16255346869,"Юрьева","Анастасия","Витальевна","ж","2010-09-19","нет",8,8,42,null,42,60,"участник","Да","Шарипова Чулпан Рамзилевна","ГАОУ \"Гуманитарная гимназия-интернат для одаренных детей\"","Родной (татарский) язык для обучающихся школ с татарским языком обучения"]
[209,"134003_15724672987_24","ГАОУ \"Гуманитарная гимназия-интернат для одаренных детей\"",15724672987,"Шарипова","Айзиля","Риназовна","ж","2010-01-16","нет",8,8,56.5,null,56.5,60,"призер","Да","Шарипова Чулпан Рамзилевна","ГАОУ \"Гуманитарная гимназия-интернат для одаренных детей\"","Родной (татарский) язык для обучающихся школ с татарским языком обучения"]
[210,"134003_16364655486_24","ГАОУ \"Гуманитарная гимназия-интернат для одаренных детей\"",16364655486,"Харисова","Аделина","Ильясовна","ж","2010-01-08","нет",8,8,40,null,40,60,"участник","Да","Шарипова Чулпан Рамзилевна","ГАОУ \"Гуманитарная гимназия-интернат для одаренных детей\"","Родной (татарский) язык для обучающихся школ с татарским языком обучения"]
[211,"134003_16157893699_24","ГАОУ \"Гуманитарная гимназия-интернат для одаренных детей\"",16157893699,"Салахова","Аделина","Вильсуровна","ж","2010-08-10","нет",8,8,55,null,55,60,"призер","Да","Шарипова Чулпан Рамзилевна","ГАОУ \"Гуманитарная гимназия-интернат для одаренных детей\"","Родной (татарский) язык для обучающихся школ с татарским языком обучения"]
[212,"134003_17464175689_24","ГАОУ \"Гуманитарная гимназия-интернат для одаренных детей\"",17464175689,"Вафина","Чулпан","Габдулловна","ж","2011-02-07","нет",8,8,37,null,37,60,"участник",null,"Ахмадгалиева Айгуль Ралифовна","ГАОУ \"Гуманитарная гимназия-интернат для одаренных детей\"","Родной (татарский) язык для обучающихся школ с татарским языком обучения"]
[213,"134003_17628297915_24","ГАОУ \"Гуманитарная гимназия-интернат для одаренных детей\"",17628297915,"Гимранов","Рустем","Робертович","ж","2010-11-22","нет",8,8,40.5,null,40.5,60,"участник",null,"Ахмадгалиева Айгуль Ралифовна","ГАОУ \"Гуманитарная гимназия-интернат для одаренных детей\"","Родной (татарский) язык для обучающихся школ с татарским языком обучения"]
[214,"134003_15675471197_24","ГАОУ \"Гуманитарная гимназия-интернат для одаренных детей\"",15675471197,"Ахмадгалиева","Зилия","Ниязовна","ж","2009-11-27","нет",8,8,42.5,null,42.5,60,"участник","Да","Шавалиев Ленар Зуфакович","ГАОУ \"Гуманитарная гимназия-интернат для одаренных детей\"","Родной (татарский) язык для обучающихся школ с татарским языком обучения"]
[215,"134003_15734200851_24","ГАОУ \"Гуманитарная гимназия-интернат для одаренных детей\"",15734200851,"Газизова","Анжелика","Эдуардовна","ж","2010-01-19","нет",8,8,41.5,null,41.5,60,"участник","Да","Шавалиев Ленар Зуфакович","ГАОУ \"Гуманитарная гимназия-интернат для одаренных детей\"","Родной (татарский) язык для обучающихся школ с татарским языком обучения"]
[216,"134003_16084894798_24","ГАОУ \"Гуманитарная гимназия-интернат для одаренных детей\"",16084894798,"Галиуллина","Ильфина","Филусовна","ж","2010-06-11","нет",8,8,57,null,57,60,"призер","Да","Шавалиев Ленар Зуфакович","ГАОУ \"Гуманитарная гимназия-интернат для одаренных детей\"","Родной (татарский) язык для обучающихся школ с татарским языком обучения"]
[217,"134003_16136211529_24","ГАОУ \"Гуманитарная гимназия-интернат для одаренных детей\"",16136211529,"Загертдинова","Эльвина","Илшатовна","ж","2009-10-09","нет",8,8,41,null,41,60,"участник","Да","Шавалиев Ленар Зуфакович","ГАОУ \"Гуманитарная гимназия-интернат для одаренных детей\"","Родной (татарский) язык для обучающихся школ с татарским языком обучения"]
[250,"134003_15527690788_24","ГАОУ \"Гуманитарная гимназия-интернат для одаренных детей\"",15527690788,"Ильясова","Эндже","Илнуровна","ж","2009-06-20","нет",9,9,56,null,56,64,"участник","Да","Шарипова Чулпан Рамзилевна","ГАОУ \"Гуманитарная гимназия-интернат для одаренных детей\"","Родной (татарский) язык для обучающихся школ с татарским языком обучения"]
[251,"134003_15424581357_24","ГАОУ \"Гуманитарная гимназия-интернат для одаренных детей\"",15424581357,"Харисова","Гузель","Ильясовна","ж","2009-04-02","нет",9,9,64,null,64,64,"победитель","Да","Шарипова Чулпан Рамзилевна","ГАОУ \"Гуманитарная гимназия-интернат для одаренных детей\"","Родной (татарский) язык для обучающихся школ с татарским языком обучения"]
[252,"134003_15415018026_24","ГАОУ \"Гуманитарная гимназия-интернат для одаренных детей\"",15415018026,"Закирова","Камила","Риназовна","ж","2009-03-27","нет",9,9,56.5,null,56.5,64,"призер","Да","Шарипова Чулпан Рамзилевна","ГАОУ \"Гуманитарная гимназия-интернат для одаренных детей\"","Родной (татарский) язык для обучающихся школ с татарским языком обучения"]
[253,"134003_15773152784_24","ГАОУ \"Гуманитарная гимназия-интернат для одаренных детей\"",15773152784,"Шакирова","Резеда","Рашитовна","ж","2009-02-09","нет",9,9,62,null,62,64,"призер","Да","Шарипова Чулпан Рамзилевна","ГАОУ \"Гуманитарная гимназия-интернат для одаренных детей\"","Родной (татарский) язык для обучающихся школ с татарским языком обучения"]
[254,"134003_15724110339_24","ГАОУ \"Гуманитарная гимназия-интернат для одаренных детей\"",15724110339,"Авзалова","Амелия","Радиславовна","ж","2009-12-10","нет",9,9,62.9,null,62.9,64,"призер","Да","Шарипова Чулпан Рамзилевна","ГАОУ \"Гуманитарная гимназия-интернат для одаренных детей\"","Родной (татарский) язык для обучающихся школ с татарским языком обучения"]
[255,"134003_12244354623_24","ГАОУ \"Гуманитарная гимназия-интернат для одаренных детей\"",12244354623,"Мингазова","Алина","Айнуровна","ж","2009-05-29","нет",9,9,57,null,57,64,"призер",null,"Шарипова Чулпан Рамзилевна","ГАОУ \"Гуманитарная гимназия-интернат для одаренных детей\"","Родной (татарский) язык для обучающихся школ с татарским языком обучения"]
[256,"134003_15560623661_24","ГАОУ \"Гуманитарная гимназия-интернат для одаренных детей\"",15560623661,"Бикимова","Камила","Юлаевна","ж","2009-08-02","нет",9,9,61,null,61,64,"призер","Да","Шарипова Чулпан Рамзилевна","ГАОУ \"Гуманитарная гимназия-интернат для одаренных детей\"","Родной (татарский) язык для обучающихся школ с татарским языком обучения"]
[257,"134003_15331369970_24","ГАОУ \"Гуманитарная гимназия-интернат для одаренных детей\"",15331369970,"Муратова","Адиля","Айдаровна","ж","2009-10-15","нет",9,9,44.5,null,44.5,64,"участник","Да","Шарипова Чулпан Рамзилевна","ГАОУ \"Гуманитарная гимназия-интернат для одаренных детей\"","Родной (татарский) язык для обучающихся школ с татарским языком обучения"]
[280,"134003_16762308374_24","ГАОУ \"Гуманитарная гимназия-интернат для одаренных детей\"",16762308374,"Шакирова","Лиана","Ильгамовна","ж","2008-05-22","нет",10,10,64,null,64,64,"победитель","Да","Шарипова Чулпан Рамзилевна","ГАОУ \"Гуманитарная гимназия-интернат для одаренных детей\"","Родной (татарский) язык для обучающихся школ с татарским языком обучения"]
[281,"134003_15746162885_24","ГАОУ \"Гуманитарная гимназия-интернат для одаренных детей\"",15746162885,"Маликова","Азалия","Ильназовна","ж","2008-04-14","нет",10,10,63,null,63,64,"призер","Да","Шарипова Чулпан Рамзилевна","ГАОУ \"Гуманитарная гимназия-интернат для одаренных детей\"","Родной (татарский) язык для обучающихся школ с татарским языком обучения"]
[282,"134003_18353621575_24","ГАОУ \"Гуманитарная гимназия-интернат для одаренных детей\"",18353621575,"Амирова","Азалия","Айзатовна","ж","2008-11-21","нет",10,10,62.3,null,62.3,64,"призер","Да","Шарипова Чулпан Рамзилевна","ГАОУ \"Гуманитарная гимназия-интернат для одаренных детей\"","Родной (татарский) язык для обучающихся школ с татарским языком обучения"]
[283,"134003_16063449558_24","ГАОУ \"Гуманитарная гимназия-интернат для одаренных детей\"",16063449558,"Мухаметдинова","Лиана","Хакимзяновна","ж","2007-11-24","нет",10,10,62.9,null,62.9,64,"призер","Да","Шарипова Чулпан Рамзилевна","ГАОУ \"Гуманитарная гимназия-интернат для одаренных детей\"","Родной (татарский) язык для обучающихся школ с татарским языком обучения"]
[284,"134003_15770717791_24","ГАОУ \"Гуманитарная гимназия-интернат для одаренных детей\"",15770717791,"Сафиуллина","Адиля","Руслановна","ж","2008-06-04","нет",10,10,62,null,62,64,"призер","Да","Шарипова Чулпан Рамзилевна","ГАОУ \"Гуманитарная гимназия-интернат для одаренных детей\"","Родной (татарский) язык для обучающихся школ с татарским языком обучения"]
[291,"134003_16052468854_24","ГАОУ \"Гуманитарная гимназия-интернат для одаренных детей\"",16052468854,"Мингазова","Нурзиля","Ринатовна","ж","2007-02-15","нет",11,11,63,null,63,64,"победитель","Да","Шарипова Чулпан Рамзилевна","ГАОУ \"Гуманитарная гимназия-интернат для одаренных детей\"","Родной (татарский) язык для обучающихся школ с татарским языком обучения"]

{"sheet":"тат литра","index":26,"n_rows":28,"n_cols":21,"rows_kept":28}
["№","Код участника","Название ОУ","СНИЛС","Фамилия","Имя","Отчество","Пол","Дата рождения","Участник с ОВЗ","Класс","Класс участия","Первичный балл","Добавлено баллов по итогам аппеляции","Итоговый балл","Макс. балл","Статус","Призер МЭ прошлого года","Учитель","Место работы учителя","Предмет"]
[8,"134003_16823996215_29","ГАОУ \"Гуманитарная гимназия-интернат для одаренных детей\"",16823996215,"Ахметшина","Амалия","Альбертовна","ж","2011-09-20","нет",7,7,40,null,40,45,"призер",null,"Шарипова Чулпан Рамзилевна","ГАОУ \"Гуманитарная гимназия-интернат для одаренных детей\"","Родная (татарская) литература для обучающихся школ с татарским языком обучения"]
[9,"134003_17145014435_29","ГАОУ \"Гуманитарная гимназия-интернат для одаренных детей\"",17145014435,"Галиев","Самир","Сиринатович","м","2011-07-05","нет",7,7,14.5,null,14.5,45,"участник","Да","Ахмадгалиева Айгуль Ралифовна","ГАОУ \"Гуманитарная гимназия-интернат для одаренных детей\"","Родная (татарская) литература для обучающихся школ с татарским языком обучения"]
[10,"134003_16657181497_29","ГАОУ \"Гуманитарная гимназия-интернат для одаренных детей\"",16657181497,"Гайнуллина","Залия","Ильсуровна","ж","2011-06-05","нет",7,7,43,null,43,45,"победитель",null,"Ахмадгалиева Айгуль Ралифовна","ГАОУ \"Гуманитарная гимназия-интернат для одаренных детей\"","Родная (татарская) литература для обучающихся школ с татарским языком обучения"]
[11,"134003_16767620409_29","ГАОУ \"Гуманитарная гимназия-интернат для одаренных детей\"",16767620409,"Сабирова","Айзиряк","Ринатовна","ж","2011-07-27","нет",7,7,40,null,40,45,"призер",null,"Ахмадгалиева Айгуль Ралифовна","ГАОУ \"Гуманитарная гимназия-интернат для одаренных детей\"","Родная (татарская) литература для обучающихся школ с татарским языком обучения"]
[18,134003,"ГАОУ \"Гуманитарная гимназия-интернат для одаренных детей\"",16805185378,"Харисова","Адиля","Ильфатовна","ж","2011-01-14","нет",7,7,20,null,20,45,"участник",null,"Шарипова Чулпан Рамзилевна","ГАОУ \"Гуманитарная гимназия-интернат для одаренных детей\"","Родная (татарская) литература для обучающихся школ с родным языком обучения"]
[31,"134003_16255346869_29","ГАОУ \"Гуманитарная гимназия-интернат для одаренных детей\"",16255346869,"Юрьева","Анастасия","Витальевна","ж","2010-09-19","нет",8,8,15,null,15,45,"участник","Да","Шарипова Чулпан Рамзилевна","ГАОУ \"Гуманитарная гимназия-интернат для одаренных детей\"","Родная (татарская) литература для обучающихся школ с татарским языком обучения"]
[32,"134003_15724672987_29","ГАОУ \"Гуманитарная гимназия-интернат для одаренных детей\"",15724672987,"Шарипова","Айзиля","Риназовна","ж","2010-01-16","нет",8,8,13.5,null,13.5,45,"участник","Да","Шарипова Чулпан Рамзилевна","ГАОУ \"Гуманитарная гимназия-интернат для одаренных детей\"","Родная (татарская) литература для обучающихся школ с татарским языком обучения"]
[33,"134003_16364655486_29","ГАОУ \"Гуманитарная гимназия-интернат для одаренных детей\"",16364655486,"Харисова","Аделина","Ильясовна","ж","2010-01-08","нет",8,8,14,null,14,45,"участник","Да","Шарипова Чулпан Рамзилевна","ГАОУ \"Гуманитарная гимназия-интернат для одаренных детей\"","Родная (татарская) литература для обучающихся школ с татарским языком обучения"]
[34,"134003_17801569990_29","ГАОУ \"Гуманитарная гимназия-интернат для одаренных детей\"",17801569990,"Валиева","Лилия","Ильгизовна","ж","2010-10-25","нет",8,8,12.5,null,12.5,45,"участник",null,"Шарипова Чулпан Рамзилевна","ГАОУ \"Гуманитарная гимназия-интернат для одаренных детей\"","Родная (татарская) литература для обучающихся школ с татарским языком обучения"]
[35,"134003_16157893699_29","ГАОУ \"Гуманитарная гимназия-интернат для одаренных детей\"",16157893699,"Салахова","Аделина","Вильсуровна","ж","2010-08-10","нет",8,8,17,null,17,45,"призер","Да","Шарипова Чулпан Рамзилевна","ГАОУ \"Гуманитарная гимназия-интернат для одаренных детей\"","Родная (татарская) литература для обучающихся школ с татарским языком обучения"]
[36,"134003_17464175689_29","ГАОУ \"Гуманитарная гимназия-интернат для одаренных детей\"",17464175689,"Вафина","Чулпан","Габдулловна","ж","2011-02-07","нет",8,8,21,null,21,45,"призер","Да","Ахмадгалиева Айгуль Ралифовна","ГАОУ \"Гуманитарная гимназия-интернат для одаренных детей\"","Родная (татарская) литература для обучающихся школ с татарским языком обучения"]
[37,"134003_16119708058_29","ГАОУ \"Гуманитарная гимназия-интернат для одаренных детей\"",16119708058,"Гафурова","Руфина","Робертовна","ж","2010-07-03","нет",8,8,16,null,16,45,"участник","Да","Ахмадгалиева Айгуль Ралифовна","ГАОУ \"Гуманитарная гимназия-интернат для одаренных детей\"","Родная (татарская) литература для обучающихся школ с татарским языком обучения"]
[38,"134003_16171107230_29","ГАОУ \"Гуманитарная гимназия-интернат для одаренных детей\"",16171107230,"Шаймарданова","Тансылу","Рамисовна","ж","2010-03-05","нет",8,8,17.5,null,17.5,45,"призер",null,"Ахмадгалиева Айгуль Ралифовна","ГАОУ \"Гуманитарная гимназия-интернат для одаренных детей\"","Родная (татарская) литература для обучающихся школ с татарским языком обучения"]
[39,"134003_15675471197_29","ГАОУ \"Гуманитарная гимназия-интернат для одаренных детей\"",15675471197,"Ахмадгалиева","Зилия","Ниязовна","ж","2009-11-27","нет",8,8,16,null,16,45,"участник","Да","Шавалиев Ленар Зуфакович","ГАОУ \"Гуманитарная гимназия-интернат для одаренных детей\"","Родная (татарская) литература для обучающихся школ с татарским языком обучения"]
[40,"134003_15734200851_29","ГАОУ \"Гуманитарная гимназия-интернат для одаренных детей\"",15734200851,"Газизова","Анжелика","Эдуардовна","ж","2010-01-19","нет",8,8,11.5,null,11.5,45,"участник","Да","Шавалиев Ленар Зуфакович","ГАОУ \"Гуманитарная гимназия-интернат для одаренных детей\"","Родная (татарская) литература для обучающихся школ с татарским языком обучения"]
[41,"134003_16084894798_29","ГАОУ \"Гуманитарная гимназия-интернат для одаренных детей\"",16084894798,"Галиуллина","Ильфина","Филусовна","ж","2010-06-11","нет",8,8,16,null,16,45,"участник",null,"Шавалиев Ленар Зуфакович","ГАОУ \"Гуманитарная гимназия-интернат для одаренных детей\"","Родная (татарская) литература для обучающихся школ с татарским языком обучения"]
[42,"134003_16136211529_29","ГАОУ \"Гуманитарная гимназия-интернат для одаренных детей\"",16136211529,"Загертдинова","Эльвина","Илшатовна","ж","2009-10-09","нет",8,8,10.5,null,10.5,45,"участник",null,"Шавалиев Ленар Зуфакович","ГАОУ \"Гуманитарная гимназия-интернат для одаренных детей\"","Родная (татарская) литература для обучающихся школ с татарским языком обучения"]
[60,"134003_15527690788_29","ГАОУ \"Гуманитарная гимназия-интернат для одаренных детей\"",15527690788,"Ильясова","Эндже","Илнуровна","ж","2009-06-20","нет",9,9,52,null,52,55,"победитель","Да","Шарипова Чулпан Рамзилевна","ГАОУ \"Гуманитарная гимназия-интернат для одаренных детей\"","Родная (татарская) литература для обучающихся школ с татарским языком обучения"]
[61,"134003_15773152784_29","ГАОУ \"Гуманитарная гимназия-интернат для одаренных детей\"",15773152784,"Шакирова","Резеда","Рашитовна","ж","2009-02-09","нет",9,9,50,null,50,55,"призер","Да","Шарипова Чулпан Рамзилевна","ГАОУ \"Гуманитарная гимназия-интернат для одаренных детей\"","Родная (татарская) литература для обучающихся школ с татарским языком обучения"]
[62,"134003_15577216083_29","ГАОУ \"Гуманитарная гимназия-интернат для одаренных детей\"",15577216083,"Адиятуллина","Эделина","Ильназовна","ж","2009-08-20","нет",9,9,30,null,30,55,"призер","Да","Шарипова Чулпан Рамзилевна","ГАОУ \"Гуманитарная гимназия-интернат для одаренных детей\"","Родная (татарская) литература для обучающихся школ с татарским языком обучения"]
[63,"134003_15449132466_29","ГАОУ \"Гуманитарная гимназия-интернат для одаренных детей\"",15449132466,"Хафизова","Эвелина","Ильфировна","ж","2009-04-23","нет",9,9,30.5,null,30.5,55,"призер","Да","Шарипова Чулпан Рамзилевна","ГАОУ \"Гуманитарная гимназия-интернат для одаренных детей\"","Родная (татарская) литература для обучающихся школ с татарским языком обучения"]
[64,"134003_15622383256_29","ГАОУ \"Гуманитарная гимназия-интернат для одаренных детей\"",15622383256,"Хуззятова","Камиля","Ильназовна","ж","2009-10-02","нет",9,9,30,null,30,55,"призер","Да","Шарипова Чулпан Рамзилевна","ГАОУ \"Гуманитарная гимназия-интернат для одаренных детей\"","Родная (татарская) литература для обучающихся школ с татарским языком обучения"]
[70,134003,"ГАОУ \"Гуманитарная гимназия-интернат для одаренных детей\"",15424581357,"Харисова","Гузель","Ильясовна","ж","2009-04-02","нет",9,9,51,null,51,55,"призер",null,"Шарипова Чулпан Рамзилевна","ГАОУ \"Гуманитарная гимназия-интернат для одаренных детей\"","Родная (татарская) литература для обучающихся школ с татарским языком обучения"]
[71,"134003_15900553860_29","ГАОУ \"Гуманитарная гимназия-интернат для одаренных детей\"",15900553860,"Шайгаллямова","Назиля","Фирдависовна","ж","2008-02-09","нет",10,10,52,null,52,55,"призер","Да","Шарипова Чулпан Рамзилевна","ГАОУ \"Гуманитарная гимназия-интернат для одаренных детей\"","Родная (татарская) литература для обучающихся школ с татарским языком обучения"]
[72,"134003_15740510347_29","ГАОУ \"Гуманитарная гимназия-интернат для одаренных детей\"",15740510347,"Салахова","Эвелина","Вильсуровна","ж","2008-06-16","нет",10,10,53,null,53,55,"победитель","Да","Шарипова Чулпан Рамзилевна","ГАОУ \"Гуманитарная гимназия-интернат для одаренных детей\"","Родная (татарская) литература для обучающихся школ с татарским языком обучения"]
[73,"134003_15772835302_29","ГАОУ \"Гуманитарная гимназия-интернат для одаренных детей\"",15772835302,"Кирамова","Зиля","Рамилевна","ж","2008-11-24","нет",10,10,51,null,51,55,"призер","Да","Шарипова Чулпан Рамзилевна","ГАОУ \"Гуманитарная гимназия-интернат для одаренных детей\"","Родная (татарская) литература для обучающихся школ с татарским языком обучения"]
[74,"134003_15420924240_29","ГАОУ \"Гуманитарная гимназия-интернат для одаренных детей\"",15420924240,"Шавалиева","Замира","Рашитовна","ж","2009-03-05","нет",10,10,33.1,null,33.1,55,"участник","Да","Шарипова Чулпан Рамзилевна","ГАОУ \"Гуманитарная гимназия-интернат для одаренных детей\"","Родная (татарская) литература для обучающихся школ с татарским языком обучения"]

{"sheet":"технология","index":27,"n_rows":12,"n_cols":23,"rows_kept":12}
["№","Код участника","Название ОУ","СНИЛС","Фамилия","Имя","Отчество","Пол","Дата рождения","Участник с ОВЗ","Класс","Класс участия","Первичный балл","Добавлено баллов по итогам аппеляции","Итоговый балл","Макс. балл","Статус","Призер МЭ прошлого года","Учитель","Место работы учителя","Профиль / Направление","Виды практик","Предмет"]
[6,"134003_16874002381_40","ГАОУ \"Гуманитарная гимназия-интернат для одаренных детей\"",16874002381,"Салихова","Руфина","Радиковна","ж","########","нет",7,7,26,null,26,100,"участник","да","Хуснетдинова Гузель Фаритовна","ГАОУ \"Гуманитарная гимназия-интернат для одаренных детей\"","2 - Культура дома, дизайн и технологии","2.2 Механическая обработка швейного изделия или узла + Моделирование","Труд (технология)"]
[12,"134011_16905460381_40","ГАОУ \"Гуманитарная гимназия-интернат для одаренных детей\"",16874002381,"Шагалиева","Айсина","Айнуровна","ж","########","нет",7,7,22,null,22,100,"участник",null,"Хуснетдинова Гузель Фаридовна","Хуснетдинова Гузель Фаридовна","2 - Культура дома, дизайн и технологии","2.2 Механическая обработка швейного изделия или узла + Моделирование","Труд (технология)"]
[13,"134011_16905460381_40","ГАОУ \"Гуманитарная гимназия-интернат для одаренных детей\"",17061138135,"Закирова","Амира","Ильгизаровна","ж","########","нет",7,7,34,null,34,100,"участник",null,"Хуснетдинова Гузель Фаридовна","Хуснетдинова Гузель Фаридовна","2 - Культура дома, дизайн и технологии","2.2 Механическая обработка швейного изделия или узла + Моделирование","Труд (технология)"]
[17,"134003_17061138135_40","ГАОУ \"Гуманитарная гимназия-интернат для одаренных детей\"",17061138135,"Валиева","Арина","Ленаровна","ж","########","нет",7,7,14,null,14,100,"участник",null,"Хуснетдинова Гузель Фаридовна","Хуснетдинова Гузель Фаридовна","2 - Культура дома, дизайн и технологии","2.2 Механическая обработка швейного изделия или узла + Моделирование","Труд (технология)"]
[18,"134003_16823996215_40","ГАОУ \"Гуманитарная гимназия-интернат для одаренных детей\"",16823996215,"Ахметшина","Амалия","Альбертовна","ж","2011-09-20","нет",7,7,80.5,null,80.5,100,"победитель",null,"Хуснетдинова Гузель Фаридовна","ГАОУ \"Гуманитарная гимназия-интернат для одаренных детей\"","2 - Культура дома, дизайн и технологии","2.2 Механическая обработка швейного изделия или узла + Моделирование","Труд (технология)"]
[23,"134003_17215845770_40","ГАОУ \"Гуманитарная гимназия-интернат для одаренных детей\"",17215845770,"Хусаинова","Амина","Ленаровна","ж","2012-05-16","нет",6,7,51,null,51,100,"призер",null,"Хуснетдинова Гузель Фаридовна","ГАОУ \"Гуманитарная гимназия-интернат для одаренных детей\"","2 - Культура дома, дизайн и технологии","2.2 Механическая обработка швейного изделия или узла + Моделирование","Труд (технология)"]
[24,"134003_17196759722_40","ГАОУ \"Гуманитарная гимназия-интернат для одаренных детей\"",17196759722,"Лотфуллина","Айсылу","Ильнуровна","ж","2012-05-02","нет",6,7,53.3,null,53.3,100,"призер",null,"Хуснетдинова Гузель Фаридовна","ГАОУ \"Гуманитарная гимназия-интернат для одаренных детей\"","2 - Культура дома, дизайн и технологии","2.2 Механическая обработка швейного изделия или узла + Моделирование","Труд (технология)"]
[38,"134003_15605598785_40","ГАОУ \"Гуманитарная гимназия-интернат для одаренных детей\"",15605598785,"Гаязов","Рамазан","Дилшатович","м","2009-09-12","нет",8,8,88,null,88,100,"победитель",null,"Сибгатуллин Ришат Тимершаехович","ГАОУ \"Гуманитарная гимназия-интернат для одаренных детей\"","1 - Техника, технологии и техническое творчество","1.2 Практика по механической деревообработке","Труд (технология)"]
[53,"134003_17061138135_40","ГАОУ \"Гуманитарная гимназия-интернат для одаренных детей\"",17061138135,"Хуснетдинова","Нурзия","Ильназовна","ж","2012-02-22","нет",7,8,60.2,null,60.2,100,"победитель",null,"Хуснетдинова Гузель Фаридовна","Хуснетдинова Гузель Фаридовна","2 - Культура дома, дизайн и технологии","2.2 Механическая обработка швейного изделия или узла + Моделирование","Труд (технология)"]
[21,134001,"ГАОУ «Гуманитарная гимназия-интернат для одаренных детей»",16874002381,"Ямалова","Азалия","Филарисовна","ж","########","нет",7,7,68,null,68,100,"победитель","да","Ямалов Филарис Фанисович","ГАОУ «Гуманитарная гимназия-интернат для одаренных детей»",null,"3.1 Робототехника","Труд (технология)"]
[78,134001,"ГАОУ «Гуманитарная гимназия-интернат для одаренных детей»",15572473785,"Ямалов","Азамат","Филарисович","м","########","нет",9,9,69,null,69,100,"победитель","да","Ямалов Филарис Фанисович","ГАОУ «Гуманитарная гимназия-интернат для одаренных детей»",null,"3.1 Робототехника","Труд (технология)"]

{"sheet":"физра","index":28,"n_rows":19,"n_cols":21,"rows_kept":19}
["№","Код участника","Название ОУ","СНИЛС","Фамилия","Имя","Отчество","Пол","Дата рождения","Участник с ОВЗ","Класс","Класс участия","Первичный балл","Добавлено баллов по итогам аппеляции","Итоговый балл","Макс. балл","Статус","Призер МЭ прошлого года","Учитель","Место работы учителя","Предмет"]
[2,"134003_17981249926_35","ГАОУ \"Гуманитарная гимназия-интернат для одаренных детей\"",{"v":1.7981E10,"d":"1.80E+10"},"Шарипова","Румия","Наилевна","ж","2013-12-30","нет",4,7,85.16,null,85.16,100,"участник",null,"Исламов Ильмир Рузилович, . Харрасова Алсу Раскатовна","ГАОУ \"Гуманитарная гимназия-интернат для одаренных детей\"","Физическая культура"]
[3,"134003_18020237419_35","ГАОУ \"Гуманитарная гимназия-интернат для одаренных детей\"",{"v":1.802E10,"d":"1.80E+10"},"Фархтдинов","Тимур","Ирекович","м","2014-01-18","нет",4,7,94.34,null,94.34,100,"призер",null,"Исламов Ильмир Рузилович, . Харрасова Алсу Раскатовна","ГАОУ \"Гуманитарная гимназия-интернат для одаренных детей\"","Физическая культура"]
[8,"134003_17628156392_35","ГАОУ \"Гуманитарная гимназия-интернат для одаренных детей\"",{"v":1.7628E10,"d":"1.76E+10"},"Микаелян","Мери","Маркосовна","ж","2013-04-13","нет",5,7,92.14,null,92.14,100,"призер",null,"Исламов Ильмир Рузилович, . Харрасова Алсу Раскатовна","ГАОУ \"Гуманитарная гимназия-интернат для одаренных детей\"","Физическая культура"]
[9,"134003_17740615680_35","ГАОУ \"Гуманитарная гимназия-интернат для одаренных детей\"",{"v":1.7741E10,"d":"1.77E+10"},"Закирова","Алмазия","Ильшатовна","ж","2013-04-07","нет",5,7,82.87,null,82.87,100,"призер",null,"Исламов Ильмир Рузилович, . Харрасова Алсу Раскатовна","ГАОУ \"Гуманитарная гимназия-интернат для одаренных детей\"","Физическая культура"]
[10,"134003_17404329755_35","ГАОУ \"Гуманитарная гимназия-интернат для одаренных детей\"",{"v":1.7404E10,"d":"1.74E+10"},"Муллаянова","Алина","Ильнуровна","ж","2012-10-12","нет",5,7,87.34,null,87.34,100,"призер",null,"Исламов Ильмир Рузилович, . Харрасова Алсу Раскатовна","ГАОУ \"Гуманитарная гимназия-интернат для одаренных детей\"","Физическая культура"]
[11,"134003_17427105053_35","ГАОУ \"Гуманитарная гимназия-интернат для одаренных детей\"",{"v":1.7427E10,"d":"1.74E+10"},"Шакирзянова","Сафия","Ильнуровна","ж","2012-10-27","нет",5,7,84.09,null,84.09,100,"призер",null,"Исламов Ильмир Рузилович, . Харрасова Алсу Раскатовна","ГАОУ \"Гуманитарная гимназия-интернат для одаренных детей\"","Физическая культура"]
[55,"134003_16868076121_35","ГАОУ \"Гуманитарная гимназия-интернат для одаренных детей\"",{"v":1.6868E10,"d":"1.69E+10"},"Ахметов","Рияз","Ильназович","м","2011-10-02","нет",7,7,96.81,null,96.81,100,"призер","Да","Исламов Ильмир Рузилович, . Харрасова Алсу Раскатовна","ГАОУ \"Гуманитарная гимназия-интернат для одаренных детей\"","Физическая культура"]
[56,"134003_16305771659_35","ГАОУ \"Гуманитарная гимназия-интернат для одаренных детей\"",{"v":1.6306E10,"d":"1.63E+10"},"Сарваров","Фаяз","Ильшатович","м","2010-11-20","нет",7,7,92.59,null,92.59,100,"призер","Да","Исламов Ильмир Рузилович, . Харрасова Алсу Раскатовна","ГАОУ \"Гуманитарная гимназия-интернат для одаренных детей\"","Физическая культура"]
[57,"134003_16645154276_35","ГАОУ \"Гуманитарная гимназия-интернат для одаренных детей\"",{"v":1.6645E10,"d":"1.66E+10"},"Шарипов","Раяз","Риназович","м","2011-05-26","нет",7,7,97.88,null,97.88,100,"победитель","Да","Исламов Ильмир Рузилович, . Харрасова Алсу Раскатовна","ГАОУ \"Гуманитарная гимназия-интернат для одаренных детей\"","Физическая культура"]
[58,"134003_16407940673_35","ГАОУ \"Гуманитарная гимназия-интернат для одаренных детей\"",{"v":1.6408E10,"d":"1.64E+10"},"Исламова","Камила","Эдуардовна","ж","2011-02-03","нет",7,7,100,null,100,100,"победитель","Да","Исламов Ильмир Рузилович, . Харрасова Алсу Раскатовна","ГАОУ \"Гуманитарная гимназия-интернат для одаренных детей\"","Физическая культура"]
[59,"134003_16834119277_35","ГАОУ \"Гуманитарная гимназия-интернат для одаренных детей\"",{"v":1.6834E10,"d":"1.68E+10"},"Гимаев","Руслан","Рустамович","м","2011-09-26","нет",7,7,84.59,null,84.59,100,"призер",null,"Исламов Ильмир Рузилович, . Харрасова Алсу Раскатовна","ГАОУ \"Гуманитарная гимназия-интернат для одаренных детей\"","Физическая культура"]
[85,"134003_15830269672_35","ГАОУ \"Гуманитарная гимназия-интернат для одаренных детей\"",{"v":1.583E10,"d":"1.58E+10"},"Валиев","Булат","Ильшатович","м","2010-03-16","нет",8,8,89.61,null,89.61,100,"призер",null,"Исламов Ильмир Рузилович, . Харрасова Алсу Раскатовна","ГАОУ \"Гуманитарная гимназия-интернат для одаренных детей\"","Физическая культура"]
[86,"134003_15724672987_35","ГАОУ \"Гуманитарная гимназия-интернат для одаренных детей\"",{"v":1.5725E10,"d":"1.57E+10"},"Шарипова","Айзиля","Риназовна","ж","2010-01-16","нет",8,8,97.74,null,97.74,100,"призер","Да","Исламов Ильмир Рузилович, . Харрасова Алсу Раскатовна","ГАОУ \"Гуманитарная гимназия-интернат для одаренных детей\"","Физическая культура"]
[87,"134003_17801569990_35","ГАОУ \"Гуманитарная гимназия-интернат для одаренных детей\"",{"v":1.7802E10,"d":"1.78E+10"},"Валеева","Лилия","Ильгизовна","ж","2010-10-25","нет",8,8,88.48,null,88.48,100,"призер","Да","Исламов Ильмир Рузилович, . Харрасова Алсу Раскатовна","ГАОУ \"Гуманитарная гимназия-интернат для одаренных детей\"","Физическая культура"]
[88,"134003_16084894798_35","ГАОУ \"Гуманитарная гимназия-интернат для одаренных детей\"",{"v":1.6085E10,"d":"1.61E+10"},"Галиуллина","Ильфина","Филусовна","ж","2010-11-06","нет",8,8,97.34,null,97.34,100,"призер",null,"Исламов Ильмир Рузилович, . Харрасова Алсу Раскатовна","ГАОУ \"Гуманитарная гимназия-интернат для одаренных детей\"","Физическая культура"]
[123,"134003_15740981083_35","ГАОУ \"Гуманитарная гимназия-интернат для одаренных детей\"",{"v":1.5741E10,"d":"1.57E+10"},"Харрасов","Ильмар","Тагирович","м","2008-12-15","нет",9,9,100,null,100,100,"победитель","Да","Исламов Ильмир Рузилович, . Харрасова Алсу Раскатовна","ГАОУ \"Гуманитарная гимназия-интернат для одаренных детей\"","Физическая культура"]
[132,"134003_18422339061_35","ГАОУ \"Гуманитарная гимназия-интернат для одаренных детей\"",{"v":1.8422E10,"d":"1.84E+10"},"Газетдинова","Гульяр","Наилевна","ж","2007-02-16","нет",11,11,90.74,null,90.74,100,"призер","Да","Исламов Ильмир Рузилович, . Харрасова Алсу Раскатовна","ГАОУ \"Гуманитарная гимназия-интернат для одаренных детей\"","Физическая культура"]
[133,"134003_17292122157_35","ГАОУ \"Гуманитарная гимназия-интернат для одаренных детей\"",{"v":1.7292E10,"d":"1.73E+10"},"Шагалиева","Зилия","Финусовна","ж","2007-08-18","нет",11,11,100,null,100,100,"победитель","Да","Исламов Ильмир Рузилович, . Харрасова Алсу Раскатовна","ГАОУ \"Гуманитарная гимназия-интернат для одаренных детей\"","Физическая культура"]

{"sheet":"Лист21","index":29,"n_rows":0,"n_cols":0,"rows_kept":0}